Workbook

Sheet INTRO
B2: Joint request for selected PC medicines v.3.1
B4: As part of global efforts to accelerate expansion of preventive chemotherapy (PC) for control and elimination of lymphatic filariasis, schistosomiasis and soil-transmitted helminthiases, the World Health Organization (WHO) facilitates the supply of albendazole 400 mg tablets (GSK) to national lymphatic filariasis elimination programmes and national soil-transmitted helminth control programmes; diethylcarbamazine citrate 100 mg tablets (Eisai) to national lymphatic filariasis elimination programmes; mebendazole 500 mg tablets (J&J) for national soil-transmitted helminth control programmes; and praziquantel 600 mg tablets (Merck KGaA) for school-age children to national schistosomiasis control programmes. WHO also collaborates to supply ivermectin 3 mg tablets (Merck) for onchocerciasis and lymphatic filariasis donation programmes. This Excel-based tool is designed to assist countries in quantifying the number of tablets of relevant PC medicines required to reach the planned target population and districts for the year of request. Output of the tool is a joint request for PC medicines, which can be printed, signed and submitted to WHO to request these medicines.
B6: Structure of the application (worksheets):
B8: INTRO | C8: This worksheet includes guides on how to complete the joint request for selected PC medicines and information about the status of PC for endemic diseases in the country.
B9: COUNTRY_INFO | C9: This worksheet includes information about administrative structure of the country, population by age group, status of endemicity for each disease, population requiring PC and planned interventions.
B10: DEC, ALB_MBD, PZQ and IVM | C10: These worksheets include information about endemic districts targeted for treatment with specified PC medicines, treatment plan, and number of tablets required and requested.
B11: SUMMARY | C11: This worksheet includes summary of number of tablets requested, information about stock, and date for submission of requested medicines. Before generating the report (run macros) please select the medicine for which the report is needed. Follow the same rule to see the number of people to be treated for the specific disease. This worksheet should be printed and submitted as a joint request for selected PC medicines (see the instruction for submission in the SUMMARY worksheet).
B13: Instruction for data entry
B15: Most of the cells in the above-mentioned worksheets include formula that are calculated automatically according to the treatment policy recommended by WHO for each disease. See the link http://www.who.int/neglected_diseases/preventive_chemotherapy/pct_manual/en/index.html
B17: Please enter your data into the cells according to their colour code:
C19: White - cell is not protected. Please enter the value of the requested indicator.
C21: Yellow - cell is protected and includes name of indicator. No data entry required.
C23: Orange - cell is not protected and includes a drop-down menu. Please select the value from the drop-down list.
C26: Green - cell is not protected and includes formula. Please change the value only if your data are different from those that are calculated automatically.
C29: Blue - cell is protected and includes formula. No data entry required.
B31: Country data
B33: COUNTRY | E33: MALAWI
B35: Year for request of the medicine | E35: 2023
B37: Is country endemic for lymphatic filariasis (LF)? | E37: Endemic but PC is not required
B39: Is country endemic for onchocerciasis (ONCHO)? | E39: Endemic
B41: Is country endemic for soil-transmitted helminthiases (STH)? | E41: Endemic
B43: Is country endemic for schistosomiasis (SCH)? | E43: Endemic
B45: How many administrative units in the country? | E45: 29
B47: If demographical data at the second administrative level are not available by age group, please enter the proportion (%) of population by age group in the country. If data are available, please leave these cells blank.
B48: 1-4 years age | C48: Preschool-age children (PreSAC) | E48: 0.1156
B49: 5-14 years age | C49: School-age children (SAC) | E49: 0.2941
B50: 15 years + | C50: Adults | E50: 0.5605

Sheet COUNTRY_INFO
A1: COUNTRY INFORMATION
A2: Administrative structure, population by age group, status of endemicity and planned interventions | V2: 1.0267
A4: TOTAL | D4: =SUM(D$9:D$1000) -> 19647487 | E4: =SUM(E$9:E$1000) -> 2271251 | F4: =SUM(F$9:F$1000) -> 5778325 | G4: =SUM(G$9:G$1000) -> 11012417 | L4: =SUM(L$9:L$1000) -> 0 | M4: =SUM(M$9:M$1000) -> 3236897 | N4: =SUM(N$9:N$1000) -> 0 | O4: =SUM(O$9:O$1000) -> 6193166
A6: Country administrative structure | D6: Population | H6: Endemicity | L6: Population requiring PC | P6: Number of treatment rounds planned for the year | T6: Criteria to apply for IVM+DEC+ALB therapy | U6: Epidemiological surveys planned for the year
A7: Country | B7: Province/State | C7: District | D7: Total | E7: PreSAC | F7: SAC | G7: Adults | H7: LF | I7: Oncho | J7: STH | K7: SCH | L7: LF | M7: Oncho | N7: STH | O7: SCH | P7: LF | Q7: Oncho | R7: STH | S7: SCH | T7: LF | U7: LF | V7: Oncho | W7: STH | X7: SCH | Y7: IU_ID | Z7: IU_Name | AA7: x | AB7: x | AC7: x | AD7: x | AE7: x | AF7: x | AG7: x | AH7: x | AI7: x | AJ7: x | AK7: x | AL7: x | AM7: x | AN7: x | AO7: x | AP7: x | AQ7: x | AR7: x | AS7: x | AT7: x | AU7: x | AV7: x | AW7: x | AX7: x | AY7: x | AZ7: x | BA7: x | BB7: x | BC7: x | BD7: x | BE7: x | BF7: x | BG7: x | BH7: x
A9: =IF(INTRO!$E$33<>0,INTRO!$E$33, " ") -> MALAWI | B9: North | C9: Chitipa | D9: 262798 | E9: =IF(INTRO!$E$48="","",ROUND($D9*INTRO!$E$48,0)) -> 30379 | F9: =IF(INTRO!$E$49="","",ROUND($D9*INTRO!$E$49,0)) -> 77289 | G9: =IF(INTRO!$E$50="","",ROUND($D9*INTRO!$E$50,0)) -> 147298 | I9: 0 | J9: 1 | K9: 2 | L9: =IF(INTRO!$E$37="Endemic",IF($H9>0,IF($H9=4,"Unknown",IF($H9=99,"Stopped",$D9)),0),"Not required") -> Not required | M9: =IF(INTRO!$E$39="Endemic", IF($I9>0, IF($I9=4,"Unknown",IF($I9=99,"Stopped",$D9)), 0),"Not required") -> 0 | N9: =IF(INTRO!$E$41="Endemic", IF(AND($J9>1,$J9<5), IF($J9=4, "Unknown", E9+F9), 0),"Not required") -> 0 | O9: 90627 | Q9: 0 | R9: 1 | S9: 1 | Y9: 28948 | Z9: Chitipa
A10: =IF(INTRO!$E$33<>0,INTRO!$E$33, " ") -> MALAWI | B10: North | C10: Karonga | D10: 408334 | E10: =IF(INTRO!$E$48="","",ROUND($D10*INTRO!$E$48,0)) -> 47203 | F10: =IF(INTRO!$E$49="","",ROUND($D10*INTRO!$E$49,0)) -> 120091 | G10: =IF(INTRO!$E$50="","",ROUND($D10*INTRO!$E$50,0)) -> 228871 | I10: 0 | J10: 1 | K10: 2 | L10: =IF(INTRO!$E$37="Endemic",IF($H10>0,IF($H10=4,"Unknown",IF($H10=99,"Stopped",$D10)),0),"Not required") -> Not required | M10: 0 | N10: =IF(INTRO!$E$41="Endemic", IF(AND($J10>1,$J10<5), IF($J10=4, "Unknown", E10+F10), 0),"Not required") -> 0 | O10: 115754 | Q10: 0 | R10: 1 | S10: 1 | Y10: 28951 | Z10: Karonga
A11: =IF(INTRO!$E$33<>0,INTRO!$E$33, " ") -> MALAWI | B11: North | C11: Rumphi | D11: 256349 | E11: =IF(INTRO!$E$48="","",ROUND($D11*INTRO!$E$48,0)) -> 29634 | F11: =IF(INTRO!$E$49="","",ROUND($D11*INTRO!$E$49,0)) -> 75392 | G11: =IF(INTRO!$E$50="","",ROUND($D11*INTRO!$E$50,0)) -> 143684 | I11: 0 | J11: 1 | K11: 2 | L11: =IF(INTRO!$E$37="Endemic",IF($H11>0,IF($H11=4,"Unknown",IF($H11=99,"Stopped",$D11)),0),"Not required") -> Not required | M11: 0 | N11: =IF(INTRO!$E$41="Endemic", IF(AND($J11>1,$J11<5), IF($J11=4, "Unknown", E11+F11), 0),"Not required") -> 0 | O11: 57979 | Q11: 0 | R11: 1 | S11: 1 | Y11: 28968 | Z11: Rumphi
A12: =IF(INTRO!$E$33<>0,INTRO!$E$33, " ") -> MALAWI | B12: North | C12: Mzimba North | D12: 247523 | E12: =IF(INTRO!$E$48="","",ROUND($D12*INTRO!$E$48,0)) -> 28614 | F12: =IF(INTRO!$E$49="","",ROUND($D12*INTRO!$E$49,0)) -> 72797 | G12: =IF(INTRO!$E$50="","",ROUND($D12*INTRO!$E$50,0)) -> 138737 | I12: 0 | J12: 1 | K12: 2 | L12: =IF(INTRO!$E$37="Endemic",IF($H12>0,IF($H12=4,"Unknown",IF($H12=99,"Stopped",$D12)),0),"Not required") -> Not required | M12: 0 | N12: =IF(INTRO!$E$41="Endemic", IF(AND($J12>1,$J12<5), IF($J12=4, "Unknown", E12+F12), 0),"Not required") -> 0 | O12: 282801 | Q12: 0 | R12: 1 | S12: 1 | Y12: 28972 | Z12: Mzimba North
A13: =IF(INTRO!$E$33<>0,INTRO!$E$33, " ") -> MALAWI | B13: North | C13: Mzimba South | D13: 1051726 | E13: =IF(INTRO!$E$48="","",ROUND($D13*INTRO!$E$48,0)) -> 121580 | F13: =IF(INTRO!$E$49="","",ROUND($D13*INTRO!$E$49,0)) -> 309313 | G13: =IF(INTRO!$E$50="","",ROUND($D13*INTRO!$E$50,0)) -> 589492 | I13: 0 | J13: 1 | K13: 2 | L13: =IF(INTRO!$E$37="Endemic",IF($H13>0,IF($H13=4,"Unknown",IF($H13=99,"Stopped",$D13)),0),"Not required") -> Not required | M13: 0 | N13: =IF(INTRO!$E$41="Endemic", IF(AND($J13>1,$J13<5), IF($J13=4, "Unknown", E13+F13), 0),"Not required") -> 0 | O13: 74376 | Q13: 0 | R13: 1 | S13: 1 | Y13: 28973 | Z13: Mzimba South
A14: =IF(INTRO!$E$33<>0,INTRO!$E$33, " ") -> MALAWI | B14: North | C14: Nkhatabay | D14: 318455 | E14: =IF(INTRO!$E$48="","",ROUND($D14*INTRO!$E$48,0)) -> 36813 | F14: =IF(INTRO!$E$49="","",ROUND($D14*INTRO!$E$49,0)) -> 93658 | G14: =IF(INTRO!$E$50="","",ROUND($D14*INTRO!$E$50,0)) -> 178494 | I14: 0 | J14: 1 | K14: 2 | L14: =IF(INTRO!$E$37="Endemic",IF($H14>0,IF($H14=4,"Unknown",IF($H14=99,"Stopped",$D14)),0),"Not required") -> Not required | M14: 0 | N14: =IF(INTRO!$E$41="Endemic", IF(AND($J14>1,$J14<5), IF($J14=4, "Unknown", E14+F14), 0),"Not required") -> 0 | O14: 102952 | Q14: 0 | R14: 1 | S14: 1 | Y14: 28962 | Z14: Nkhatabay
A15: =IF(INTRO!$E$33<>0,INTRO!$E$33, " ") -> MALAWI | B15: North | C15: Likoma | D15: 16251 | E15: =IF(INTRO!$E$48="","",ROUND($D15*INTRO!$E$48,0)) -> 1879 | F15: =IF(INTRO!$E$49="","",ROUND($D15*INTRO!$E$49,0)) -> 4779 | G15: =IF(INTRO!$E$50="","",ROUND($D15*INTRO!$E$50,0)) -> 9109 | I15: 0 | J15: 1 | K15: 2 | L15: =IF(INTRO!$E$37="Endemic",IF($H15>0,IF($H15=4,"Unknown",IF($H15=99,"Stopped",$D15)),0),"Not required") -> Not required | M15: 0 | N15: =IF(INTRO!$E$41="Endemic", IF(AND($J15>1,$J15<5), IF($J15=4, "Unknown", E15+F15), 0),"Not required") -> 0 | O15: 6104 | Q15: 0 | R15: 1 | S15: 1 | Y15: 28953 | Z15: Likoma
A16: =IF(INTRO!$E$33<>0,INTRO!$E$33, " ") -> MALAWI | B16: Central | C16: Kasungu | D16: 942959 | E16: =IF(INTRO!$E$48="","",ROUND($D16*INTRO!$E$48,0)) -> 109006 | F16: =IF(INTRO!$E$49="","",ROUND($D16*INTRO!$E$49,0)) -> 277324 | G16: =IF(INTRO!$E$50="","",ROUND($D16*INTRO!$E$50,0)) -> 528529 | I16: 0 | J16: 1 | K16: 2 | L16: =IF(INTRO!$E$37="Endemic",IF($H16>0,IF($H16=4,"Unknown",IF($H16=99,"Stopped",$D16)),0),"Not required") -> Not required | M16: 0 | N16: =IF(INTRO!$E$41="Endemic", IF(AND($J16>1,$J16<5), IF($J16=4, "Unknown", E16+F16), 0),"Not required") -> 0 | O16: 328269 | Q16: 0 | R16: 1 | S16: 1 | Y16: 28952 | Z16: Kasungu
A17: =IF(INTRO!$E$33<>0,INTRO!$E$33, " ") -> MALAWI | B17: Central | C17: Dedza | D17: 929042 | E17: =IF(INTRO!$E$48="","",ROUND($D17*INTRO!$E$48,0)) -> 107397 | F17: =IF(INTRO!$E$49="","",ROUND($D17*INTRO!$E$49,0)) -> 273231 | G17: =IF(INTRO!$E$50="","",ROUND($D17*INTRO!$E$50,0)) -> 520728 | I17: 0 | J17: 1 | K17: 2 | L17: =IF(INTRO!$E$37="Endemic",IF($H17>0,IF($H17=4,"Unknown",IF($H17=99,"Stopped",$D17)),0),"Not required") -> Not required | M17: 0 | N17: =IF(INTRO!$E$41="Endemic", IF(AND($J17>1,$J17<5), IF($J17=4, "Unknown", E17+F17), 0),"Not required") -> 0 | O17: 319552 | Q17: 0 | R17: 1 | S17: 1 | Y17: 28949 | Z17: Dedza
A18: =IF(INTRO!$E$33<>0,INTRO!$E$33, " ") -> MALAWI | B18: Central | C18: Dowa | D18: 864226 | E18: =IF(INTRO!$E$48="","",ROUND($D18*INTRO!$E$48,0)) -> 99905 | F18: =IF(INTRO!$E$49="","",ROUND($D18*INTRO!$E$49,0)) -> 254169 | G18: =IF(INTRO!$E$50="","",ROUND($D18*INTRO!$E$50,0)) -> 484399 | I18: 0 | J18: 1 | K18: 2 | L18: =IF(INTRO!$E$37="Endemic",IF($H18>0,IF($H18=4,"Unknown",IF($H18=99,"Stopped",$D18)),0),"Not required") -> Not required | M18: 0 | N18: =IF(INTRO!$E$41="Endemic", IF(AND($J18>1,$J18<5), IF($J18=4, "Unknown", E18+F18), 0),"Not required") -> 0 | O18: 118319 | Q18: 0 | R18: 1 | S18: 1 | Y18: 28950 | Z18: Dowa
A19: =IF(INTRO!$E$33<>0,INTRO!$E$33, " ") -> MALAWI | B19: Central | C19: Lilongwe | D19: 2938552 | E19: =IF(INTRO!$E$48="","",ROUND($D19*INTRO!$E$48,0)) -> 339697 | F19: =IF(INTRO!$E$49="","",ROUND($D19*INTRO!$E$49,0)) -> 864228 | G19: =IF(INTRO!$E$50="","",ROUND($D19*INTRO!$E$50,0)) -> 1647058 | I19: 0 | J19: 1 | K19: 3 | L19: =IF(INTRO!$E$37="Endemic",IF($H19>0,IF($H19=4,"Unknown",IF($H19=99,"Stopped",$D19)),0),"Not required") -> Not required | M19: 0 | N19: =IF(INTRO!$E$41="Endemic", IF(AND($J19>1,$J19<5), IF($J19=4, "Unknown", E19+F19), 0),"Not required") -> 0 | O19: 865732 | Q19: 0 | R19: 1 | S19: 1 | Y19: 28954 | Z19: Lilongwe
A20: =IF(INTRO!$E$33<>0,INTRO!$E$33, " ") -> MALAWI | B20: Central | C20: Mchinji | D20: 673762 | E20: =IF(INTRO!$E$48="","",ROUND($D20*INTRO!$E$48,0)) -> 77887 | F20: =IF(INTRO!$E$49="","",ROUND($D20*INTRO!$E$49,0)) -> 198153 | G20: =IF(INTRO!$E$50="","",ROUND($D20*INTRO!$E$50,0)) -> 377644 | I20: 0 | J20: 1 | K20: 2 | L20: =IF(INTRO!$E$37="Endemic",IF($H20>0,IF($H20=4,"Unknown",IF($H20=99,"Stopped",$D20)),0),"Not required") -> Not required | M20: 0 | N20: =IF(INTRO!$E$41="Endemic", IF(AND($J20>1,$J20<5), IF($J20=4, "Unknown", E20+F20), 0),"Not required") -> 0 | O20: 159144 | Q20: 0 | R20: 1 | S20: 1 | Y20: 28957 | Z20: Mchinji
A21: =IF(INTRO!$E$33<>0,INTRO!$E$33, " ") -> MALAWI | B21: Central | C21: Salima | D21: 535097 | E21: =IF(INTRO!$E$48="","",ROUND($D21*INTRO!$E$48,0)) -> 61857 | F21: =IF(INTRO!$E$49="","",ROUND($D21*INTRO!$E$49,0)) -> 157372 | G21: =IF(INTRO!$E$50="","",ROUND($D21*INTRO!$E$50,0)) -> 299922 | I21: 0 | J21: 1 | K21: 3 | L21: =IF(INTRO!$E$37="Endemic",IF($H21>0,IF($H21=4,"Unknown",IF($H21=99,"Stopped",$D21)),0),"Not required") -> Not required | M21: 0 | N21: =IF(INTRO!$E$41="Endemic", IF(AND($J21>1,$J21<5), IF($J21=4, "Unknown", E21+F21), 0),"Not required") -> 0 | O21: 250002 | Q21: 0 | R21: 1 | S21: 1 | Y21: 28969 | Z21: Salima
A22: =IF(INTRO!$E$33<>0,INTRO!$E$33, " ") -> MALAWI | B22: Central | C22: Nkhotakota | D22: 439711 | E22: =IF(INTRO!$E$48="","",ROUND($D22*INTRO!$E$48,0)) -> 50831 | F22: =IF(INTRO!$E$49="","",ROUND($D22*INTRO!$E$49,0)) -> 129319 | G22: =IF(INTRO!$E$50="","",ROUND($D22*INTRO!$E$50,0)) -> 246458 | I22: 0 | J22: 1 | K22: 3 | L22: =IF(INTRO!$E$37="Endemic",IF($H22>0,IF($H22=4,"Unknown",IF($H22=99,"Stopped",$D22)),0),"Not required") -> Not required | M22: 0 | N22: =IF(INTRO!$E$41="Endemic", IF(AND($J22>1,$J22<5), IF($J22=4, "Unknown", E22+F22), 0),"Not required") -> 0 | O22: 214310 | Q22: 0 | R22: 1 | S22: 1 | Y22: 28963 | Z22: Nkhotakota
A23: =IF(INTRO!$E$33<>0,INTRO!$E$33, " ") -> MALAWI | B23: Central | C23: Ntchisi | D23: 354686 | E23: =IF(INTRO!$E$48="","",ROUND($D23*INTRO!$E$48,0)) -> 41002 | F23: =IF(INTRO!$E$49="","",ROUND($D23*INTRO!$E$49,0)) -> 104313 | G23: =IF(INTRO!$E$50="","",ROUND($D23*INTRO!$E$50,0)) -> 198802 | I23: 0 | J23: 1 | K23: 2 | L23: =IF(INTRO!$E$37="Endemic",IF($H23>0,IF($H23=4,"Unknown",IF($H23=99,"Stopped",$D23)),0),"Not required") -> Not required | M23: 0 | N23: =IF(INTRO!$E$41="Endemic", IF(AND($J23>1,$J23<5), IF($J23=4, "Unknown", E23+F23), 0),"Not required") -> 0 | O23: 78707 | Q23: 0 | R23: 1 | S23: 1 | Y23: 28966 | Z23: Ntchisi
A24: =IF(INTRO!$E$33<>0,INTRO!$E$33, " ") -> MALAWI | B24: Central | C24: Ntcheu | D24: 737863 | E24: =IF(INTRO!$E$48="","",ROUND($D24*INTRO!$E$48,0)) -> 85297 | F24: =IF(INTRO!$E$49="","",ROUND($D24*INTRO!$E$49,0)) -> 217006 | G24: =IF(INTRO!$E$50="","",ROUND($D24*INTRO!$E$50,0)) -> 413572 | I24: 1 | J24: 1 | K24: 2 | L24: =IF(INTRO!$E$37="Endemic",IF($H24>0,IF($H24=4,"Unknown",IF($H24=99,"Stopped",$D24)),0),"Not required") -> Not required | M24: 100237 | N24: =IF(INTRO!$E$41="Endemic", IF(AND($J24>1,$J24<5), IF($J24=4, "Unknown", E24+F24), 0),"Not required") -> 0 | O24: 182750 | Q24: 1 | R24: 1 | S24: 1 | Y24: 28965 | Z24: Ntcheu
A25: =IF(INTRO!$E$33<>0,INTRO!$E$33, " ") -> MALAWI | B25: South | C25: Balaka | D25: 490388 | E25: =IF(INTRO!$E$48="","",ROUND($D25*INTRO!$E$48,0)) -> 56689 | F25: =IF(INTRO!$E$49="","",ROUND($D25*INTRO!$E$49,0)) -> 144223 | G25: =IF(INTRO!$E$50="","",ROUND($D25*INTRO!$E$50,0)) -> 274862 | I25: 0 | J25: 1 | K25: 2 | L25: =IF(INTRO!$E$37="Endemic",IF($H25>0,IF($H25=4,"Unknown",IF($H25=99,"Stopped",$D25)),0),"Not required") -> Not required | M25: 0 | N25: =IF(INTRO!$E$41="Endemic", IF(AND($J25>1,$J25<5), IF($J25=4, "Unknown", E25+F25), 0),"Not required") -> 0 | O25: 123602 | Q25: 0 | R25: 1 | S25: 1 | Y25: 28944 | Z25: Balaka
A26: =IF(INTRO!$E$33<>0,INTRO!$E$33, " ") -> MALAWI | B26: South | C26: Chikwawa | D26: 631677 | E26: =IF(INTRO!$E$48="","",ROUND($D26*INTRO!$E$48,0)) -> 73022 | F26: =IF(INTRO!$E$49="","",ROUND($D26*INTRO!$E$49,0)) -> 185776 | G26: =IF(INTRO!$E$50="","",ROUND($D26*INTRO!$E$50,0)) -> 354055 | I26: 1 | J26: 1 | K26: 2 | L26: =IF(INTRO!$E$37="Endemic",IF($H26>0,IF($H26=4,"Unknown",IF($H26=99,"Stopped",$D26)),0),"Not required") -> Not required | M26: 143176 | N26: =IF(INTRO!$E$41="Endemic", IF(AND($J26>1,$J26<5), IF($J26=4, "Unknown", E26+F26), 0),"Not required") -> 0 | O26: 242286 | Q26: 1 | R26: 1 | S26: 1 | Y26: 28946 | Z26: Chikwawa
A27: =IF(INTRO!$E$33<>0,INTRO!$E$33, " ") -> MALAWI | B27: South | C27: Chiradzulu | D27: 399214 | E27: =IF(INTRO!$E$48="","",ROUND($D27*INTRO!$E$48,0)) -> 46149 | F27: =IF(INTRO!$E$49="","",ROUND($D27*INTRO!$E$49,0)) -> 117409 | G27: =IF(INTRO!$E$50="","",ROUND($D27*INTRO!$E$50,0)) -> 223759 | I27: 1 | J27: 1 | K27: 2 | L27: =IF(INTRO!$E$37="Endemic",IF($H27>0,IF($H27=4,"Unknown",IF($H27=99,"Stopped",$D27)),0),"Not required") -> Not required | M27: 230305 | N27: =IF(INTRO!$E$41="Endemic", IF(AND($J27>1,$J27<5), IF($J27=4, "Unknown", E27+F27), 0),"Not required") -> 0 | O27: 133961 | Q27: 1 | R27: 1 | S27: 1 | Y27: 28947 | Z27: Chiradzulu
A28: =IF(INTRO!$E$33<>0,INTRO!$E$33, " ") -> MALAWI | B28: South | C28: Machinga | D28: 822690 | E28: =IF(INTRO!$E$48="","",ROUND($D28*INTRO!$E$48,0)) -> 95103 | F28: =IF(INTRO!$E$49="","",ROUND($D28*INTRO!$E$49,0)) -> 241953 | G28: =IF(INTRO!$E$50="","",ROUND($D28*INTRO!$E$50,0)) -> 461118 | I28: 0 | J28: 1 | K28: 2 | L28: =IF(INTRO!$E$37="Endemic",IF($H28>0,IF($H28=4,"Unknown",IF($H28=99,"Stopped",$D28)),0),"Not required") -> Not required | M28: 0 | N28: =IF(INTRO!$E$41="Endemic", IF(AND($J28>1,$J28<5), IF($J28=4, "Unknown", E28+F28), 0),"Not required") -> 0 | O28: 319864 | Q28: 0 | R28: 1 | S28: 1 | Y28: 28955 | Z28: Machinga
A29: =IF(INTRO!$E$33<>0,INTRO!$E$33, " ") -> MALAWI | B29: South | C29: Blantyre | D29: 1399959 | E29: =IF(INTRO!$E$48="","",ROUND($D29*INTRO!$E$48,0)) -> 161835 | F29: =IF(INTRO!$E$49="","",ROUND($D29*INTRO!$E$49,0)) -> 411728 | G29: =IF(INTRO!$E$50="","",ROUND($D29*INTRO!$E$50,0)) -> 784677 | I29: 1 | J29: 1 | K29: 2 | L29: =IF(INTRO!$E$37="Endemic",IF($H29>0,IF($H29=4,"Unknown",IF($H29=99,"Stopped",$D29)),0),"Not required") -> Not required | M29: 552317 | N29: =IF(INTRO!$E$41="Endemic", IF(AND($J29>1,$J29<5), IF($J29=4, "Unknown", E29+F29), 0),"Not required") -> 0 | O29: 355368 | Q29: 1 | R29: 1 | S29: 1 | Y29: 28945 | Z29: Blantyre
A30: =IF(INTRO!$E$33<>0,INTRO!$E$33, " ") -> MALAWI | B30: South | C30: Mangochi | D30: 1284880 | E30: =IF(INTRO!$E$48="","",ROUND($D30*INTRO!$E$48,0)) -> 148532 | F30: =IF(INTRO!$E$49="","",ROUND($D30*INTRO!$E$49,0)) -> 377883 | G30: =IF(INTRO!$E$50="","",ROUND($D30*INTRO!$E$50,0)) -> 720175 | I30: 0 | J30: 1 | K30: 3 | L30: =IF(INTRO!$E$37="Endemic",IF($H30>0,IF($H30=4,"Unknown",IF($H30=99,"Stopped",$D30)),0),"Not required") -> Not required | M30: 0 | N30: =IF(INTRO!$E$41="Endemic", IF(AND($J30>1,$J30<5), IF($J30=4, "Unknown", E30+F30), 0),"Not required") -> 0 | O30: 516497 | Q30: 0 | R30: 1 | S30: 1 | Y30: 28956 | Z30: Mangochi
A31: =IF(INTRO!$E$33<>0,INTRO!$E$33, " ") -> MALAWI | B31: South | C31: Mulanje | D31: 765268 | E31: =IF(INTRO!$E$48="","",ROUND($D31*INTRO!$E$48,0)) -> 88465 | F31: =IF(INTRO!$E$49="","",ROUND($D31*INTRO!$E$49,0)) -> 225065 | G31: =IF(INTRO!$E$50="","",ROUND($D31*INTRO!$E$50,0)) -> 428933 | I31: 1 | J31: 1 | K31: 2 | L31: =IF(INTRO!$E$37="Endemic",IF($H31>0,IF($H31=4,"Unknown",IF($H31=99,"Stopped",$D31)),0),"Not required") -> Not required | M31: 589167 | N31: =IF(INTRO!$E$41="Endemic", IF(AND($J31>1,$J31<5), IF($J31=4, "Unknown", E31+F31), 0),"Not required") -> 0 | O31: 287691 | Q31: 1 | R31: 1 | S31: 1 | Y31: 28958 | Z31: Mulanje
A32: =IF(INTRO!$E$33<>0,INTRO!$E$33, " ") -> MALAWI | B32: South | C32: Nsanje | D32: 334661 | E32: =IF(INTRO!$E$48="","",ROUND($D32*INTRO!$E$48,0)) -> 38687 | F32: =IF(INTRO!$E$49="","",ROUND($D32*INTRO!$E$49,0)) -> 98424 | G32: =IF(INTRO!$E$50="","",ROUND($D32*INTRO!$E$50,0)) -> 187577 | I32: 0 | J32: 1 | K32: 3 | L32: =IF(INTRO!$E$37="Endemic",IF($H32>0,IF($H32=4,"Unknown",IF($H32=99,"Stopped",$D32)),0),"Not required") -> Not required | M32: 0 | N32: =IF(INTRO!$E$41="Endemic", IF(AND($J32>1,$J32<5), IF($J32=4, "Unknown", E32+F32), 0),"Not required") -> 0 | O32: 136848 | Q32: 0 | R32: 1 | S32: 1 | Y32: 28964 | Z32: Nsanje
A33: =IF(INTRO!$E$33<>0,INTRO!$E$33, " ") -> MALAWI | B33: South | C33: Phalombe | D33: 480399 | E33: =IF(INTRO!$E$48="","",ROUND($D33*INTRO!$E$48,0)) -> 55534 | F33: =IF(INTRO!$E$49="","",ROUND($D33*INTRO!$E$49,0)) -> 141285 | G33: =IF(INTRO!$E$50="","",ROUND($D33*INTRO!$E$50,0)) -> 269264 | I33: 1 | J33: 1 | K33: 2 | L33: =IF(INTRO!$E$37="Endemic",IF($H33>0,IF($H33=4,"Unknown",IF($H33=99,"Stopped",$D33)),0),"Not required") -> Not required | M33: 53781 | N33: =IF(INTRO!$E$41="Endemic", IF(AND($J33>1,$J33<5), IF($J33=4, "Unknown", E33+F33), 0),"Not required") -> 0 | O33: 154123 | Q33: 1 | R33: 1 | S33: 1 | Y33: 28967 | Z33: Phalombe
A34: =IF(INTRO!$E$33<>0,INTRO!$E$33, " ") -> MALAWI | B34: South | C34: Thyolo | D34: 807049 | E34: =IF(INTRO!$E$48="","",ROUND($D34*INTRO!$E$48,0)) -> 93295 | F34: =IF(INTRO!$E$49="","",ROUND($D34*INTRO!$E$49,0)) -> 237353 | G34: =IF(INTRO!$E$50="","",ROUND($D34*INTRO!$E$50,0)) -> 452351 | I34: 1 | J34: 1 | K34: 2 | L34: =IF(INTRO!$E$37="Endemic",IF($H34>0,IF($H34=4,"Unknown",IF($H34=99,"Stopped",$D34)),0),"Not required") -> Not required | M34: 1168243 | N34: =IF(INTRO!$E$41="Endemic", IF(AND($J34>1,$J34<5), IF($J34=4, "Unknown", E34+F34), 0),"Not required") -> 0 | O34: 232544 | Q34: 1 | R34: 1 | S34: 1 | V34: Yes | Y34: 28970 | Z34: Thyolo
A35: =IF(INTRO!$E$33<>0,INTRO!$E$33, " ") -> MALAWI | B35: South | C35: Zomba | D35: 952786 | E35: =IF(INTRO!$E$48="","",ROUND($D35*INTRO!$E$48,0)) -> 110142 | F35: =IF(INTRO!$E$49="","",ROUND($D35*INTRO!$E$49,0)) -> 280214 | G35: =IF(INTRO!$E$50="","",ROUND($D35*INTRO!$E$50,0)) -> 534037 | I35: 1 | J35: 1 | K35: 2 | L35: =IF(INTRO!$E$37="Endemic",IF($H35>0,IF($H35=4,"Unknown",IF($H35=99,"Stopped",$D35)),0),"Not required") -> Not required | M35: 63391 | N35: =IF(INTRO!$E$41="Endemic", IF(AND($J35>1,$J35<5), IF($J35=4, "Unknown", E35+F35), 0),"Not required") -> 0 | O35: 343586 | Q35: 1 | R35: 1 | S35: 1 | Y35: 28971 | Z35: Zomba
A36: =IF(INTRO!$E$33<>0,INTRO!$E$33, " ") -> MALAWI | B36: South | C36: Neno | D36: 154698 | E36: =IF(INTRO!$E$48="","",ROUND($D36*INTRO!$E$48,0)) -> 17883 | F36: =IF(INTRO!$E$49="","",ROUND($D36*INTRO!$E$49,0)) -> 45497 | G36: =IF(INTRO!$E$50="","",ROUND($D36*INTRO!$E$50,0)) -> 86708 | I36: 1 | J36: 1 | K36: 1 | L36: =IF(INTRO!$E$37="Endemic",IF($H36>0,IF($H36=4,"Unknown",IF($H36=99,"Stopped",$D36)),0),"Not required") -> Not required | M36: 188392 | N36: =IF(INTRO!$E$41="Endemic", IF(AND($J36>1,$J36<5), IF($J36=4, "Unknown", E36+F36), 0),"Not required") -> 0 | O36: 42739 | Q36: 1 | R36: 1 | S36: 1 | V36: Yes | Y36: 28961 | Z36: Neno
A37: =IF(INTRO!$E$33<>0,INTRO!$E$33, " ") -> MALAWI | B37: South | C37: Mwanza | D37: 146484 | E37: =IF(INTRO!$E$48="","",ROUND($D37*INTRO!$E$48,0)) -> 16934 | F37: =IF(INTRO!$E$49="","",ROUND($D37*INTRO!$E$49,0)) -> 43081 | G37: =IF(INTRO!$E$50="","",ROUND($D37*INTRO!$E$50,0)) -> 82104 | I37: 1 | J37: 1 | K37: 2 | L37: =IF(INTRO!$E$37="Endemic",IF($H37>0,IF($H37=4,"Unknown",IF($H37=99,"Stopped",$D37)),0),"Not required") -> Not required | M37: 147888 | N37: =IF(INTRO!$E$41="Endemic", IF(AND($J37>1,$J37<5), IF($J37=4, "Unknown", E37+F37), 0),"Not required") -> 0 | O37: 56679 | Q37: 1 | R37: 1 | S37: 0 | Y37: 28959 | Z37: Mwanza

Sheet DEC (hidden)
A1: Diethylcarbamazine citrate (DEC)
A2: Administrative structure, eligible population by age group, treatment plan and information about tablets
A4: TOTAL | D4: =SUM(D$9:D$1000) -> 0 | E4: =SUM(E$9:E$1000) -> 0 | F4: =SUM(F$9:F$1000) -> 0 | G4: =SUM(G$9:G$1000) -> 0 | I4: =SUM(I$9:I$1000) -> 0 | J4: =SUM(J$9:J$1000) -> 0 | K4: =SUM(K$9:K$1000) -> 0 | L4: =SUM(L$9:L$1000) -> 0 | M4: =SUM(M$9:M$1000) -> 0
A6: Country administrative structure | D6: Population requiring treatment with DEC | H6: Treatment plan | I6: Target population | J6: Diethylcarbamazine citrate (DEC)
A7: Country | B7: Province/State | C7: District | D7: PreSAC | E7: SAC | F7: Adults | G7: Total | H7: LF | I7: LF | J7: Total required | K7: Remaining in stock | L7: Tablets to be procured | M7: Bottle (100 mg) 1000 tablets
A9: =IF(INTRO!$E$39<>"Non-endemic", " ", IF(INTRO!$E$37="Non-endemic"," ", IF(COUNTRY_INFO!A9=0," ",COUNTRY_INFO!A9))) ->  | B9: =IF(INTRO!$E$39<>"Non-endemic", " ", IF(INTRO!$E$37="Non-endemic"," ", IF(COUNTRY_INFO!B9=0," ",COUNTRY_INFO!B9))) ->  | C9: =IF(INTRO!$E$39<>"Non-endemic", " ", IF(INTRO!$E$37="Non-endemic"," ", IF(COUNTRY_INFO!C9=0," ",COUNTRY_INFO!C9))) ->  | D9: =IF(INTRO!$E$39<>"Non-endemic", 0, IF(INTRO!$E$37="Non-endemic",0,IF(COUNTRY_INFO!$H9=1,COUNTRY_INFO!E9,0))) -> 0 | E9: =IF(INTRO!$E$39<>"Non-endemic", 0, IF(INTRO!$E$37="Non-endemic",0,IF(COUNTRY_INFO!$H9=1,COUNTRY_INFO!F9,0))) -> 0 | F9: =IF(INTRO!$E$39<>"Non-endemic", 0, IF(INTRO!$E$37="Non-endemic",0,IF(COUNTRY_INFO!$H9=1,COUNTRY_INFO!G9,0))) -> 0 | G9: =SUM(D9:F9) -> 0 | H9: =IF(INTRO!$E$39="Non-endemic",IF(INTRO!$E$37="Non-endemic","Not required",COUNTRY_INFO!P9),"Treat with IVM") -> Treat with IVM | I9: =IF(H9=1,G9,0) -> 0 | J9: =IF(I9>0,I9*2.5,0) -> 0 | L9: =IF($J9>$K9,$J9-$K9,0) -> 0 | M9: =ROUNDUP($J9/1000,0) -> 0
A10: =IF(INTRO!$E$39<>"Non-endemic", " ", IF(INTRO!$E$37="Non-endemic"," ", IF(COUNTRY_INFO!A10=0," ",COUNTRY_INFO!A10))) ->  | B10: =IF(INTRO!$E$39<>"Non-endemic", " ", IF(INTRO!$E$37="Non-endemic"," ", IF(COUNTRY_INFO!B10=0," ",COUNTRY_INFO!B10))) ->  | C10: =IF(INTRO!$E$39<>"Non-endemic", " ", IF(INTRO!$E$37="Non-endemic"," ", IF(COUNTRY_INFO!C10=0," ",COUNTRY_INFO!C10))) ->  | D10: =IF(INTRO!$E$39<>"Non-endemic", 0, IF(INTRO!$E$37="Non-endemic",0,IF(COUNTRY_INFO!$H10=1,COUNTRY_INFO!E10,0))) -> 0 | E10: =IF(INTRO!$E$39<>"Non-endemic", 0, IF(INTRO!$E$37="Non-endemic",0,IF(COUNTRY_INFO!$H10=1,COUNTRY_INFO!F10,0))) -> 0 | F10: =IF(INTRO!$E$39<>"Non-endemic", 0, IF(INTRO!$E$37="Non-endemic",0,IF(COUNTRY_INFO!$H10=1,COUNTRY_INFO!G10,0))) -> 0 | G10: =SUM(D10:F10) -> 0 | H10: =IF(INTRO!$E$39="Non-endemic",IF(INTRO!$E$37="Non-endemic","Not required",COUNTRY_INFO!P10),"Treat with IVM") -> Treat with IVM | I10: =IF(H10=1,G10,0) -> 0 | J10: =IF(I10>0,I10*2.5,0) -> 0 | L10: 0 | M10: 0
A11: =IF(INTRO!$E$39<>"Non-endemic", " ", IF(INTRO!$E$37="Non-endemic"," ", IF(COUNTRY_INFO!A11=0," ",COUNTRY_INFO!A11))) ->  | B11: =IF(INTRO!$E$39<>"Non-endemic", " ", IF(INTRO!$E$37="Non-endemic"," ", IF(COUNTRY_INFO!B11=0," ",COUNTRY_INFO!B11))) ->  | C11: =IF(INTRO!$E$39<>"Non-endemic", " ", IF(INTRO!$E$37="Non-endemic"," ", IF(COUNTRY_INFO!C11=0," ",COUNTRY_INFO!C11))) ->  | D11: =IF(INTRO!$E$39<>"Non-endemic", 0, IF(INTRO!$E$37="Non-endemic",0,IF(COUNTRY_INFO!$H11=1,COUNTRY_INFO!E11,0))) -> 0 | E11: =IF(INTRO!$E$39<>"Non-endemic", 0, IF(INTRO!$E$37="Non-endemic",0,IF(COUNTRY_INFO!$H11=1,COUNTRY_INFO!F11,0))) -> 0 | F11: =IF(INTRO!$E$39<>"Non-endemic", 0, IF(INTRO!$E$37="Non-endemic",0,IF(COUNTRY_INFO!$H11=1,COUNTRY_INFO!G11,0))) -> 0 | G11: 0 | H11: =IF(INTRO!$E$39="Non-endemic",IF(INTRO!$E$37="Non-endemic","Not required",COUNTRY_INFO!P11),"Treat with IVM") -> Treat with IVM | I11: 0 | J11: 0 | L11: 0 | M11: 0
A12: =IF(INTRO!$E$39<>"Non-endemic", " ", IF(INTRO!$E$37="Non-endemic"," ", IF(COUNTRY_INFO!A12=0," ",COUNTRY_INFO!A12))) ->  | B12: =IF(INTRO!$E$39<>"Non-endemic", " ", IF(INTRO!$E$37="Non-endemic"," ", IF(COUNTRY_INFO!B12=0," ",COUNTRY_INFO!B12))) ->  | C12: =IF(INTRO!$E$39<>"Non-endemic", " ", IF(INTRO!$E$37="Non-endemic"," ", IF(COUNTRY_INFO!C12=0," ",COUNTRY_INFO!C12))) ->  | D12: =IF(INTRO!$E$39<>"Non-endemic", 0, IF(INTRO!$E$37="Non-endemic",0,IF(COUNTRY_INFO!$H12=1,COUNTRY_INFO!E12,0))) -> 0 | E12: =IF(INTRO!$E$39<>"Non-endemic", 0, IF(INTRO!$E$37="Non-endemic",0,IF(COUNTRY_INFO!$H12=1,COUNTRY_INFO!F12,0))) -> 0 | F12: =IF(INTRO!$E$39<>"Non-endemic", 0, IF(INTRO!$E$37="Non-endemic",0,IF(COUNTRY_INFO!$H12=1,COUNTRY_INFO!G12,0))) -> 0 | G12: 0 | H12: =IF(INTRO!$E$39="Non-endemic",IF(INTRO!$E$37="Non-endemic","Not required",COUNTRY_INFO!P12),"Treat with IVM") -> Treat with IVM | I12: 0 | J12: 0 | L12: 0 | M12: 0
A13: =IF(INTRO!$E$39<>"Non-endemic", " ", IF(INTRO!$E$37="Non-endemic"," ", IF(COUNTRY_INFO!A13=0," ",COUNTRY_INFO!A13))) ->  | B13: =IF(INTRO!$E$39<>"Non-endemic", " ", IF(INTRO!$E$37="Non-endemic"," ", IF(COUNTRY_INFO!B13=0," ",COUNTRY_INFO!B13))) ->  | C13: =IF(INTRO!$E$39<>"Non-endemic", " ", IF(INTRO!$E$37="Non-endemic"," ", IF(COUNTRY_INFO!C13=0," ",COUNTRY_INFO!C13))) ->  | D13: =IF(INTRO!$E$39<>"Non-endemic", 0, IF(INTRO!$E$37="Non-endemic",0,IF(COUNTRY_INFO!$H13=1,COUNTRY_INFO!E13,0))) -> 0 | E13: =IF(INTRO!$E$39<>"Non-endemic", 0, IF(INTRO!$E$37="Non-endemic",0,IF(COUNTRY_INFO!$H13=1,COUNTRY_INFO!F13,0))) -> 0 | F13: =IF(INTRO!$E$39<>"Non-endemic", 0, IF(INTRO!$E$37="Non-endemic",0,IF(COUNTRY_INFO!$H13=1,COUNTRY_INFO!G13,0))) -> 0 | G13: 0 | H13: =IF(INTRO!$E$39="Non-endemic",IF(INTRO!$E$37="Non-endemic","Not required",COUNTRY_INFO!P13),"Treat with IVM") -> Treat with IVM | I13: 0 | J13: 0 | L13: 0 | M13: 0
A14: =IF(INTRO!$E$39<>"Non-endemic", " ", IF(INTRO!$E$37="Non-endemic"," ", IF(COUNTRY_INFO!A14=0," ",COUNTRY_INFO!A14))) ->  | B14: =IF(INTRO!$E$39<>"Non-endemic", " ", IF(INTRO!$E$37="Non-endemic"," ", IF(COUNTRY_INFO!B14=0," ",COUNTRY_INFO!B14))) ->  | C14: =IF(INTRO!$E$39<>"Non-endemic", " ", IF(INTRO!$E$37="Non-endemic"," ", IF(COUNTRY_INFO!C14=0," ",COUNTRY_INFO!C14))) ->  | D14: =IF(INTRO!$E$39<>"Non-endemic", 0, IF(INTRO!$E$37="Non-endemic",0,IF(COUNTRY_INFO!$H14=1,COUNTRY_INFO!E14,0))) -> 0 | E14: =IF(INTRO!$E$39<>"Non-endemic", 0, IF(INTRO!$E$37="Non-endemic",0,IF(COUNTRY_INFO!$H14=1,COUNTRY_INFO!F14,0))) -> 0 | F14: =IF(INTRO!$E$39<>"Non-endemic", 0, IF(INTRO!$E$37="Non-endemic",0,IF(COUNTRY_INFO!$H14=1,COUNTRY_INFO!G14,0))) -> 0 | G14: 0 | H14: =IF(INTRO!$E$39="Non-endemic",IF(INTRO!$E$37="Non-endemic","Not required",COUNTRY_INFO!P14),"Treat with IVM") -> Treat with IVM | I14: 0 | J14: 0 | L14: 0 | M14: 0
A15: =IF(INTRO!$E$39<>"Non-endemic", " ", IF(INTRO!$E$37="Non-endemic"," ", IF(COUNTRY_INFO!A15=0," ",COUNTRY_INFO!A15))) ->  | B15: =IF(INTRO!$E$39<>"Non-endemic", " ", IF(INTRO!$E$37="Non-endemic"," ", IF(COUNTRY_INFO!B15=0," ",COUNTRY_INFO!B15))) ->  | C15: =IF(INTRO!$E$39<>"Non-endemic", " ", IF(INTRO!$E$37="Non-endemic"," ", IF(COUNTRY_INFO!C15=0," ",COUNTRY_INFO!C15))) ->  | D15: =IF(INTRO!$E$39<>"Non-endemic", 0, IF(INTRO!$E$37="Non-endemic",0,IF(COUNTRY_INFO!$H15=1,COUNTRY_INFO!E15,0))) -> 0 | E15: =IF(INTRO!$E$39<>"Non-endemic", 0, IF(INTRO!$E$37="Non-endemic",0,IF(COUNTRY_INFO!$H15=1,COUNTRY_INFO!F15,0))) -> 0 | F15: =IF(INTRO!$E$39<>"Non-endemic", 0, IF(INTRO!$E$37="Non-endemic",0,IF(COUNTRY_INFO!$H15=1,COUNTRY_INFO!G15,0))) -> 0 | G15: 0 | H15: =IF(INTRO!$E$39="Non-endemic",IF(INTRO!$E$37="Non-endemic","Not required",COUNTRY_INFO!P15),"Treat with IVM") -> Treat with IVM | I15: 0 | J15: 0 | L15: 0 | M15: 0
A16: =IF(INTRO!$E$39<>"Non-endemic", " ", IF(INTRO!$E$37="Non-endemic"," ", IF(COUNTRY_INFO!A16=0," ",COUNTRY_INFO!A16))) ->  | B16: =IF(INTRO!$E$39<>"Non-endemic", " ", IF(INTRO!$E$37="Non-endemic"," ", IF(COUNTRY_INFO!B16=0," ",COUNTRY_INFO!B16))) ->  | C16: =IF(INTRO!$E$39<>"Non-endemic", " ", IF(INTRO!$E$37="Non-endemic"," ", IF(COUNTRY_INFO!C16=0," ",COUNTRY_INFO!C16))) ->  | D16: =IF(INTRO!$E$39<>"Non-endemic", 0, IF(INTRO!$E$37="Non-endemic",0,IF(COUNTRY_INFO!$H16=1,COUNTRY_INFO!E16,0))) -> 0 | E16: =IF(INTRO!$E$39<>"Non-endemic", 0, IF(INTRO!$E$37="Non-endemic",0,IF(COUNTRY_INFO!$H16=1,COUNTRY_INFO!F16,0))) -> 0 | F16: =IF(INTRO!$E$39<>"Non-endemic", 0, IF(INTRO!$E$37="Non-endemic",0,IF(COUNTRY_INFO!$H16=1,COUNTRY_INFO!G16,0))) -> 0 | G16: 0 | H16: =IF(INTRO!$E$39="Non-endemic",IF(INTRO!$E$37="Non-endemic","Not required",COUNTRY_INFO!P16),"Treat with IVM") -> Treat with IVM | I16: 0 | J16: 0 | L16: 0 | M16: 0
A17: =IF(INTRO!$E$39<>"Non-endemic", " ", IF(INTRO!$E$37="Non-endemic"," ", IF(COUNTRY_INFO!A17=0," ",COUNTRY_INFO!A17))) ->  | B17: =IF(INTRO!$E$39<>"Non-endemic", " ", IF(INTRO!$E$37="Non-endemic"," ", IF(COUNTRY_INFO!B17=0," ",COUNTRY_INFO!B17))) ->  | C17: =IF(INTRO!$E$39<>"Non-endemic", " ", IF(INTRO!$E$37="Non-endemic"," ", IF(COUNTRY_INFO!C17=0," ",COUNTRY_INFO!C17))) ->  | D17: =IF(INTRO!$E$39<>"Non-endemic", 0, IF(INTRO!$E$37="Non-endemic",0,IF(COUNTRY_INFO!$H17=1,COUNTRY_INFO!E17,0))) -> 0 | E17: =IF(INTRO!$E$39<>"Non-endemic", 0, IF(INTRO!$E$37="Non-endemic",0,IF(COUNTRY_INFO!$H17=1,COUNTRY_INFO!F17,0))) -> 0 | F17: =IF(INTRO!$E$39<>"Non-endemic", 0, IF(INTRO!$E$37="Non-endemic",0,IF(COUNTRY_INFO!$H17=1,COUNTRY_INFO!G17,0))) -> 0 | G17: 0 | H17: =IF(INTRO!$E$39="Non-endemic",IF(INTRO!$E$37="Non-endemic","Not required",COUNTRY_INFO!P17),"Treat with IVM") -> Treat with IVM | I17: 0 | J17: 0 | L17: 0 | M17: 0
A18: =IF(INTRO!$E$39<>"Non-endemic", " ", IF(INTRO!$E$37="Non-endemic"," ", IF(COUNTRY_INFO!A18=0," ",COUNTRY_INFO!A18))) ->  | B18: =IF(INTRO!$E$39<>"Non-endemic", " ", IF(INTRO!$E$37="Non-endemic"," ", IF(COUNTRY_INFO!B18=0," ",COUNTRY_INFO!B18))) ->  | C18: =IF(INTRO!$E$39<>"Non-endemic", " ", IF(INTRO!$E$37="Non-endemic"," ", IF(COUNTRY_INFO!C18=0," ",COUNTRY_INFO!C18))) ->  | D18: =IF(INTRO!$E$39<>"Non-endemic", 0, IF(INTRO!$E$37="Non-endemic",0,IF(COUNTRY_INFO!$H18=1,COUNTRY_INFO!E18,0))) -> 0 | E18: =IF(INTRO!$E$39<>"Non-endemic", 0, IF(INTRO!$E$37="Non-endemic",0,IF(COUNTRY_INFO!$H18=1,COUNTRY_INFO!F18,0))) -> 0 | F18: =IF(INTRO!$E$39<>"Non-endemic", 0, IF(INTRO!$E$37="Non-endemic",0,IF(COUNTRY_INFO!$H18=1,COUNTRY_INFO!G18,0))) -> 0 | G18: 0 | H18: =IF(INTRO!$E$39="Non-endemic",IF(INTRO!$E$37="Non-endemic","Not required",COUNTRY_INFO!P18),"Treat with IVM") -> Treat with IVM | I18: 0 | J18: 0 | L18: 0 | M18: 0
A19: =IF(INTRO!$E$39<>"Non-endemic", " ", IF(INTRO!$E$37="Non-endemic"," ", IF(COUNTRY_INFO!A19=0," ",COUNTRY_INFO!A19))) ->  | B19: =IF(INTRO!$E$39<>"Non-endemic", " ", IF(INTRO!$E$37="Non-endemic"," ", IF(COUNTRY_INFO!B19=0," ",COUNTRY_INFO!B19))) ->  | C19: =IF(INTRO!$E$39<>"Non-endemic", " ", IF(INTRO!$E$37="Non-endemic"," ", IF(COUNTRY_INFO!C19=0," ",COUNTRY_INFO!C19))) ->  | D19: =IF(INTRO!$E$39<>"Non-endemic", 0, IF(INTRO!$E$37="Non-endemic",0,IF(COUNTRY_INFO!$H19=1,COUNTRY_INFO!E19,0))) -> 0 | E19: =IF(INTRO!$E$39<>"Non-endemic", 0, IF(INTRO!$E$37="Non-endemic",0,IF(COUNTRY_INFO!$H19=1,COUNTRY_INFO!F19,0))) -> 0 | F19: =IF(INTRO!$E$39<>"Non-endemic", 0, IF(INTRO!$E$37="Non-endemic",0,IF(COUNTRY_INFO!$H19=1,COUNTRY_INFO!G19,0))) -> 0 | G19: 0 | H19: =IF(INTRO!$E$39="Non-endemic",IF(INTRO!$E$37="Non-endemic","Not required",COUNTRY_INFO!P19),"Treat with IVM") -> Treat with IVM | I19: 0 | J19: 0 | L19: 0 | M19: 0
A20: =IF(INTRO!$E$39<>"Non-endemic", " ", IF(INTRO!$E$37="Non-endemic"," ", IF(COUNTRY_INFO!A20=0," ",COUNTRY_INFO!A20))) ->  | B20: =IF(INTRO!$E$39<>"Non-endemic", " ", IF(INTRO!$E$37="Non-endemic"," ", IF(COUNTRY_INFO!B20=0," ",COUNTRY_INFO!B20))) ->  | C20: =IF(INTRO!$E$39<>"Non-endemic", " ", IF(INTRO!$E$37="Non-endemic"," ", IF(COUNTRY_INFO!C20=0," ",COUNTRY_INFO!C20))) ->  | D20: =IF(INTRO!$E$39<>"Non-endemic", 0, IF(INTRO!$E$37="Non-endemic",0,IF(COUNTRY_INFO!$H20=1,COUNTRY_INFO!E20,0))) -> 0 | E20: =IF(INTRO!$E$39<>"Non-endemic", 0, IF(INTRO!$E$37="Non-endemic",0,IF(COUNTRY_INFO!$H20=1,COUNTRY_INFO!F20,0))) -> 0 | F20: =IF(INTRO!$E$39<>"Non-endemic", 0, IF(INTRO!$E$37="Non-endemic",0,IF(COUNTRY_INFO!$H20=1,COUNTRY_INFO!G20,0))) -> 0 | G20: 0 | H20: =IF(INTRO!$E$39="Non-endemic",IF(INTRO!$E$37="Non-endemic","Not required",COUNTRY_INFO!P20),"Treat with IVM") -> Treat with IVM | I20: 0 | J20: 0 | L20: 0 | M20: 0
A21: =IF(INTRO!$E$39<>"Non-endemic", " ", IF(INTRO!$E$37="Non-endemic"," ", IF(COUNTRY_INFO!A21=0," ",COUNTRY_INFO!A21))) ->  | B21: =IF(INTRO!$E$39<>"Non-endemic", " ", IF(INTRO!$E$37="Non-endemic"," ", IF(COUNTRY_INFO!B21=0," ",COUNTRY_INFO!B21))) ->  | C21: =IF(INTRO!$E$39<>"Non-endemic", " ", IF(INTRO!$E$37="Non-endemic"," ", IF(COUNTRY_INFO!C21=0," ",COUNTRY_INFO!C21))) ->  | D21: =IF(INTRO!$E$39<>"Non-endemic", 0, IF(INTRO!$E$37="Non-endemic",0,IF(COUNTRY_INFO!$H21=1,COUNTRY_INFO!E21,0))) -> 0 | E21: =IF(INTRO!$E$39<>"Non-endemic", 0, IF(INTRO!$E$37="Non-endemic",0,IF(COUNTRY_INFO!$H21=1,COUNTRY_INFO!F21,0))) -> 0 | F21: =IF(INTRO!$E$39<>"Non-endemic", 0, IF(INTRO!$E$37="Non-endemic",0,IF(COUNTRY_INFO!$H21=1,COUNTRY_INFO!G21,0))) -> 0 | G21: 0 | H21: =IF(INTRO!$E$39="Non-endemic",IF(INTRO!$E$37="Non-endemic","Not required",COUNTRY_INFO!P21),"Treat with IVM") -> Treat with IVM | I21: 0 | J21: 0 | L21: 0 | M21: 0
A22: =IF(INTRO!$E$39<>"Non-endemic", " ", IF(INTRO!$E$37="Non-endemic"," ", IF(COUNTRY_INFO!A22=0," ",COUNTRY_INFO!A22))) ->  | B22: =IF(INTRO!$E$39<>"Non-endemic", " ", IF(INTRO!$E$37="Non-endemic"," ", IF(COUNTRY_INFO!B22=0," ",COUNTRY_INFO!B22))) ->  | C22: =IF(INTRO!$E$39<>"Non-endemic", " ", IF(INTRO!$E$37="Non-endemic"," ", IF(COUNTRY_INFO!C22=0," ",COUNTRY_INFO!C22))) ->  | D22: =IF(INTRO!$E$39<>"Non-endemic", 0, IF(INTRO!$E$37="Non-endemic",0,IF(COUNTRY_INFO!$H22=1,COUNTRY_INFO!E22,0))) -> 0 | E22: =IF(INTRO!$E$39<>"Non-endemic", 0, IF(INTRO!$E$37="Non-endemic",0,IF(COUNTRY_INFO!$H22=1,COUNTRY_INFO!F22,0))) -> 0 | F22: =IF(INTRO!$E$39<>"Non-endemic", 0, IF(INTRO!$E$37="Non-endemic",0,IF(COUNTRY_INFO!$H22=1,COUNTRY_INFO!G22,0))) -> 0 | G22: 0 | H22: =IF(INTRO!$E$39="Non-endemic",IF(INTRO!$E$37="Non-endemic","Not required",COUNTRY_INFO!P22),"Treat with IVM") -> Treat with IVM | I22: 0 | J22: 0 | L22: 0 | M22: 0
A23: =IF(INTRO!$E$39<>"Non-endemic", " ", IF(INTRO!$E$37="Non-endemic"," ", IF(COUNTRY_INFO!A23=0," ",COUNTRY_INFO!A23))) ->  | B23: =IF(INTRO!$E$39<>"Non-endemic", " ", IF(INTRO!$E$37="Non-endemic"," ", IF(COUNTRY_INFO!B23=0," ",COUNTRY_INFO!B23))) ->  | C23: =IF(INTRO!$E$39<>"Non-endemic", " ", IF(INTRO!$E$37="Non-endemic"," ", IF(COUNTRY_INFO!C23=0," ",COUNTRY_INFO!C23))) ->  | D23: =IF(INTRO!$E$39<>"Non-endemic", 0, IF(INTRO!$E$37="Non-endemic",0,IF(COUNTRY_INFO!$H23=1,COUNTRY_INFO!E23,0))) -> 0 | E23: =IF(INTRO!$E$39<>"Non-endemic", 0, IF(INTRO!$E$37="Non-endemic",0,IF(COUNTRY_INFO!$H23=1,COUNTRY_INFO!F23,0))) -> 0 | F23: =IF(INTRO!$E$39<>"Non-endemic", 0, IF(INTRO!$E$37="Non-endemic",0,IF(COUNTRY_INFO!$H23=1,COUNTRY_INFO!G23,0))) -> 0 | G23: 0 | H23: =IF(INTRO!$E$39="Non-endemic",IF(INTRO!$E$37="Non-endemic","Not required",COUNTRY_INFO!P23),"Treat with IVM") -> Treat with IVM | I23: 0 | J23: 0 | L23: 0 | M23: 0
A24: =IF(INTRO!$E$39<>"Non-endemic", " ", IF(INTRO!$E$37="Non-endemic"," ", IF(COUNTRY_INFO!A24=0," ",COUNTRY_INFO!A24))) ->  | B24: =IF(INTRO!$E$39<>"Non-endemic", " ", IF(INTRO!$E$37="Non-endemic"," ", IF(COUNTRY_INFO!B24=0," ",COUNTRY_INFO!B24))) ->  | C24: =IF(INTRO!$E$39<>"Non-endemic", " ", IF(INTRO!$E$37="Non-endemic"," ", IF(COUNTRY_INFO!C24=0," ",COUNTRY_INFO!C24))) ->  | D24: =IF(INTRO!$E$39<>"Non-endemic", 0, IF(INTRO!$E$37="Non-endemic",0,IF(COUNTRY_INFO!$H24=1,COUNTRY_INFO!E24,0))) -> 0 | E24: =IF(INTRO!$E$39<>"Non-endemic", 0, IF(INTRO!$E$37="Non-endemic",0,IF(COUNTRY_INFO!$H24=1,COUNTRY_INFO!F24,0))) -> 0 | F24: =IF(INTRO!$E$39<>"Non-endemic", 0, IF(INTRO!$E$37="Non-endemic",0,IF(COUNTRY_INFO!$H24=1,COUNTRY_INFO!G24,0))) -> 0 | G24: 0 | H24: =IF(INTRO!$E$39="Non-endemic",IF(INTRO!$E$37="Non-endemic","Not required",COUNTRY_INFO!P24),"Treat with IVM") -> Treat with IVM | I24: 0 | J24: 0 | L24: 0 | M24: 0
A25: =IF(INTRO!$E$39<>"Non-endemic", " ", IF(INTRO!$E$37="Non-endemic"," ", IF(COUNTRY_INFO!A25=0," ",COUNTRY_INFO!A25))) ->  | B25: =IF(INTRO!$E$39<>"Non-endemic", " ", IF(INTRO!$E$37="Non-endemic"," ", IF(COUNTRY_INFO!B25=0," ",COUNTRY_INFO!B25))) ->  | C25: =IF(INTRO!$E$39<>"Non-endemic", " ", IF(INTRO!$E$37="Non-endemic"," ", IF(COUNTRY_INFO!C25=0," ",COUNTRY_INFO!C25))) ->  | D25: =IF(INTRO!$E$39<>"Non-endemic", 0, IF(INTRO!$E$37="Non-endemic",0,IF(COUNTRY_INFO!$H25=1,COUNTRY_INFO!E25,0))) -> 0 | E25: =IF(INTRO!$E$39<>"Non-endemic", 0, IF(INTRO!$E$37="Non-endemic",0,IF(COUNTRY_INFO!$H25=1,COUNTRY_INFO!F25,0))) -> 0 | F25: =IF(INTRO!$E$39<>"Non-endemic", 0, IF(INTRO!$E$37="Non-endemic",0,IF(COUNTRY_INFO!$H25=1,COUNTRY_INFO!G25,0))) -> 0 | G25: 0 | H25: =IF(INTRO!$E$39="Non-endemic",IF(INTRO!$E$37="Non-endemic","Not required",COUNTRY_INFO!P25),"Treat with IVM") -> Treat with IVM | I25: 0 | J25: 0 | L25: 0 | M25: 0
A26: =IF(INTRO!$E$39<>"Non-endemic", " ", IF(INTRO!$E$37="Non-endemic"," ", IF(COUNTRY_INFO!A26=0," ",COUNTRY_INFO!A26))) ->  | B26: =IF(INTRO!$E$39<>"Non-endemic", " ", IF(INTRO!$E$37="Non-endemic"," ", IF(COUNTRY_INFO!B26=0," ",COUNTRY_INFO!B26))) ->  | C26: =IF(INTRO!$E$39<>"Non-endemic", " ", IF(INTRO!$E$37="Non-endemic"," ", IF(COUNTRY_INFO!C26=0," ",COUNTRY_INFO!C26))) ->  | D26: =IF(INTRO!$E$39<>"Non-endemic", 0, IF(INTRO!$E$37="Non-endemic",0,IF(COUNTRY_INFO!$H26=1,COUNTRY_INFO!E26,0))) -> 0 | E26: =IF(INTRO!$E$39<>"Non-endemic", 0, IF(INTRO!$E$37="Non-endemic",0,IF(COUNTRY_INFO!$H26=1,COUNTRY_INFO!F26,0))) -> 0 | F26: =IF(INTRO!$E$39<>"Non-endemic", 0, IF(INTRO!$E$37="Non-endemic",0,IF(COUNTRY_INFO!$H26=1,COUNTRY_INFO!G26,0))) -> 0 | G26: 0 | H26: =IF(INTRO!$E$39="Non-endemic",IF(INTRO!$E$37="Non-endemic","Not required",COUNTRY_INFO!P26),"Treat with IVM") -> Treat with IVM | I26: 0 | J26: 0 | L26: 0 | M26: 0
A27: =IF(INTRO!$E$39<>"Non-endemic", " ", IF(INTRO!$E$37="Non-endemic"," ", IF(COUNTRY_INFO!A27=0," ",COUNTRY_INFO!A27))) ->  | B27: =IF(INTRO!$E$39<>"Non-endemic", " ", IF(INTRO!$E$37="Non-endemic"," ", IF(COUNTRY_INFO!B27=0," ",COUNTRY_INFO!B27))) ->  | C27: =IF(INTRO!$E$39<>"Non-endemic", " ", IF(INTRO!$E$37="Non-endemic"," ", IF(COUNTRY_INFO!C27=0," ",COUNTRY_INFO!C27))) ->  | D27: =IF(INTRO!$E$39<>"Non-endemic", 0, IF(INTRO!$E$37="Non-endemic",0,IF(COUNTRY_INFO!$H27=1,COUNTRY_INFO!E27,0))) -> 0 | E27: =IF(INTRO!$E$39<>"Non-endemic", 0, IF(INTRO!$E$37="Non-endemic",0,IF(COUNTRY_INFO!$H27=1,COUNTRY_INFO!F27,0))) -> 0 | F27: =IF(INTRO!$E$39<>"Non-endemic", 0, IF(INTRO!$E$37="Non-endemic",0,IF(COUNTRY_INFO!$H27=1,COUNTRY_INFO!G27,0))) -> 0 | G27: 0 | H27: =IF(INTRO!$E$39="Non-endemic",IF(INTRO!$E$37="Non-endemic","Not required",COUNTRY_INFO!P27),"Treat with IVM") -> Treat with IVM | I27: 0 | J27: 0 | L27: 0 | M27: 0
A28: =IF(INTRO!$E$39<>"Non-endemic", " ", IF(INTRO!$E$37="Non-endemic"," ", IF(COUNTRY_INFO!A28=0," ",COUNTRY_INFO!A28))) ->  | B28: =IF(INTRO!$E$39<>"Non-endemic", " ", IF(INTRO!$E$37="Non-endemic"," ", IF(COUNTRY_INFO!B28=0," ",COUNTRY_INFO!B28))) ->  | C28: =IF(INTRO!$E$39<>"Non-endemic", " ", IF(INTRO!$E$37="Non-endemic"," ", IF(COUNTRY_INFO!C28=0," ",COUNTRY_INFO!C28))) ->  | D28: =IF(INTRO!$E$39<>"Non-endemic", 0, IF(INTRO!$E$37="Non-endemic",0,IF(COUNTRY_INFO!$H28=1,COUNTRY_INFO!E28,0))) -> 0 | E28: =IF(INTRO!$E$39<>"Non-endemic", 0, IF(INTRO!$E$37="Non-endemic",0,IF(COUNTRY_INFO!$H28=1,COUNTRY_INFO!F28,0))) -> 0 | F28: =IF(INTRO!$E$39<>"Non-endemic", 0, IF(INTRO!$E$37="Non-endemic",0,IF(COUNTRY_INFO!$H28=1,COUNTRY_INFO!G28,0))) -> 0 | G28: 0 | H28: =IF(INTRO!$E$39="Non-endemic",IF(INTRO!$E$37="Non-endemic","Not required",COUNTRY_INFO!P28),"Treat with IVM") -> Treat with IVM | I28: 0 | J28: 0 | L28: 0 | M28: 0
A29: =IF(INTRO!$E$39<>"Non-endemic", " ", IF(INTRO!$E$37="Non-endemic"," ", IF(COUNTRY_INFO!A29=0," ",COUNTRY_INFO!A29))) ->  | B29: =IF(INTRO!$E$39<>"Non-endemic", " ", IF(INTRO!$E$37="Non-endemic"," ", IF(COUNTRY_INFO!B29=0," ",COUNTRY_INFO!B29))) ->  | C29: =IF(INTRO!$E$39<>"Non-endemic", " ", IF(INTRO!$E$37="Non-endemic"," ", IF(COUNTRY_INFO!C29=0," ",COUNTRY_INFO!C29))) ->  | D29: =IF(INTRO!$E$39<>"Non-endemic", 0, IF(INTRO!$E$37="Non-endemic",0,IF(COUNTRY_INFO!$H29=1,COUNTRY_INFO!E29,0))) -> 0 | E29: =IF(INTRO!$E$39<>"Non-endemic", 0, IF(INTRO!$E$37="Non-endemic",0,IF(COUNTRY_INFO!$H29=1,COUNTRY_INFO!F29,0))) -> 0 | F29: =IF(INTRO!$E$39<>"Non-endemic", 0, IF(INTRO!$E$37="Non-endemic",0,IF(COUNTRY_INFO!$H29=1,COUNTRY_INFO!G29,0))) -> 0 | G29: 0 | H29: =IF(INTRO!$E$39="Non-endemic",IF(INTRO!$E$37="Non-endemic","Not required",COUNTRY_INFO!P29),"Treat with IVM") -> Treat with IVM | I29: 0 | J29: 0 | L29: 0 | M29: 0
A30: =IF(INTRO!$E$39<>"Non-endemic", " ", IF(INTRO!$E$37="Non-endemic"," ", IF(COUNTRY_INFO!A30=0," ",COUNTRY_INFO!A30))) ->  | B30: =IF(INTRO!$E$39<>"Non-endemic", " ", IF(INTRO!$E$37="Non-endemic"," ", IF(COUNTRY_INFO!B30=0," ",COUNTRY_INFO!B30))) ->  | C30: =IF(INTRO!$E$39<>"Non-endemic", " ", IF(INTRO!$E$37="Non-endemic"," ", IF(COUNTRY_INFO!C30=0," ",COUNTRY_INFO!C30))) ->  | D30: =IF(INTRO!$E$39<>"Non-endemic", 0, IF(INTRO!$E$37="Non-endemic",0,IF(COUNTRY_INFO!$H30=1,COUNTRY_INFO!E30,0))) -> 0 | E30: =IF(INTRO!$E$39<>"Non-endemic", 0, IF(INTRO!$E$37="Non-endemic",0,IF(COUNTRY_INFO!$H30=1,COUNTRY_INFO!F30,0))) -> 0 | F30: =IF(INTRO!$E$39<>"Non-endemic", 0, IF(INTRO!$E$37="Non-endemic",0,IF(COUNTRY_INFO!$H30=1,COUNTRY_INFO!G30,0))) -> 0 | G30: 0 | H30: =IF(INTRO!$E$39="Non-endemic",IF(INTRO!$E$37="Non-endemic","Not required",COUNTRY_INFO!P30),"Treat with IVM") -> Treat with IVM | I30: 0 | J30: 0 | L30: 0 | M30: 0
A31: =IF(INTRO!$E$39<>"Non-endemic", " ", IF(INTRO!$E$37="Non-endemic"," ", IF(COUNTRY_INFO!A31=0," ",COUNTRY_INFO!A31))) ->  | B31: =IF(INTRO!$E$39<>"Non-endemic", " ", IF(INTRO!$E$37="Non-endemic"," ", IF(COUNTRY_INFO!B31=0," ",COUNTRY_INFO!B31))) ->  | C31: =IF(INTRO!$E$39<>"Non-endemic", " ", IF(INTRO!$E$37="Non-endemic"," ", IF(COUNTRY_INFO!C31=0," ",COUNTRY_INFO!C31))) ->  | D31: =IF(INTRO!$E$39<>"Non-endemic", 0, IF(INTRO!$E$37="Non-endemic",0,IF(COUNTRY_INFO!$H31=1,COUNTRY_INFO!E31,0))) -> 0 | E31: =IF(INTRO!$E$39<>"Non-endemic", 0, IF(INTRO!$E$37="Non-endemic",0,IF(COUNTRY_INFO!$H31=1,COUNTRY_INFO!F31,0))) -> 0 | F31: =IF(INTRO!$E$39<>"Non-endemic", 0, IF(INTRO!$E$37="Non-endemic",0,IF(COUNTRY_INFO!$H31=1,COUNTRY_INFO!G31,0))) -> 0 | G31: 0 | H31: =IF(INTRO!$E$39="Non-endemic",IF(INTRO!$E$37="Non-endemic","Not required",COUNTRY_INFO!P31),"Treat with IVM") -> Treat with IVM | I31: 0 | J31: 0 | L31: 0 | M31: 0
A32: =IF(INTRO!$E$39<>"Non-endemic", " ", IF(INTRO!$E$37="Non-endemic"," ", IF(COUNTRY_INFO!A32=0," ",COUNTRY_INFO!A32))) ->  | B32: =IF(INTRO!$E$39<>"Non-endemic", " ", IF(INTRO!$E$37="Non-endemic"," ", IF(COUNTRY_INFO!B32=0," ",COUNTRY_INFO!B32))) ->  | C32: =IF(INTRO!$E$39<>"Non-endemic", " ", IF(INTRO!$E$37="Non-endemic"," ", IF(COUNTRY_INFO!C32=0," ",COUNTRY_INFO!C32))) ->  | D32: =IF(INTRO!$E$39<>"Non-endemic", 0, IF(INTRO!$E$37="Non-endemic",0,IF(COUNTRY_INFO!$H32=1,COUNTRY_INFO!E32,0))) -> 0 | E32: =IF(INTRO!$E$39<>"Non-endemic", 0, IF(INTRO!$E$37="Non-endemic",0,IF(COUNTRY_INFO!$H32=1,COUNTRY_INFO!F32,0))) -> 0 | F32: =IF(INTRO!$E$39<>"Non-endemic", 0, IF(INTRO!$E$37="Non-endemic",0,IF(COUNTRY_INFO!$H32=1,COUNTRY_INFO!G32,0))) -> 0 | G32: 0 | H32: =IF(INTRO!$E$39="Non-endemic",IF(INTRO!$E$37="Non-endemic","Not required",COUNTRY_INFO!P32),"Treat with IVM") -> Treat with IVM | I32: 0 | J32: 0 | L32: 0 | M32: 0
A33: =IF(INTRO!$E$39<>"Non-endemic", " ", IF(INTRO!$E$37="Non-endemic"," ", IF(COUNTRY_INFO!A33=0," ",COUNTRY_INFO!A33))) ->  | B33: =IF(INTRO!$E$39<>"Non-endemic", " ", IF(INTRO!$E$37="Non-endemic"," ", IF(COUNTRY_INFO!B33=0," ",COUNTRY_INFO!B33))) ->  | C33: =IF(INTRO!$E$39<>"Non-endemic", " ", IF(INTRO!$E$37="Non-endemic"," ", IF(COUNTRY_INFO!C33=0," ",COUNTRY_INFO!C33))) ->  | D33: =IF(INTRO!$E$39<>"Non-endemic", 0, IF(INTRO!$E$37="Non-endemic",0,IF(COUNTRY_INFO!$H33=1,COUNTRY_INFO!E33,0))) -> 0 | E33: =IF(INTRO!$E$39<>"Non-endemic", 0, IF(INTRO!$E$37="Non-endemic",0,IF(COUNTRY_INFO!$H33=1,COUNTRY_INFO!F33,0))) -> 0 | F33: =IF(INTRO!$E$39<>"Non-endemic", 0, IF(INTRO!$E$37="Non-endemic",0,IF(COUNTRY_INFO!$H33=1,COUNTRY_INFO!G33,0))) -> 0 | G33: 0 | H33: =IF(INTRO!$E$39="Non-endemic",IF(INTRO!$E$37="Non-endemic","Not required",COUNTRY_INFO!P33),"Treat with IVM") -> Treat with IVM | I33: 0 | J33: 0 | L33: 0 | M33: 0
A34: =IF(INTRO!$E$39<>"Non-endemic", " ", IF(INTRO!$E$37="Non-endemic"," ", IF(COUNTRY_INFO!A34=0," ",COUNTRY_INFO!A34))) ->  | B34: =IF(INTRO!$E$39<>"Non-endemic", " ", IF(INTRO!$E$37="Non-endemic"," ", IF(COUNTRY_INFO!B34=0," ",COUNTRY_INFO!B34))) ->  | C34: =IF(INTRO!$E$39<>"Non-endemic", " ", IF(INTRO!$E$37="Non-endemic"," ", IF(COUNTRY_INFO!C34=0," ",COUNTRY_INFO!C34))) ->  | D34: =IF(INTRO!$E$39<>"Non-endemic", 0, IF(INTRO!$E$37="Non-endemic",0,IF(COUNTRY_INFO!$H34=1,COUNTRY_INFO!E34,0))) -> 0 | E34: =IF(INTRO!$E$39<>"Non-endemic", 0, IF(INTRO!$E$37="Non-endemic",0,IF(COUNTRY_INFO!$H34=1,COUNTRY_INFO!F34,0))) -> 0 | F34: =IF(INTRO!$E$39<>"Non-endemic", 0, IF(INTRO!$E$37="Non-endemic",0,IF(COUNTRY_INFO!$H34=1,COUNTRY_INFO!G34,0))) -> 0 | G34: 0 | H34: =IF(INTRO!$E$39="Non-endemic",IF(INTRO!$E$37="Non-endemic","Not required",COUNTRY_INFO!P34),"Treat with IVM") -> Treat with IVM | I34: 0 | J34: 0 | L34: 0 | M34: 0
A35: =IF(INTRO!$E$39<>"Non-endemic", " ", IF(INTRO!$E$37="Non-endemic"," ", IF(COUNTRY_INFO!A35=0," ",COUNTRY_INFO!A35))) ->  | B35: =IF(INTRO!$E$39<>"Non-endemic", " ", IF(INTRO!$E$37="Non-endemic"," ", IF(COUNTRY_INFO!B35=0," ",COUNTRY_INFO!B35))) ->  | C35: =IF(INTRO!$E$39<>"Non-endemic", " ", IF(INTRO!$E$37="Non-endemic"," ", IF(COUNTRY_INFO!C35=0," ",COUNTRY_INFO!C35))) ->  | D35: =IF(INTRO!$E$39<>"Non-endemic", 0, IF(INTRO!$E$37="Non-endemic",0,IF(COUNTRY_INFO!$H35=1,COUNTRY_INFO!E35,0))) -> 0 | E35: =IF(INTRO!$E$39<>"Non-endemic", 0, IF(INTRO!$E$37="Non-endemic",0,IF(COUNTRY_INFO!$H35=1,COUNTRY_INFO!F35,0))) -> 0 | F35: =IF(INTRO!$E$39<>"Non-endemic", 0, IF(INTRO!$E$37="Non-endemic",0,IF(COUNTRY_INFO!$H35=1,COUNTRY_INFO!G35,0))) -> 0 | G35: 0 | H35: =IF(INTRO!$E$39="Non-endemic",IF(INTRO!$E$37="Non-endemic","Not required",COUNTRY_INFO!P35),"Treat with IVM") -> Treat with IVM | I35: 0 | J35: 0 | L35: 0 | M35: 0
A36: =IF(INTRO!$E$39<>"Non-endemic", " ", IF(INTRO!$E$37="Non-endemic"," ", IF(COUNTRY_INFO!A36=0," ",COUNTRY_INFO!A36))) ->  | B36: =IF(INTRO!$E$39<>"Non-endemic", " ", IF(INTRO!$E$37="Non-endemic"," ", IF(COUNTRY_INFO!B36=0," ",COUNTRY_INFO!B36))) ->  | C36: =IF(INTRO!$E$39<>"Non-endemic", " ", IF(INTRO!$E$37="Non-endemic"," ", IF(COUNTRY_INFO!C36=0," ",COUNTRY_INFO!C36))) ->  | D36: =IF(INTRO!$E$39<>"Non-endemic", 0, IF(INTRO!$E$37="Non-endemic",0,IF(COUNTRY_INFO!$H36=1,COUNTRY_INFO!E36,0))) -> 0 | E36: =IF(INTRO!$E$39<>"Non-endemic", 0, IF(INTRO!$E$37="Non-endemic",0,IF(COUNTRY_INFO!$H36=1,COUNTRY_INFO!F36,0))) -> 0 | F36: =IF(INTRO!$E$39<>"Non-endemic", 0, IF(INTRO!$E$37="Non-endemic",0,IF(COUNTRY_INFO!$H36=1,COUNTRY_INFO!G36,0))) -> 0 | G36: 0 | H36: =IF(INTRO!$E$39="Non-endemic",IF(INTRO!$E$37="Non-endemic","Not required",COUNTRY_INFO!P36),"Treat with IVM") -> Treat with IVM | I36: 0 | J36: 0 | L36: 0 | M36: 0
A37: =IF(INTRO!$E$39<>"Non-endemic", " ", IF(INTRO!$E$37="Non-endemic"," ", IF(COUNTRY_INFO!A37=0," ",COUNTRY_INFO!A37))) ->  | B37: =IF(INTRO!$E$39<>"Non-endemic", " ", IF(INTRO!$E$37="Non-endemic"," ", IF(COUNTRY_INFO!B37=0," ",COUNTRY_INFO!B37))) ->  | C37: =IF(INTRO!$E$39<>"Non-endemic", " ", IF(INTRO!$E$37="Non-endemic"," ", IF(COUNTRY_INFO!C37=0," ",COUNTRY_INFO!C37))) ->  | D37: =IF(INTRO!$E$39<>"Non-endemic", 0, IF(INTRO!$E$37="Non-endemic",0,IF(COUNTRY_INFO!$H37=1,COUNTRY_INFO!E37,0))) -> 0 | E37: =IF(INTRO!$E$39<>"Non-endemic", 0, IF(INTRO!$E$37="Non-endemic",0,IF(COUNTRY_INFO!$H37=1,COUNTRY_INFO!F37,0))) -> 0 | F37: =IF(INTRO!$E$39<>"Non-endemic", 0, IF(INTRO!$E$37="Non-endemic",0,IF(COUNTRY_INFO!$H37=1,COUNTRY_INFO!G37,0))) -> 0 | G37: 0 | H37: =IF(INTRO!$E$39="Non-endemic",IF(INTRO!$E$37="Non-endemic","Not required",COUNTRY_INFO!P37),"Treat with IVM") -> Treat with IVM | I37: 0 | J37: 0 | L37: 0 | M37: 0

Sheet ALB_MBD
A1: Albendazole (ALB) and Mebendazole (MBD)
A2: Administrative structure, eligible population by age group, treatment plan and information about tablets
A4: TOTAL | D4: =SUM(D$9:D$1000) -> 2271251 | E4: =SUM(E$9:E$1000) -> 5778325 | F4: =SUM(F$9:F$1000) -> 8049576 | I4: =SUM(I$9:I$1000) -> 0 | K4: =SUM(K$9:K$1000) -> 2271251 | L4: =SUM(L$9:L$1000) -> 5778325 | M4: =SUM(M$9:M$1000) -> 0 | N4: =SUM(N$9:N$1000) -> 8049576 | O4: =SUM(O$9:O$1000) -> 0 | P4: =SUM(P$9:P$1000) -> 0 | Q4: 0 | R4: 0 | S4: 0 | T4: 0 | U4: 0 | V4: 0 | W4: 5778325 | X4: 28906 | Y4: 0 | Z4: 0 | AA4: 0
A6: Country administrative structure | D6: Population requiring treatment with ALB/MBD | G6: Treatment plan | I6: People covered by PELF with ALB | J6: Select medicine for treatment of STH | K6: Target population | S6: Albendazole (ALB) | Y6: Mebendazole (MBD)
A7: Country | B7: Province/State | C7: District | D7: PreSAC | E7: SAC | F7: Total | G7: LF | H7: STH | K7: STH (ALB) | O7: STH (MBD) | S7: Remaining in stock (LF) | T7: Tablets to be procured (LF) | U7: Bottle (400 mg) 200 tablets (LF) | V7: Remaining in stock (STH) | W7: Tablets to be procured for SAC (STH) | X7: Bottle (400 mg) 200 tablets (STH) | Y7: Remaining in stock | Z7: Tablets to be procured for SAC | AA7: Bottles (500 mg) 150 tablets
K8: PreSAC | L8: SAC | M8: Other | N8: Total | O8: PreSAC | P8: SAC | Q8: Other | R8: Total
A9: =IF(AND(INTRO!$E$37="Non-endemic",INTRO!$E$41="Non-endemic")," ",IF(COUNTRY_INFO!A9=0," ",COUNTRY_INFO!A9)) -> MALAWI | B9: =IF(AND(INTRO!$E$37="Non-endemic",INTRO!$E$41="Non-endemic")," ",IF(COUNTRY_INFO!B9=0," ",COUNTRY_INFO!B9)) -> North | C9: =IF(AND(INTRO!$E$37="Non-endemic",INTRO!$E$41="Non-endemic")," ",IF(COUNTRY_INFO!C9=0," ",COUNTRY_INFO!C9)) -> Chitipa | D9: =IF(AND(INTRO!$E$37="Non-endemic",INTRO!$E$41="Non-endemic"),0,IF(AND(OR(COUNTRY_INFO!$H9=0,COUNTRY_INFO!$H9=4,COUNTRY_INFO!$H9=99),OR(COUNTRY_INFO!$J9=0,COUNTRY_INFO!$J9=4)),0,COUNTRY_INFO!$E9)) -> 30379 | E9: =IF(AND(INTRO!$E$37="Non-endemic",INTRO!$E$41="Non-endemic"),0,IF(AND(OR(COUNTRY_INFO!$H9=0,COUNTRY_INFO!$H9=4,COUNTRY_INFO!$H9=99),OR(COUNTRY_INFO!$J9=0,COUNTRY_INFO!$J9=4)),0,COUNTRY_INFO!$F9)) -> 77289 | F9: =SUM(D9:E9) -> 107668 | G9: =IF(AND(INTRO!$E$37="Non-endemic",INTRO!$E$41="Non-endemic"),0,COUNTRY_INFO!P9) -> 0 | H9: =IF(AND(INTRO!$E$37="Non-endemic",INTRO!$E$41="Non-endemic"),0,COUNTRY_INFO!R9) -> 1 | I9: =IF(INTRO!$E$39="Non-endemic",IF($G9=1,DEC!I9,0),IF($G9=1,IVM!G9,0)) -> 0 | J9: ALB | K9: =IF($J9="ALB", IF(INTRO!$E$39="Non-endemic", IF($H9<>0, IF($I9=0, $D9*$H9, $D9*($H9-$G9)), 0), $D9*$H9), 0) -> 30379 | L9: =IF($J9="ALB", IF($H9<>0, IF($I9=0, $E9*$H9, $E9*($H9-$G9)),0), 0) -> 77289 | N9: =SUM(K9:M9) -> 107668 | O9: =IF($J9="MBD", IF(INTRO!$E$39="Non-endemic", IF($H9<>0, IF($I9=0, $D9*$H9, $D9*($H9-$G9)), 0), $D9*$H9), 0) -> 0 | P9: =IF($J9="MBD", IF($H9<>0,IF($I9=0, $E9*$H9, $E9*($H9-$G9)),0), 0 ) -> 0 | R9: =SUM(O9:Q9) -> 0 | T9: =IF($I9>$S9, $I9-$S9,0) -> 0 | U9: =ROUNDUP($I9/200,0) -> 0 | W9: =IF($L9>$V9,$L9-$V9,0) -> 77289 | X9: =ROUNDUP($L9/200,0) -> 387 | Z9: =IF($P9>$Y9,$P9-$Y9,0) -> 0 | AA9: =ROUNDUP($P9/150,0) -> 0
A10: =IF(AND(INTRO!$E$37="Non-endemic",INTRO!$E$41="Non-endemic")," ",IF(COUNTRY_INFO!A10=0," ",COUNTRY_INFO!A10)) -> MALAWI | B10: =IF(AND(INTRO!$E$37="Non-endemic",INTRO!$E$41="Non-endemic")," ",IF(COUNTRY_INFO!B10=0," ",COUNTRY_INFO!B10)) -> North | C10: =IF(AND(INTRO!$E$37="Non-endemic",INTRO!$E$41="Non-endemic")," ",IF(COUNTRY_INFO!C10=0," ",COUNTRY_INFO!C10)) -> Karonga | D10: =IF(AND(INTRO!$E$37="Non-endemic",INTRO!$E$41="Non-endemic"),0,IF(AND(OR(COUNTRY_INFO!$H10=0,COUNTRY_INFO!$H10=4,COUNTRY_INFO!$H10=99),OR(COUNTRY_INFO!$J10=0,COUNTRY_INFO!$J10=4)),0,COUNTRY_INFO!$E10)) -> 47203 | E10: =IF(AND(INTRO!$E$37="Non-endemic",INTRO!$E$41="Non-endemic"),0,IF(AND(OR(COUNTRY_INFO!$H10=0,COUNTRY_INFO!$H10=4,COUNTRY_INFO!$H10=99),OR(COUNTRY_INFO!$J10=0,COUNTRY_INFO!$J10=4)),0,COUNTRY_INFO!$F10)) -> 120091 | F10: =SUM(D10:E10) -> 167294 | G10: =IF(AND(INTRO!$E$37="Non-endemic",INTRO!$E$41="Non-endemic"),0,COUNTRY_INFO!P10) -> 0 | H10: =IF(AND(INTRO!$E$37="Non-endemic",INTRO!$E$41="Non-endemic"),0,COUNTRY_INFO!R10) -> 1 | I10: =IF(INTRO!$E$39="Non-endemic",IF($G10=1,DEC!I10,0),IF($G10=1,IVM!G10,0)) -> 0 | J10: ALB | K10: =IF($J10="ALB", IF(INTRO!$E$39="Non-endemic", IF($H10<>0, IF($I10=0, $D10*$H10, $D10*($H10-$G10)), 0), $D10*$H10), 0) -> 47203 | L10: 120091 | N10: =SUM(K10:M10) -> 167294 | O10: =IF($J10="MBD", IF(INTRO!$E$39="Non-endemic", IF($H10<>0, IF($I10=0, $D10*$H10, $D10*($H10-$G10)), 0), $D10*$H10), 0) -> 0 | P10: 0 | R10: =SUM(O10:Q10) -> 0 | T10: 0 | U10: 0 | W10: 120091 | X10: 601 | Z10: 0 | AA10: 0
A11: =IF(AND(INTRO!$E$37="Non-endemic",INTRO!$E$41="Non-endemic")," ",IF(COUNTRY_INFO!A11=0," ",COUNTRY_INFO!A11)) -> MALAWI | B11: =IF(AND(INTRO!$E$37="Non-endemic",INTRO!$E$41="Non-endemic")," ",IF(COUNTRY_INFO!B11=0," ",COUNTRY_INFO!B11)) -> North | C11: =IF(AND(INTRO!$E$37="Non-endemic",INTRO!$E$41="Non-endemic")," ",IF(COUNTRY_INFO!C11=0," ",COUNTRY_INFO!C11)) -> Rumphi | D11: =IF(AND(INTRO!$E$37="Non-endemic",INTRO!$E$41="Non-endemic"),0,IF(AND(OR(COUNTRY_INFO!$H11=0,COUNTRY_INFO!$H11=4,COUNTRY_INFO!$H11=99),OR(COUNTRY_INFO!$J11=0,COUNTRY_INFO!$J11=4)),0,COUNTRY_INFO!$E11)) -> 29634 | E11: =IF(AND(INTRO!$E$37="Non-endemic",INTRO!$E$41="Non-endemic"),0,IF(AND(OR(COUNTRY_INFO!$H11=0,COUNTRY_INFO!$H11=4,COUNTRY_INFO!$H11=99),OR(COUNTRY_INFO!$J11=0,COUNTRY_INFO!$J11=4)),0,COUNTRY_INFO!$F11)) -> 75392 | F11: 105026 | G11: =IF(AND(INTRO!$E$37="Non-endemic",INTRO!$E$41="Non-endemic"),0,COUNTRY_INFO!P11) -> 0 | H11: =IF(AND(INTRO!$E$37="Non-endemic",INTRO!$E$41="Non-endemic"),0,COUNTRY_INFO!R11) -> 1 | I11: =IF(INTRO!$E$39="Non-endemic",IF($G11=1,DEC!I11,0),IF($G11=1,IVM!G11,0)) -> 0 | J11: ALB | K11: =IF($J11="ALB", IF(INTRO!$E$39="Non-endemic", IF($H11<>0, IF($I11=0, $D11*$H11, $D11*($H11-$G11)), 0), $D11*$H11), 0) -> 29634 | L11: 75392 | N11: 105026 | O11: =IF($J11="MBD", IF(INTRO!$E$39="Non-endemic", IF($H11<>0, IF($I11=0, $D11*$H11, $D11*($H11-$G11)), 0), $D11*$H11), 0) -> 0 | P11: 0 | R11: 0 | T11: 0 | U11: 0 | W11: 75392 | X11: 377 | Z11: 0 | AA11: 0
A12: =IF(AND(INTRO!$E$37="Non-endemic",INTRO!$E$41="Non-endemic")," ",IF(COUNTRY_INFO!A12=0," ",COUNTRY_INFO!A12)) -> MALAWI | B12: =IF(AND(INTRO!$E$37="Non-endemic",INTRO!$E$41="Non-endemic")," ",IF(COUNTRY_INFO!B12=0," ",COUNTRY_INFO!B12)) -> North | C12: =IF(AND(INTRO!$E$37="Non-endemic",INTRO!$E$41="Non-endemic")," ",IF(COUNTRY_INFO!C12=0," ",COUNTRY_INFO!C12)) -> Mzimba North | D12: =IF(AND(INTRO!$E$37="Non-endemic",INTRO!$E$41="Non-endemic"),0,IF(AND(OR(COUNTRY_INFO!$H12=0,COUNTRY_INFO!$H12=4,COUNTRY_INFO!$H12=99),OR(COUNTRY_INFO!$J12=0,COUNTRY_INFO!$J12=4)),0,COUNTRY_INFO!$E12)) -> 28614 | E12: =IF(AND(INTRO!$E$37="Non-endemic",INTRO!$E$41="Non-endemic"),0,IF(AND(OR(COUNTRY_INFO!$H12=0,COUNTRY_INFO!$H12=4,COUNTRY_INFO!$H12=99),OR(COUNTRY_INFO!$J12=0,COUNTRY_INFO!$J12=4)),0,COUNTRY_INFO!$F12)) -> 72797 | F12: 101411 | G12: =IF(AND(INTRO!$E$37="Non-endemic",INTRO!$E$41="Non-endemic"),0,COUNTRY_INFO!P12) -> 0 | H12: =IF(AND(INTRO!$E$37="Non-endemic",INTRO!$E$41="Non-endemic"),0,COUNTRY_INFO!R12) -> 1 | I12: =IF(INTRO!$E$39="Non-endemic",IF($G12=1,DEC!I12,0),IF($G12=1,IVM!G12,0)) -> 0 | J12: ALB | K12: =IF($J12="ALB", IF(INTRO!$E$39="Non-endemic", IF($H12<>0, IF($I12=0, $D12*$H12, $D12*($H12-$G12)), 0), $D12*$H12), 0) -> 28614 | L12: 72797 | N12: 101411 | O12: =IF($J12="MBD", IF(INTRO!$E$39="Non-endemic", IF($H12<>0, IF($I12=0, $D12*$H12, $D12*($H12-$G12)), 0), $D12*$H12), 0) -> 0 | P12: 0 | R12: 0 | T12: 0 | U12: 0 | W12: 72797 | X12: 364 | Z12: 0 | AA12: 0
A13: =IF(AND(INTRO!$E$37="Non-endemic",INTRO!$E$41="Non-endemic")," ",IF(COUNTRY_INFO!A13=0," ",COUNTRY_INFO!A13)) -> MALAWI | B13: =IF(AND(INTRO!$E$37="Non-endemic",INTRO!$E$41="Non-endemic")," ",IF(COUNTRY_INFO!B13=0," ",COUNTRY_INFO!B13)) -> North | C13: =IF(AND(INTRO!$E$37="Non-endemic",INTRO!$E$41="Non-endemic")," ",IF(COUNTRY_INFO!C13=0," ",COUNTRY_INFO!C13)) -> Mzimba South | D13: =IF(AND(INTRO!$E$37="Non-endemic",INTRO!$E$41="Non-endemic"),0,IF(AND(OR(COUNTRY_INFO!$H13=0,COUNTRY_INFO!$H13=4,COUNTRY_INFO!$H13=99),OR(COUNTRY_INFO!$J13=0,COUNTRY_INFO!$J13=4)),0,COUNTRY_INFO!$E13)) -> 121580 | E13: =IF(AND(INTRO!$E$37="Non-endemic",INTRO!$E$41="Non-endemic"),0,IF(AND(OR(COUNTRY_INFO!$H13=0,COUNTRY_INFO!$H13=4,COUNTRY_INFO!$H13=99),OR(COUNTRY_INFO!$J13=0,COUNTRY_INFO!$J13=4)),0,COUNTRY_INFO!$F13)) -> 309313 | F13: 430893 | G13: =IF(AND(INTRO!$E$37="Non-endemic",INTRO!$E$41="Non-endemic"),0,COUNTRY_INFO!P13) -> 0 | H13: =IF(AND(INTRO!$E$37="Non-endemic",INTRO!$E$41="Non-endemic"),0,COUNTRY_INFO!R13) -> 1 | I13: =IF(INTRO!$E$39="Non-endemic",IF($G13=1,DEC!I13,0),IF($G13=1,IVM!G13,0)) -> 0 | J13: ALB | K13: =IF($J13="ALB", IF(INTRO!$E$39="Non-endemic", IF($H13<>0, IF($I13=0, $D13*$H13, $D13*($H13-$G13)), 0), $D13*$H13), 0) -> 121580 | L13: 309313 | N13: 430893 | O13: =IF($J13="MBD", IF(INTRO!$E$39="Non-endemic", IF($H13<>0, IF($I13=0, $D13*$H13, $D13*($H13-$G13)), 0), $D13*$H13), 0) -> 0 | P13: 0 | R13: 0 | T13: 0 | U13: 0 | W13: 309313 | X13: 1547 | Z13: 0 | AA13: 0
A14: =IF(AND(INTRO!$E$37="Non-endemic",INTRO!$E$41="Non-endemic")," ",IF(COUNTRY_INFO!A14=0," ",COUNTRY_INFO!A14)) -> MALAWI | B14: =IF(AND(INTRO!$E$37="Non-endemic",INTRO!$E$41="Non-endemic")," ",IF(COUNTRY_INFO!B14=0," ",COUNTRY_INFO!B14)) -> North | C14: =IF(AND(INTRO!$E$37="Non-endemic",INTRO!$E$41="Non-endemic")," ",IF(COUNTRY_INFO!C14=0," ",COUNTRY_INFO!C14)) -> Nkhatabay | D14: =IF(AND(INTRO!$E$37="Non-endemic",INTRO!$E$41="Non-endemic"),0,IF(AND(OR(COUNTRY_INFO!$H14=0,COUNTRY_INFO!$H14=4,COUNTRY_INFO!$H14=99),OR(COUNTRY_INFO!$J14=0,COUNTRY_INFO!$J14=4)),0,COUNTRY_INFO!$E14)) -> 36813 | E14: =IF(AND(INTRO!$E$37="Non-endemic",INTRO!$E$41="Non-endemic"),0,IF(AND(OR(COUNTRY_INFO!$H14=0,COUNTRY_INFO!$H14=4,COUNTRY_INFO!$H14=99),OR(COUNTRY_INFO!$J14=0,COUNTRY_INFO!$J14=4)),0,COUNTRY_INFO!$F14)) -> 93658 | F14: 130471 | G14: =IF(AND(INTRO!$E$37="Non-endemic",INTRO!$E$41="Non-endemic"),0,COUNTRY_INFO!P14) -> 0 | H14: =IF(AND(INTRO!$E$37="Non-endemic",INTRO!$E$41="Non-endemic"),0,COUNTRY_INFO!R14) -> 1 | I14: =IF(INTRO!$E$39="Non-endemic",IF($G14=1,DEC!I14,0),IF($G14=1,IVM!G14,0)) -> 0 | J14: ALB | K14: =IF($J14="ALB", IF(INTRO!$E$39="Non-endemic", IF($H14<>0, IF($I14=0, $D14*$H14, $D14*($H14-$G14)), 0), $D14*$H14), 0) -> 36813 | L14: 93658 | N14: 130471 | O14: =IF($J14="MBD", IF(INTRO!$E$39="Non-endemic", IF($H14<>0, IF($I14=0, $D14*$H14, $D14*($H14-$G14)), 0), $D14*$H14), 0) -> 0 | P14: 0 | R14: 0 | T14: 0 | U14: 0 | W14: 93658 | X14: 469 | Z14: 0 | AA14: 0
A15: =IF(AND(INTRO!$E$37="Non-endemic",INTRO!$E$41="Non-endemic")," ",IF(COUNTRY_INFO!A15=0," ",COUNTRY_INFO!A15)) -> MALAWI | B15: =IF(AND(INTRO!$E$37="Non-endemic",INTRO!$E$41="Non-endemic")," ",IF(COUNTRY_INFO!B15=0," ",COUNTRY_INFO!B15)) -> North | C15: =IF(AND(INTRO!$E$37="Non-endemic",INTRO!$E$41="Non-endemic")," ",IF(COUNTRY_INFO!C15=0," ",COUNTRY_INFO!C15)) -> Likoma | D15: =IF(AND(INTRO!$E$37="Non-endemic",INTRO!$E$41="Non-endemic"),0,IF(AND(OR(COUNTRY_INFO!$H15=0,COUNTRY_INFO!$H15=4,COUNTRY_INFO!$H15=99),OR(COUNTRY_INFO!$J15=0,COUNTRY_INFO!$J15=4)),0,COUNTRY_INFO!$E15)) -> 1879 | E15: =IF(AND(INTRO!$E$37="Non-endemic",INTRO!$E$41="Non-endemic"),0,IF(AND(OR(COUNTRY_INFO!$H15=0,COUNTRY_INFO!$H15=4,COUNTRY_INFO!$H15=99),OR(COUNTRY_INFO!$J15=0,COUNTRY_INFO!$J15=4)),0,COUNTRY_INFO!$F15)) -> 4779 | F15: 6658 | G15: =IF(AND(INTRO!$E$37="Non-endemic",INTRO!$E$41="Non-endemic"),0,COUNTRY_INFO!P15) -> 0 | H15: =IF(AND(INTRO!$E$37="Non-endemic",INTRO!$E$41="Non-endemic"),0,COUNTRY_INFO!R15) -> 1 | I15: =IF(INTRO!$E$39="Non-endemic",IF($G15=1,DEC!I15,0),IF($G15=1,IVM!G15,0)) -> 0 | J15: ALB | K15: =IF($J15="ALB", IF(INTRO!$E$39="Non-endemic", IF($H15<>0, IF($I15=0, $D15*$H15, $D15*($H15-$G15)), 0), $D15*$H15), 0) -> 1879 | L15: 4779 | N15: 6658 | O15: =IF($J15="MBD", IF(INTRO!$E$39="Non-endemic", IF($H15<>0, IF($I15=0, $D15*$H15, $D15*($H15-$G15)), 0), $D15*$H15), 0) -> 0 | P15: 0 | R15: 0 | T15: 0 | U15: 0 | W15: 4779 | X15: 24 | Z15: 0 | AA15: 0
A16: =IF(AND(INTRO!$E$37="Non-endemic",INTRO!$E$41="Non-endemic")," ",IF(COUNTRY_INFO!A16=0," ",COUNTRY_INFO!A16)) -> MALAWI | B16: =IF(AND(INTRO!$E$37="Non-endemic",INTRO!$E$41="Non-endemic")," ",IF(COUNTRY_INFO!B16=0," ",COUNTRY_INFO!B16)) -> Central | C16: =IF(AND(INTRO!$E$37="Non-endemic",INTRO!$E$41="Non-endemic")," ",IF(COUNTRY_INFO!C16=0," ",COUNTRY_INFO!C16)) -> Kasungu | D16: =IF(AND(INTRO!$E$37="Non-endemic",INTRO!$E$41="Non-endemic"),0,IF(AND(OR(COUNTRY_INFO!$H16=0,COUNTRY_INFO!$H16=4,COUNTRY_INFO!$H16=99),OR(COUNTRY_INFO!$J16=0,COUNTRY_INFO!$J16=4)),0,COUNTRY_INFO!$E16)) -> 109006 | E16: =IF(AND(INTRO!$E$37="Non-endemic",INTRO!$E$41="Non-endemic"),0,IF(AND(OR(COUNTRY_INFO!$H16=0,COUNTRY_INFO!$H16=4,COUNTRY_INFO!$H16=99),OR(COUNTRY_INFO!$J16=0,COUNTRY_INFO!$J16=4)),0,COUNTRY_INFO!$F16)) -> 277324 | F16: 386330 | G16: =IF(AND(INTRO!$E$37="Non-endemic",INTRO!$E$41="Non-endemic"),0,COUNTRY_INFO!P16) -> 0 | H16: =IF(AND(INTRO!$E$37="Non-endemic",INTRO!$E$41="Non-endemic"),0,COUNTRY_INFO!R16) -> 1 | I16: =IF(INTRO!$E$39="Non-endemic",IF($G16=1,DEC!I16,0),IF($G16=1,IVM!G16,0)) -> 0 | J16: ALB | K16: =IF($J16="ALB", IF(INTRO!$E$39="Non-endemic", IF($H16<>0, IF($I16=0, $D16*$H16, $D16*($H16-$G16)), 0), $D16*$H16), 0) -> 109006 | L16: 277324 | N16: 386330 | O16: =IF($J16="MBD", IF(INTRO!$E$39="Non-endemic", IF($H16<>0, IF($I16=0, $D16*$H16, $D16*($H16-$G16)), 0), $D16*$H16), 0) -> 0 | P16: 0 | R16: 0 | T16: 0 | U16: 0 | W16: 277324 | X16: 1387 | Z16: 0 | AA16: 0
A17: =IF(AND(INTRO!$E$37="Non-endemic",INTRO!$E$41="Non-endemic")," ",IF(COUNTRY_INFO!A17=0," ",COUNTRY_INFO!A17)) -> MALAWI | B17: =IF(AND(INTRO!$E$37="Non-endemic",INTRO!$E$41="Non-endemic")," ",IF(COUNTRY_INFO!B17=0," ",COUNTRY_INFO!B17)) -> Central | C17: =IF(AND(INTRO!$E$37="Non-endemic",INTRO!$E$41="Non-endemic")," ",IF(COUNTRY_INFO!C17=0," ",COUNTRY_INFO!C17)) -> Dedza | D17: =IF(AND(INTRO!$E$37="Non-endemic",INTRO!$E$41="Non-endemic"),0,IF(AND(OR(COUNTRY_INFO!$H17=0,COUNTRY_INFO!$H17=4,COUNTRY_INFO!$H17=99),OR(COUNTRY_INFO!$J17=0,COUNTRY_INFO!$J17=4)),0,COUNTRY_INFO!$E17)) -> 107397 | E17: =IF(AND(INTRO!$E$37="Non-endemic",INTRO!$E$41="Non-endemic"),0,IF(AND(OR(COUNTRY_INFO!$H17=0,COUNTRY_INFO!$H17=4,COUNTRY_INFO!$H17=99),OR(COUNTRY_INFO!$J17=0,COUNTRY_INFO!$J17=4)),0,COUNTRY_INFO!$F17)) -> 273231 | F17: 380628 | G17: =IF(AND(INTRO!$E$37="Non-endemic",INTRO!$E$41="Non-endemic"),0,COUNTRY_INFO!P17) -> 0 | H17: =IF(AND(INTRO!$E$37="Non-endemic",INTRO!$E$41="Non-endemic"),0,COUNTRY_INFO!R17) -> 1 | I17: =IF(INTRO!$E$39="Non-endemic",IF($G17=1,DEC!I17,0),IF($G17=1,IVM!G17,0)) -> 0 | J17: ALB | K17: =IF($J17="ALB", IF(INTRO!$E$39="Non-endemic", IF($H17<>0, IF($I17=0, $D17*$H17, $D17*($H17-$G17)), 0), $D17*$H17), 0) -> 107397 | L17: 273231 | N17: 380628 | O17: =IF($J17="MBD", IF(INTRO!$E$39="Non-endemic", IF($H17<>0, IF($I17=0, $D17*$H17, $D17*($H17-$G17)), 0), $D17*$H17), 0) -> 0 | P17: 0 | R17: 0 | T17: 0 | U17: 0 | W17: 273231 | X17: 1367 | Z17: 0 | AA17: 0
A18: =IF(AND(INTRO!$E$37="Non-endemic",INTRO!$E$41="Non-endemic")," ",IF(COUNTRY_INFO!A18=0," ",COUNTRY_INFO!A18)) -> MALAWI | B18: =IF(AND(INTRO!$E$37="Non-endemic",INTRO!$E$41="Non-endemic")," ",IF(COUNTRY_INFO!B18=0," ",COUNTRY_INFO!B18)) -> Central | C18: =IF(AND(INTRO!$E$37="Non-endemic",INTRO!$E$41="Non-endemic")," ",IF(COUNTRY_INFO!C18=0," ",COUNTRY_INFO!C18)) -> Dowa | D18: =IF(AND(INTRO!$E$37="Non-endemic",INTRO!$E$41="Non-endemic"),0,IF(AND(OR(COUNTRY_INFO!$H18=0,COUNTRY_INFO!$H18=4,COUNTRY_INFO!$H18=99),OR(COUNTRY_INFO!$J18=0,COUNTRY_INFO!$J18=4)),0,COUNTRY_INFO!$E18)) -> 99905 | E18: =IF(AND(INTRO!$E$37="Non-endemic",INTRO!$E$41="Non-endemic"),0,IF(AND(OR(COUNTRY_INFO!$H18=0,COUNTRY_INFO!$H18=4,COUNTRY_INFO!$H18=99),OR(COUNTRY_INFO!$J18=0,COUNTRY_INFO!$J18=4)),0,COUNTRY_INFO!$F18)) -> 254169 | F18: 354074 | G18: =IF(AND(INTRO!$E$37="Non-endemic",INTRO!$E$41="Non-endemic"),0,COUNTRY_INFO!P18) -> 0 | H18: =IF(AND(INTRO!$E$37="Non-endemic",INTRO!$E$41="Non-endemic"),0,COUNTRY_INFO!R18) -> 1 | I18: =IF(INTRO!$E$39="Non-endemic",IF($G18=1,DEC!I18,0),IF($G18=1,IVM!G18,0)) -> 0 | J18: ALB | K18: =IF($J18="ALB", IF(INTRO!$E$39="Non-endemic", IF($H18<>0, IF($I18=0, $D18*$H18, $D18*($H18-$G18)), 0), $D18*$H18), 0) -> 99905 | L18: 254169 | N18: 354074 | O18: =IF($J18="MBD", IF(INTRO!$E$39="Non-endemic", IF($H18<>0, IF($I18=0, $D18*$H18, $D18*($H18-$G18)), 0), $D18*$H18), 0) -> 0 | P18: 0 | R18: 0 | T18: 0 | U18: 0 | W18: 254169 | X18: 1271 | Z18: 0 | AA18: 0
A19: =IF(AND(INTRO!$E$37="Non-endemic",INTRO!$E$41="Non-endemic")," ",IF(COUNTRY_INFO!A19=0," ",COUNTRY_INFO!A19)) -> MALAWI | B19: =IF(AND(INTRO!$E$37="Non-endemic",INTRO!$E$41="Non-endemic")," ",IF(COUNTRY_INFO!B19=0," ",COUNTRY_INFO!B19)) -> Central | C19: =IF(AND(INTRO!$E$37="Non-endemic",INTRO!$E$41="Non-endemic")," ",IF(COUNTRY_INFO!C19=0," ",COUNTRY_INFO!C19)) -> Lilongwe | D19: =IF(AND(INTRO!$E$37="Non-endemic",INTRO!$E$41="Non-endemic"),0,IF(AND(OR(COUNTRY_INFO!$H19=0,COUNTRY_INFO!$H19=4,COUNTRY_INFO!$H19=99),OR(COUNTRY_INFO!$J19=0,COUNTRY_INFO!$J19=4)),0,COUNTRY_INFO!$E19)) -> 339697 | E19: =IF(AND(INTRO!$E$37="Non-endemic",INTRO!$E$41="Non-endemic"),0,IF(AND(OR(COUNTRY_INFO!$H19=0,COUNTRY_INFO!$H19=4,COUNTRY_INFO!$H19=99),OR(COUNTRY_INFO!$J19=0,COUNTRY_INFO!$J19=4)),0,COUNTRY_INFO!$F19)) -> 864228 | F19: 1203925 | G19: =IF(AND(INTRO!$E$37="Non-endemic",INTRO!$E$41="Non-endemic"),0,COUNTRY_INFO!P19) -> 0 | H19: =IF(AND(INTRO!$E$37="Non-endemic",INTRO!$E$41="Non-endemic"),0,COUNTRY_INFO!R19) -> 1 | I19: =IF(INTRO!$E$39="Non-endemic",IF($G19=1,DEC!I19,0),IF($G19=1,IVM!G19,0)) -> 0 | J19: ALB | K19: =IF($J19="ALB", IF(INTRO!$E$39="Non-endemic", IF($H19<>0, IF($I19=0, $D19*$H19, $D19*($H19-$G19)), 0), $D19*$H19), 0) -> 339697 | L19: 864228 | N19: 1203925 | O19: =IF($J19="MBD", IF(INTRO!$E$39="Non-endemic", IF($H19<>0, IF($I19=0, $D19*$H19, $D19*($H19-$G19)), 0), $D19*$H19), 0) -> 0 | P19: 0 | R19: 0 | T19: 0 | U19: 0 | W19: 864228 | X19: 4322 | Z19: 0 | AA19: 0
A20: =IF(AND(INTRO!$E$37="Non-endemic",INTRO!$E$41="Non-endemic")," ",IF(COUNTRY_INFO!A20=0," ",COUNTRY_INFO!A20)) -> MALAWI | B20: =IF(AND(INTRO!$E$37="Non-endemic",INTRO!$E$41="Non-endemic")," ",IF(COUNTRY_INFO!B20=0," ",COUNTRY_INFO!B20)) -> Central | C20: =IF(AND(INTRO!$E$37="Non-endemic",INTRO!$E$41="Non-endemic")," ",IF(COUNTRY_INFO!C20=0," ",COUNTRY_INFO!C20)) -> Mchinji | D20: =IF(AND(INTRO!$E$37="Non-endemic",INTRO!$E$41="Non-endemic"),0,IF(AND(OR(COUNTRY_INFO!$H20=0,COUNTRY_INFO!$H20=4,COUNTRY_INFO!$H20=99),OR(COUNTRY_INFO!$J20=0,COUNTRY_INFO!$J20=4)),0,COUNTRY_INFO!$E20)) -> 77887 | E20: =IF(AND(INTRO!$E$37="Non-endemic",INTRO!$E$41="Non-endemic"),0,IF(AND(OR(COUNTRY_INFO!$H20=0,COUNTRY_INFO!$H20=4,COUNTRY_INFO!$H20=99),OR(COUNTRY_INFO!$J20=0,COUNTRY_INFO!$J20=4)),0,COUNTRY_INFO!$F20)) -> 198153 | F20: 276040 | G20: =IF(AND(INTRO!$E$37="Non-endemic",INTRO!$E$41="Non-endemic"),0,COUNTRY_INFO!P20) -> 0 | H20: =IF(AND(INTRO!$E$37="Non-endemic",INTRO!$E$41="Non-endemic"),0,COUNTRY_INFO!R20) -> 1 | I20: =IF(INTRO!$E$39="Non-endemic",IF($G20=1,DEC!I20,0),IF($G20=1,IVM!G20,0)) -> 0 | J20: ALB | K20: =IF($J20="ALB", IF(INTRO!$E$39="Non-endemic", IF($H20<>0, IF($I20=0, $D20*$H20, $D20*($H20-$G20)), 0), $D20*$H20), 0) -> 77887 | L20: 198153 | N20: 276040 | O20: =IF($J20="MBD", IF(INTRO!$E$39="Non-endemic", IF($H20<>0, IF($I20=0, $D20*$H20, $D20*($H20-$G20)), 0), $D20*$H20), 0) -> 0 | P20: 0 | R20: 0 | T20: 0 | U20: 0 | W20: 198153 | X20: 991 | Z20: 0 | AA20: 0
A21: =IF(AND(INTRO!$E$37="Non-endemic",INTRO!$E$41="Non-endemic")," ",IF(COUNTRY_INFO!A21=0," ",COUNTRY_INFO!A21)) -> MALAWI | B21: =IF(AND(INTRO!$E$37="Non-endemic",INTRO!$E$41="Non-endemic")," ",IF(COUNTRY_INFO!B21=0," ",COUNTRY_INFO!B21)) -> Central | C21: =IF(AND(INTRO!$E$37="Non-endemic",INTRO!$E$41="Non-endemic")," ",IF(COUNTRY_INFO!C21=0," ",COUNTRY_INFO!C21)) -> Salima | D21: =IF(AND(INTRO!$E$37="Non-endemic",INTRO!$E$41="Non-endemic"),0,IF(AND(OR(COUNTRY_INFO!$H21=0,COUNTRY_INFO!$H21=4,COUNTRY_INFO!$H21=99),OR(COUNTRY_INFO!$J21=0,COUNTRY_INFO!$J21=4)),0,COUNTRY_INFO!$E21)) -> 61857 | E21: =IF(AND(INTRO!$E$37="Non-endemic",INTRO!$E$41="Non-endemic"),0,IF(AND(OR(COUNTRY_INFO!$H21=0,COUNTRY_INFO!$H21=4,COUNTRY_INFO!$H21=99),OR(COUNTRY_INFO!$J21=0,COUNTRY_INFO!$J21=4)),0,COUNTRY_INFO!$F21)) -> 157372 | F21: 219229 | G21: =IF(AND(INTRO!$E$37="Non-endemic",INTRO!$E$41="Non-endemic"),0,COUNTRY_INFO!P21) -> 0 | H21: =IF(AND(INTRO!$E$37="Non-endemic",INTRO!$E$41="Non-endemic"),0,COUNTRY_INFO!R21) -> 1 | I21: =IF(INTRO!$E$39="Non-endemic",IF($G21=1,DEC!I21,0),IF($G21=1,IVM!G21,0)) -> 0 | J21: ALB | K21: =IF($J21="ALB", IF(INTRO!$E$39="Non-endemic", IF($H21<>0, IF($I21=0, $D21*$H21, $D21*($H21-$G21)), 0), $D21*$H21), 0) -> 61857 | L21: 157372 | N21: 219229 | O21: =IF($J21="MBD", IF(INTRO!$E$39="Non-endemic", IF($H21<>0, IF($I21=0, $D21*$H21, $D21*($H21-$G21)), 0), $D21*$H21), 0) -> 0 | P21: 0 | R21: 0 | T21: 0 | U21: 0 | W21: 157372 | X21: 787 | Z21: 0 | AA21: 0
A22: =IF(AND(INTRO!$E$37="Non-endemic",INTRO!$E$41="Non-endemic")," ",IF(COUNTRY_INFO!A22=0," ",COUNTRY_INFO!A22)) -> MALAWI | B22: =IF(AND(INTRO!$E$37="Non-endemic",INTRO!$E$41="Non-endemic")," ",IF(COUNTRY_INFO!B22=0," ",COUNTRY_INFO!B22)) -> Central | C22: =IF(AND(INTRO!$E$37="Non-endemic",INTRO!$E$41="Non-endemic")," ",IF(COUNTRY_INFO!C22=0," ",COUNTRY_INFO!C22)) -> Nkhotakota | D22: =IF(AND(INTRO!$E$37="Non-endemic",INTRO!$E$41="Non-endemic"),0,IF(AND(OR(COUNTRY_INFO!$H22=0,COUNTRY_INFO!$H22=4,COUNTRY_INFO!$H22=99),OR(COUNTRY_INFO!$J22=0,COUNTRY_INFO!$J22=4)),0,COUNTRY_INFO!$E22)) -> 50831 | E22: =IF(AND(INTRO!$E$37="Non-endemic",INTRO!$E$41="Non-endemic"),0,IF(AND(OR(COUNTRY_INFO!$H22=0,COUNTRY_INFO!$H22=4,COUNTRY_INFO!$H22=99),OR(COUNTRY_INFO!$J22=0,COUNTRY_INFO!$J22=4)),0,COUNTRY_INFO!$F22)) -> 129319 | F22: 180150 | G22: =IF(AND(INTRO!$E$37="Non-endemic",INTRO!$E$41="Non-endemic"),0,COUNTRY_INFO!P22) -> 0 | H22: =IF(AND(INTRO!$E$37="Non-endemic",INTRO!$E$41="Non-endemic"),0,COUNTRY_INFO!R22) -> 1 | I22: =IF(INTRO!$E$39="Non-endemic",IF($G22=1,DEC!I22,0),IF($G22=1,IVM!G22,0)) -> 0 | J22: ALB | K22: =IF($J22="ALB", IF(INTRO!$E$39="Non-endemic", IF($H22<>0, IF($I22=0, $D22*$H22, $D22*($H22-$G22)), 0), $D22*$H22), 0) -> 50831 | L22: 129319 | N22: 180150 | O22: =IF($J22="MBD", IF(INTRO!$E$39="Non-endemic", IF($H22<>0, IF($I22=0, $D22*$H22, $D22*($H22-$G22)), 0), $D22*$H22), 0) -> 0 | P22: 0 | R22: 0 | T22: 0 | U22: 0 | W22: 129319 | X22: 647 | Z22: 0 | AA22: 0
A23: =IF(AND(INTRO!$E$37="Non-endemic",INTRO!$E$41="Non-endemic")," ",IF(COUNTRY_INFO!A23=0," ",COUNTRY_INFO!A23)) -> MALAWI | B23: =IF(AND(INTRO!$E$37="Non-endemic",INTRO!$E$41="Non-endemic")," ",IF(COUNTRY_INFO!B23=0," ",COUNTRY_INFO!B23)) -> Central | C23: =IF(AND(INTRO!$E$37="Non-endemic",INTRO!$E$41="Non-endemic")," ",IF(COUNTRY_INFO!C23=0," ",COUNTRY_INFO!C23)) -> Ntchisi | D23: =IF(AND(INTRO!$E$37="Non-endemic",INTRO!$E$41="Non-endemic"),0,IF(AND(OR(COUNTRY_INFO!$H23=0,COUNTRY_INFO!$H23=4,COUNTRY_INFO!$H23=99),OR(COUNTRY_INFO!$J23=0,COUNTRY_INFO!$J23=4)),0,COUNTRY_INFO!$E23)) -> 41002 | E23: =IF(AND(INTRO!$E$37="Non-endemic",INTRO!$E$41="Non-endemic"),0,IF(AND(OR(COUNTRY_INFO!$H23=0,COUNTRY_INFO!$H23=4,COUNTRY_INFO!$H23=99),OR(COUNTRY_INFO!$J23=0,COUNTRY_INFO!$J23=4)),0,COUNTRY_INFO!$F23)) -> 104313 | F23: 145315 | G23: =IF(AND(INTRO!$E$37="Non-endemic",INTRO!$E$41="Non-endemic"),0,COUNTRY_INFO!P23) -> 0 | H23: =IF(AND(INTRO!$E$37="Non-endemic",INTRO!$E$41="Non-endemic"),0,COUNTRY_INFO!R23) -> 1 | I23: =IF(INTRO!$E$39="Non-endemic",IF($G23=1,DEC!I23,0),IF($G23=1,IVM!G23,0)) -> 0 | J23: ALB | K23: =IF($J23="ALB", IF(INTRO!$E$39="Non-endemic", IF($H23<>0, IF($I23=0, $D23*$H23, $D23*($H23-$G23)), 0), $D23*$H23), 0) -> 41002 | L23: 104313 | N23: 145315 | O23: =IF($J23="MBD", IF(INTRO!$E$39="Non-endemic", IF($H23<>0, IF($I23=0, $D23*$H23, $D23*($H23-$G23)), 0), $D23*$H23), 0) -> 0 | P23: 0 | R23: 0 | T23: 0 | U23: 0 | W23: 104313 | X23: 522 | Z23: 0 | AA23: 0
A24: =IF(AND(INTRO!$E$37="Non-endemic",INTRO!$E$41="Non-endemic")," ",IF(COUNTRY_INFO!A24=0," ",COUNTRY_INFO!A24)) -> MALAWI | B24: =IF(AND(INTRO!$E$37="Non-endemic",INTRO!$E$41="Non-endemic")," ",IF(COUNTRY_INFO!B24=0," ",COUNTRY_INFO!B24)) -> Central | C24: =IF(AND(INTRO!$E$37="Non-endemic",INTRO!$E$41="Non-endemic")," ",IF(COUNTRY_INFO!C24=0," ",COUNTRY_INFO!C24)) -> Ntcheu | D24: =IF(AND(INTRO!$E$37="Non-endemic",INTRO!$E$41="Non-endemic"),0,IF(AND(OR(COUNTRY_INFO!$H24=0,COUNTRY_INFO!$H24=4,COUNTRY_INFO!$H24=99),OR(COUNTRY_INFO!$J24=0,COUNTRY_INFO!$J24=4)),0,COUNTRY_INFO!$E24)) -> 85297 | E24: =IF(AND(INTRO!$E$37="Non-endemic",INTRO!$E$41="Non-endemic"),0,IF(AND(OR(COUNTRY_INFO!$H24=0,COUNTRY_INFO!$H24=4,COUNTRY_INFO!$H24=99),OR(COUNTRY_INFO!$J24=0,COUNTRY_INFO!$J24=4)),0,COUNTRY_INFO!$F24)) -> 217006 | F24: 302303 | G24: =IF(AND(INTRO!$E$37="Non-endemic",INTRO!$E$41="Non-endemic"),0,COUNTRY_INFO!P24) -> 0 | H24: =IF(AND(INTRO!$E$37="Non-endemic",INTRO!$E$41="Non-endemic"),0,COUNTRY_INFO!R24) -> 1 | I24: =IF(INTRO!$E$39="Non-endemic",IF($G24=1,DEC!I24,0),IF($G24=1,IVM!G24,0)) -> 0 | J24: ALB | K24: =IF($J24="ALB", IF(INTRO!$E$39="Non-endemic", IF($H24<>0, IF($I24=0, $D24*$H24, $D24*($H24-$G24)), 0), $D24*$H24), 0) -> 85297 | L24: 217006 | N24: 302303 | O24: =IF($J24="MBD", IF(INTRO!$E$39="Non-endemic", IF($H24<>0, IF($I24=0, $D24*$H24, $D24*($H24-$G24)), 0), $D24*$H24), 0) -> 0 | P24: 0 | R24: 0 | T24: 0 | U24: 0 | W24: 217006 | X24: 1086 | Z24: 0 | AA24: 0
A25: =IF(AND(INTRO!$E$37="Non-endemic",INTRO!$E$41="Non-endemic")," ",IF(COUNTRY_INFO!A25=0," ",COUNTRY_INFO!A25)) -> MALAWI | B25: =IF(AND(INTRO!$E$37="Non-endemic",INTRO!$E$41="Non-endemic")," ",IF(COUNTRY_INFO!B25=0," ",COUNTRY_INFO!B25)) -> South | C25: =IF(AND(INTRO!$E$37="Non-endemic",INTRO!$E$41="Non-endemic")," ",IF(COUNTRY_INFO!C25=0," ",COUNTRY_INFO!C25)) -> Balaka | D25: =IF(AND(INTRO!$E$37="Non-endemic",INTRO!$E$41="Non-endemic"),0,IF(AND(OR(COUNTRY_INFO!$H25=0,COUNTRY_INFO!$H25=4,COUNTRY_INFO!$H25=99),OR(COUNTRY_INFO!$J25=0,COUNTRY_INFO!$J25=4)),0,COUNTRY_INFO!$E25)) -> 56689 | E25: =IF(AND(INTRO!$E$37="Non-endemic",INTRO!$E$41="Non-endemic"),0,IF(AND(OR(COUNTRY_INFO!$H25=0,COUNTRY_INFO!$H25=4,COUNTRY_INFO!$H25=99),OR(COUNTRY_INFO!$J25=0,COUNTRY_INFO!$J25=4)),0,COUNTRY_INFO!$F25)) -> 144223 | F25: 200912 | G25: =IF(AND(INTRO!$E$37="Non-endemic",INTRO!$E$41="Non-endemic"),0,COUNTRY_INFO!P25) -> 0 | H25: =IF(AND(INTRO!$E$37="Non-endemic",INTRO!$E$41="Non-endemic"),0,COUNTRY_INFO!R25) -> 1 | I25: =IF(INTRO!$E$39="Non-endemic",IF($G25=1,DEC!I25,0),IF($G25=1,IVM!G25,0)) -> 0 | J25: ALB | K25: =IF($J25="ALB", IF(INTRO!$E$39="Non-endemic", IF($H25<>0, IF($I25=0, $D25*$H25, $D25*($H25-$G25)), 0), $D25*$H25), 0) -> 56689 | L25: 144223 | N25: 200912 | O25: =IF($J25="MBD", IF(INTRO!$E$39="Non-endemic", IF($H25<>0, IF($I25=0, $D25*$H25, $D25*($H25-$G25)), 0), $D25*$H25), 0) -> 0 | P25: 0 | R25: 0 | T25: 0 | U25: 0 | W25: 144223 | X25: 722 | Z25: 0 | AA25: 0
A26: =IF(AND(INTRO!$E$37="Non-endemic",INTRO!$E$41="Non-endemic")," ",IF(COUNTRY_INFO!A26=0," ",COUNTRY_INFO!A26)) -> MALAWI | B26: =IF(AND(INTRO!$E$37="Non-endemic",INTRO!$E$41="Non-endemic")," ",IF(COUNTRY_INFO!B26=0," ",COUNTRY_INFO!B26)) -> South | C26: =IF(AND(INTRO!$E$37="Non-endemic",INTRO!$E$41="Non-endemic")," ",IF(COUNTRY_INFO!C26=0," ",COUNTRY_INFO!C26)) -> Chikwawa | D26: =IF(AND(INTRO!$E$37="Non-endemic",INTRO!$E$41="Non-endemic"),0,IF(AND(OR(COUNTRY_INFO!$H26=0,COUNTRY_INFO!$H26=4,COUNTRY_INFO!$H26=99),OR(COUNTRY_INFO!$J26=0,COUNTRY_INFO!$J26=4)),0,COUNTRY_INFO!$E26)) -> 73022 | E26: =IF(AND(INTRO!$E$37="Non-endemic",INTRO!$E$41="Non-endemic"),0,IF(AND(OR(COUNTRY_INFO!$H26=0,COUNTRY_INFO!$H26=4,COUNTRY_INFO!$H26=99),OR(COUNTRY_INFO!$J26=0,COUNTRY_INFO!$J26=4)),0,COUNTRY_INFO!$F26)) -> 185776 | F26: 258798 | G26: =IF(AND(INTRO!$E$37="Non-endemic",INTRO!$E$41="Non-endemic"),0,COUNTRY_INFO!P26) -> 0 | H26: =IF(AND(INTRO!$E$37="Non-endemic",INTRO!$E$41="Non-endemic"),0,COUNTRY_INFO!R26) -> 1 | I26: =IF(INTRO!$E$39="Non-endemic",IF($G26=1,DEC!I26,0),IF($G26=1,IVM!G26,0)) -> 0 | J26: ALB | K26: =IF($J26="ALB", IF(INTRO!$E$39="Non-endemic", IF($H26<>0, IF($I26=0, $D26*$H26, $D26*($H26-$G26)), 0), $D26*$H26), 0) -> 73022 | L26: 185776 | N26: 258798 | O26: =IF($J26="MBD", IF(INTRO!$E$39="Non-endemic", IF($H26<>0, IF($I26=0, $D26*$H26, $D26*($H26-$G26)), 0), $D26*$H26), 0) -> 0 | P26: 0 | R26: 0 | T26: 0 | U26: 0 | W26: 185776 | X26: 929 | Z26: 0 | AA26: 0
A27: =IF(AND(INTRO!$E$37="Non-endemic",INTRO!$E$41="Non-endemic")," ",IF(COUNTRY_INFO!A27=0," ",COUNTRY_INFO!A27)) -> MALAWI | B27: =IF(AND(INTRO!$E$37="Non-endemic",INTRO!$E$41="Non-endemic")," ",IF(COUNTRY_INFO!B27=0," ",COUNTRY_INFO!B27)) -> South | C27: =IF(AND(INTRO!$E$37="Non-endemic",INTRO!$E$41="Non-endemic")," ",IF(COUNTRY_INFO!C27=0," ",COUNTRY_INFO!C27)) -> Chiradzulu | D27: =IF(AND(INTRO!$E$37="Non-endemic",INTRO!$E$41="Non-endemic"),0,IF(AND(OR(COUNTRY_INFO!$H27=0,COUNTRY_INFO!$H27=4,COUNTRY_INFO!$H27=99),OR(COUNTRY_INFO!$J27=0,COUNTRY_INFO!$J27=4)),0,COUNTRY_INFO!$E27)) -> 46149 | E27: =IF(AND(INTRO!$E$37="Non-endemic",INTRO!$E$41="Non-endemic"),0,IF(AND(OR(COUNTRY_INFO!$H27=0,COUNTRY_INFO!$H27=4,COUNTRY_INFO!$H27=99),OR(COUNTRY_INFO!$J27=0,COUNTRY_INFO!$J27=4)),0,COUNTRY_INFO!$F27)) -> 117409 | F27: 163558 | G27: =IF(AND(INTRO!$E$37="Non-endemic",INTRO!$E$41="Non-endemic"),0,COUNTRY_INFO!P27) -> 0 | H27: =IF(AND(INTRO!$E$37="Non-endemic",INTRO!$E$41="Non-endemic"),0,COUNTRY_INFO!R27) -> 1 | I27: =IF(INTRO!$E$39="Non-endemic",IF($G27=1,DEC!I27,0),IF($G27=1,IVM!G27,0)) -> 0 | J27: ALB | K27: =IF($J27="ALB", IF(INTRO!$E$39="Non-endemic", IF($H27<>0, IF($I27=0, $D27*$H27, $D27*($H27-$G27)), 0), $D27*$H27), 0) -> 46149 | L27: 117409 | N27: 163558 | O27: =IF($J27="MBD", IF(INTRO!$E$39="Non-endemic", IF($H27<>0, IF($I27=0, $D27*$H27, $D27*($H27-$G27)), 0), $D27*$H27), 0) -> 0 | P27: 0 | R27: 0 | T27: 0 | U27: 0 | W27: 117409 | X27: 588 | Z27: 0 | AA27: 0
A28: =IF(AND(INTRO!$E$37="Non-endemic",INTRO!$E$41="Non-endemic")," ",IF(COUNTRY_INFO!A28=0," ",COUNTRY_INFO!A28)) -> MALAWI | B28: =IF(AND(INTRO!$E$37="Non-endemic",INTRO!$E$41="Non-endemic")," ",IF(COUNTRY_INFO!B28=0," ",COUNTRY_INFO!B28)) -> South | C28: =IF(AND(INTRO!$E$37="Non-endemic",INTRO!$E$41="Non-endemic")," ",IF(COUNTRY_INFO!C28=0," ",COUNTRY_INFO!C28)) -> Machinga | D28: =IF(AND(INTRO!$E$37="Non-endemic",INTRO!$E$41="Non-endemic"),0,IF(AND(OR(COUNTRY_INFO!$H28=0,COUNTRY_INFO!$H28=4,COUNTRY_INFO!$H28=99),OR(COUNTRY_INFO!$J28=0,COUNTRY_INFO!$J28=4)),0,COUNTRY_INFO!$E28)) -> 95103 | E28: =IF(AND(INTRO!$E$37="Non-endemic",INTRO!$E$41="Non-endemic"),0,IF(AND(OR(COUNTRY_INFO!$H28=0,COUNTRY_INFO!$H28=4,COUNTRY_INFO!$H28=99),OR(COUNTRY_INFO!$J28=0,COUNTRY_INFO!$J28=4)),0,COUNTRY_INFO!$F28)) -> 241953 | F28: 337056 | G28: =IF(AND(INTRO!$E$37="Non-endemic",INTRO!$E$41="Non-endemic"),0,COUNTRY_INFO!P28) -> 0 | H28: =IF(AND(INTRO!$E$37="Non-endemic",INTRO!$E$41="Non-endemic"),0,COUNTRY_INFO!R28) -> 1 | I28: =IF(INTRO!$E$39="Non-endemic",IF($G28=1,DEC!I28,0),IF($G28=1,IVM!G28,0)) -> 0 | J28: ALB | K28: =IF($J28="ALB", IF(INTRO!$E$39="Non-endemic", IF($H28<>0, IF($I28=0, $D28*$H28, $D28*($H28-$G28)), 0), $D28*$H28), 0) -> 95103 | L28: 241953 | N28: 337056 | O28: =IF($J28="MBD", IF(INTRO!$E$39="Non-endemic", IF($H28<>0, IF($I28=0, $D28*$H28, $D28*($H28-$G28)), 0), $D28*$H28), 0) -> 0 | P28: 0 | R28: 0 | T28: 0 | U28: 0 | W28: 241953 | X28: 1210 | Z28: 0 | AA28: 0
A29: =IF(AND(INTRO!$E$37="Non-endemic",INTRO!$E$41="Non-endemic")," ",IF(COUNTRY_INFO!A29=0," ",COUNTRY_INFO!A29)) -> MALAWI | B29: =IF(AND(INTRO!$E$37="Non-endemic",INTRO!$E$41="Non-endemic")," ",IF(COUNTRY_INFO!B29=0," ",COUNTRY_INFO!B29)) -> South | C29: =IF(AND(INTRO!$E$37="Non-endemic",INTRO!$E$41="Non-endemic")," ",IF(COUNTRY_INFO!C29=0," ",COUNTRY_INFO!C29)) -> Blantyre | D29: =IF(AND(INTRO!$E$37="Non-endemic",INTRO!$E$41="Non-endemic"),0,IF(AND(OR(COUNTRY_INFO!$H29=0,COUNTRY_INFO!$H29=4,COUNTRY_INFO!$H29=99),OR(COUNTRY_INFO!$J29=0,COUNTRY_INFO!$J29=4)),0,COUNTRY_INFO!$E29)) -> 161835 | E29: =IF(AND(INTRO!$E$37="Non-endemic",INTRO!$E$41="Non-endemic"),0,IF(AND(OR(COUNTRY_INFO!$H29=0,COUNTRY_INFO!$H29=4,COUNTRY_INFO!$H29=99),OR(COUNTRY_INFO!$J29=0,COUNTRY_INFO!$J29=4)),0,COUNTRY_INFO!$F29)) -> 411728 | F29: 573563 | G29: =IF(AND(INTRO!$E$37="Non-endemic",INTRO!$E$41="Non-endemic"),0,COUNTRY_INFO!P29) -> 0 | H29: =IF(AND(INTRO!$E$37="Non-endemic",INTRO!$E$41="Non-endemic"),0,COUNTRY_INFO!R29) -> 1 | I29: =IF(INTRO!$E$39="Non-endemic",IF($G29=1,DEC!I29,0),IF($G29=1,IVM!G29,0)) -> 0 | J29: ALB | K29: =IF($J29="ALB", IF(INTRO!$E$39="Non-endemic", IF($H29<>0, IF($I29=0, $D29*$H29, $D29*($H29-$G29)), 0), $D29*$H29), 0) -> 161835 | L29: 411728 | N29: 573563 | O29: =IF($J29="MBD", IF(INTRO!$E$39="Non-endemic", IF($H29<>0, IF($I29=0, $D29*$H29, $D29*($H29-$G29)), 0), $D29*$H29), 0) -> 0 | P29: 0 | R29: 0 | T29: 0 | U29: 0 | W29: 411728 | X29: 2059 | Z29: 0 | AA29: 0
A30: =IF(AND(INTRO!$E$37="Non-endemic",INTRO!$E$41="Non-endemic")," ",IF(COUNTRY_INFO!A30=0," ",COUNTRY_INFO!A30)) -> MALAWI | B30: =IF(AND(INTRO!$E$37="Non-endemic",INTRO!$E$41="Non-endemic")," ",IF(COUNTRY_INFO!B30=0," ",COUNTRY_INFO!B30)) -> South | C30: =IF(AND(INTRO!$E$37="Non-endemic",INTRO!$E$41="Non-endemic")," ",IF(COUNTRY_INFO!C30=0," ",COUNTRY_INFO!C30)) -> Mangochi | D30: =IF(AND(INTRO!$E$37="Non-endemic",INTRO!$E$41="Non-endemic"),0,IF(AND(OR(COUNTRY_INFO!$H30=0,COUNTRY_INFO!$H30=4,COUNTRY_INFO!$H30=99),OR(COUNTRY_INFO!$J30=0,COUNTRY_INFO!$J30=4)),0,COUNTRY_INFO!$E30)) -> 148532 | E30: =IF(AND(INTRO!$E$37="Non-endemic",INTRO!$E$41="Non-endemic"),0,IF(AND(OR(COUNTRY_INFO!$H30=0,COUNTRY_INFO!$H30=4,COUNTRY_INFO!$H30=99),OR(COUNTRY_INFO!$J30=0,COUNTRY_INFO!$J30=4)),0,COUNTRY_INFO!$F30)) -> 377883 | F30: 526415 | G30: =IF(AND(INTRO!$E$37="Non-endemic",INTRO!$E$41="Non-endemic"),0,COUNTRY_INFO!P30) -> 0 | H30: =IF(AND(INTRO!$E$37="Non-endemic",INTRO!$E$41="Non-endemic"),0,COUNTRY_INFO!R30) -> 1 | I30: =IF(INTRO!$E$39="Non-endemic",IF($G30=1,DEC!I30,0),IF($G30=1,IVM!G30,0)) -> 0 | J30: ALB | K30: =IF($J30="ALB", IF(INTRO!$E$39="Non-endemic", IF($H30<>0, IF($I30=0, $D30*$H30, $D30*($H30-$G30)), 0), $D30*$H30), 0) -> 148532 | L30: 377883 | N30: 526415 | O30: =IF($J30="MBD", IF(INTRO!$E$39="Non-endemic", IF($H30<>0, IF($I30=0, $D30*$H30, $D30*($H30-$G30)), 0), $D30*$H30), 0) -> 0 | P30: 0 | R30: 0 | T30: 0 | U30: 0 | W30: 377883 | X30: 1890 | Z30: 0 | AA30: 0
A31: =IF(AND(INTRO!$E$37="Non-endemic",INTRO!$E$41="Non-endemic")," ",IF(COUNTRY_INFO!A31=0," ",COUNTRY_INFO!A31)) -> MALAWI | B31: =IF(AND(INTRO!$E$37="Non-endemic",INTRO!$E$41="Non-endemic")," ",IF(COUNTRY_INFO!B31=0," ",COUNTRY_INFO!B31)) -> South | C31: =IF(AND(INTRO!$E$37="Non-endemic",INTRO!$E$41="Non-endemic")," ",IF(COUNTRY_INFO!C31=0," ",COUNTRY_INFO!C31)) -> Mulanje | D31: =IF(AND(INTRO!$E$37="Non-endemic",INTRO!$E$41="Non-endemic"),0,IF(AND(OR(COUNTRY_INFO!$H31=0,COUNTRY_INFO!$H31=4,COUNTRY_INFO!$H31=99),OR(COUNTRY_INFO!$J31=0,COUNTRY_INFO!$J31=4)),0,COUNTRY_INFO!$E31)) -> 88465 | E31: =IF(AND(INTRO!$E$37="Non-endemic",INTRO!$E$41="Non-endemic"),0,IF(AND(OR(COUNTRY_INFO!$H31=0,COUNTRY_INFO!$H31=4,COUNTRY_INFO!$H31=99),OR(COUNTRY_INFO!$J31=0,COUNTRY_INFO!$J31=4)),0,COUNTRY_INFO!$F31)) -> 225065 | F31: 313530 | G31: =IF(AND(INTRO!$E$37="Non-endemic",INTRO!$E$41="Non-endemic"),0,COUNTRY_INFO!P31) -> 0 | H31: =IF(AND(INTRO!$E$37="Non-endemic",INTRO!$E$41="Non-endemic"),0,COUNTRY_INFO!R31) -> 1 | I31: =IF(INTRO!$E$39="Non-endemic",IF($G31=1,DEC!I31,0),IF($G31=1,IVM!G31,0)) -> 0 | J31: ALB | K31: =IF($J31="ALB", IF(INTRO!$E$39="Non-endemic", IF($H31<>0, IF($I31=0, $D31*$H31, $D31*($H31-$G31)), 0), $D31*$H31), 0) -> 88465 | L31: 225065 | N31: 313530 | O31: =IF($J31="MBD", IF(INTRO!$E$39="Non-endemic", IF($H31<>0, IF($I31=0, $D31*$H31, $D31*($H31-$G31)), 0), $D31*$H31), 0) -> 0 | P31: 0 | R31: 0 | T31: 0 | U31: 0 | W31: 225065 | X31: 1126 | Z31: 0 | AA31: 0
A32: =IF(AND(INTRO!$E$37="Non-endemic",INTRO!$E$41="Non-endemic")," ",IF(COUNTRY_INFO!A32=0," ",COUNTRY_INFO!A32)) -> MALAWI | B32: =IF(AND(INTRO!$E$37="Non-endemic",INTRO!$E$41="Non-endemic")," ",IF(COUNTRY_INFO!B32=0," ",COUNTRY_INFO!B32)) -> South | C32: =IF(AND(INTRO!$E$37="Non-endemic",INTRO!$E$41="Non-endemic")," ",IF(COUNTRY_INFO!C32=0," ",COUNTRY_INFO!C32)) -> Nsanje | D32: =IF(AND(INTRO!$E$37="Non-endemic",INTRO!$E$41="Non-endemic"),0,IF(AND(OR(COUNTRY_INFO!$H32=0,COUNTRY_INFO!$H32=4,COUNTRY_INFO!$H32=99),OR(COUNTRY_INFO!$J32=0,COUNTRY_INFO!$J32=4)),0,COUNTRY_INFO!$E32)) -> 38687 | E32: =IF(AND(INTRO!$E$37="Non-endemic",INTRO!$E$41="Non-endemic"),0,IF(AND(OR(COUNTRY_INFO!$H32=0,COUNTRY_INFO!$H32=4,COUNTRY_INFO!$H32=99),OR(COUNTRY_INFO!$J32=0,COUNTRY_INFO!$J32=4)),0,COUNTRY_INFO!$F32)) -> 98424 | F32: 137111 | G32: =IF(AND(INTRO!$E$37="Non-endemic",INTRO!$E$41="Non-endemic"),0,COUNTRY_INFO!P32) -> 0 | H32: =IF(AND(INTRO!$E$37="Non-endemic",INTRO!$E$41="Non-endemic"),0,COUNTRY_INFO!R32) -> 1 | I32: =IF(INTRO!$E$39="Non-endemic",IF($G32=1,DEC!I32,0),IF($G32=1,IVM!G32,0)) -> 0 | J32: ALB | K32: =IF($J32="ALB", IF(INTRO!$E$39="Non-endemic", IF($H32<>0, IF($I32=0, $D32*$H32, $D32*($H32-$G32)), 0), $D32*$H32), 0) -> 38687 | L32: 98424 | N32: 137111 | O32: =IF($J32="MBD", IF(INTRO!$E$39="Non-endemic", IF($H32<>0, IF($I32=0, $D32*$H32, $D32*($H32-$G32)), 0), $D32*$H32), 0) -> 0 | P32: 0 | R32: 0 | T32: 0 | U32: 0 | W32: 98424 | X32: 493 | Z32: 0 | AA32: 0
A33: =IF(AND(INTRO!$E$37="Non-endemic",INTRO!$E$41="Non-endemic")," ",IF(COUNTRY_INFO!A33=0," ",COUNTRY_INFO!A33)) -> MALAWI | B33: =IF(AND(INTRO!$E$37="Non-endemic",INTRO!$E$41="Non-endemic")," ",IF(COUNTRY_INFO!B33=0," ",COUNTRY_INFO!B33)) -> South | C33: =IF(AND(INTRO!$E$37="Non-endemic",INTRO!$E$41="Non-endemic")," ",IF(COUNTRY_INFO!C33=0," ",COUNTRY_INFO!C33)) -> Phalombe | D33: =IF(AND(INTRO!$E$37="Non-endemic",INTRO!$E$41="Non-endemic"),0,IF(AND(OR(COUNTRY_INFO!$H33=0,COUNTRY_INFO!$H33=4,COUNTRY_INFO!$H33=99),OR(COUNTRY_INFO!$J33=0,COUNTRY_INFO!$J33=4)),0,COUNTRY_INFO!$E33)) -> 55534 | E33: =IF(AND(INTRO!$E$37="Non-endemic",INTRO!$E$41="Non-endemic"),0,IF(AND(OR(COUNTRY_INFO!$H33=0,COUNTRY_INFO!$H33=4,COUNTRY_INFO!$H33=99),OR(COUNTRY_INFO!$J33=0,COUNTRY_INFO!$J33=4)),0,COUNTRY_INFO!$F33)) -> 141285 | F33: 196819 | G33: =IF(AND(INTRO!$E$37="Non-endemic",INTRO!$E$41="Non-endemic"),0,COUNTRY_INFO!P33) -> 0 | H33: =IF(AND(INTRO!$E$37="Non-endemic",INTRO!$E$41="Non-endemic"),0,COUNTRY_INFO!R33) -> 1 | I33: =IF(INTRO!$E$39="Non-endemic",IF($G33=1,DEC!I33,0),IF($G33=1,IVM!G33,0)) -> 0 | J33: ALB | K33: =IF($J33="ALB", IF(INTRO!$E$39="Non-endemic", IF($H33<>0, IF($I33=0, $D33*$H33, $D33*($H33-$G33)), 0), $D33*$H33), 0) -> 55534 | L33: 141285 | N33: 196819 | O33: =IF($J33="MBD", IF(INTRO!$E$39="Non-endemic", IF($H33<>0, IF($I33=0, $D33*$H33, $D33*($H33-$G33)), 0), $D33*$H33), 0) -> 0 | P33: 0 | R33: 0 | T33: 0 | U33: 0 | W33: 141285 | X33: 707 | Z33: 0 | AA33: 0
A34: =IF(AND(INTRO!$E$37="Non-endemic",INTRO!$E$41="Non-endemic")," ",IF(COUNTRY_INFO!A34=0," ",COUNTRY_INFO!A34)) -> MALAWI | B34: =IF(AND(INTRO!$E$37="Non-endemic",INTRO!$E$41="Non-endemic")," ",IF(COUNTRY_INFO!B34=0," ",COUNTRY_INFO!B34)) -> South | C34: =IF(AND(INTRO!$E$37="Non-endemic",INTRO!$E$41="Non-endemic")," ",IF(COUNTRY_INFO!C34=0," ",COUNTRY_INFO!C34)) -> Thyolo | D34: =IF(AND(INTRO!$E$37="Non-endemic",INTRO!$E$41="Non-endemic"),0,IF(AND(OR(COUNTRY_INFO!$H34=0,COUNTRY_INFO!$H34=4,COUNTRY_INFO!$H34=99),OR(COUNTRY_INFO!$J34=0,COUNTRY_INFO!$J34=4)),0,COUNTRY_INFO!$E34)) -> 93295 | E34: =IF(AND(INTRO!$E$37="Non-endemic",INTRO!$E$41="Non-endemic"),0,IF(AND(OR(COUNTRY_INFO!$H34=0,COUNTRY_INFO!$H34=4,COUNTRY_INFO!$H34=99),OR(COUNTRY_INFO!$J34=0,COUNTRY_INFO!$J34=4)),0,COUNTRY_INFO!$F34)) -> 237353 | F34: 330648 | G34: =IF(AND(INTRO!$E$37="Non-endemic",INTRO!$E$41="Non-endemic"),0,COUNTRY_INFO!P34) -> 0 | H34: =IF(AND(INTRO!$E$37="Non-endemic",INTRO!$E$41="Non-endemic"),0,COUNTRY_INFO!R34) -> 1 | I34: =IF(INTRO!$E$39="Non-endemic",IF($G34=1,DEC!I34,0),IF($G34=1,IVM!G34,0)) -> 0 | J34: ALB | K34: =IF($J34="ALB", IF(INTRO!$E$39="Non-endemic", IF($H34<>0, IF($I34=0, $D34*$H34, $D34*($H34-$G34)), 0), $D34*$H34), 0) -> 93295 | L34: 237353 | N34: 330648 | O34: =IF($J34="MBD", IF(INTRO!$E$39="Non-endemic", IF($H34<>0, IF($I34=0, $D34*$H34, $D34*($H34-$G34)), 0), $D34*$H34), 0) -> 0 | P34: 0 | R34: 0 | T34: 0 | U34: 0 | W34: 237353 | X34: 1187 | Z34: 0 | AA34: 0
A35: =IF(AND(INTRO!$E$37="Non-endemic",INTRO!$E$41="Non-endemic")," ",IF(COUNTRY_INFO!A35=0," ",COUNTRY_INFO!A35)) -> MALAWI | B35: =IF(AND(INTRO!$E$37="Non-endemic",INTRO!$E$41="Non-endemic")," ",IF(COUNTRY_INFO!B35=0," ",COUNTRY_INFO!B35)) -> South | C35: =IF(AND(INTRO!$E$37="Non-endemic",INTRO!$E$41="Non-endemic")," ",IF(COUNTRY_INFO!C35=0," ",COUNTRY_INFO!C35)) -> Zomba | D35: =IF(AND(INTRO!$E$37="Non-endemic",INTRO!$E$41="Non-endemic"),0,IF(AND(OR(COUNTRY_INFO!$H35=0,COUNTRY_INFO!$H35=4,COUNTRY_INFO!$H35=99),OR(COUNTRY_INFO!$J35=0,COUNTRY_INFO!$J35=4)),0,COUNTRY_INFO!$E35)) -> 110142 | E35: =IF(AND(INTRO!$E$37="Non-endemic",INTRO!$E$41="Non-endemic"),0,IF(AND(OR(COUNTRY_INFO!$H35=0,COUNTRY_INFO!$H35=4,COUNTRY_INFO!$H35=99),OR(COUNTRY_INFO!$J35=0,COUNTRY_INFO!$J35=4)),0,COUNTRY_INFO!$F35)) -> 280214 | F35: 390356 | G35: =IF(AND(INTRO!$E$37="Non-endemic",INTRO!$E$41="Non-endemic"),0,COUNTRY_INFO!P35) -> 0 | H35: =IF(AND(INTRO!$E$37="Non-endemic",INTRO!$E$41="Non-endemic"),0,COUNTRY_INFO!R35) -> 1 | I35: =IF(INTRO!$E$39="Non-endemic",IF($G35=1,DEC!I35,0),IF($G35=1,IVM!G35,0)) -> 0 | J35: ALB | K35: =IF($J35="ALB", IF(INTRO!$E$39="Non-endemic", IF($H35<>0, IF($I35=0, $D35*$H35, $D35*($H35-$G35)), 0), $D35*$H35), 0) -> 110142 | L35: 280214 | N35: 390356 | O35: =IF($J35="MBD", IF(INTRO!$E$39="Non-endemic", IF($H35<>0, IF($I35=0, $D35*$H35, $D35*($H35-$G35)), 0), $D35*$H35), 0) -> 0 | P35: 0 | R35: 0 | T35: 0 | U35: 0 | W35: 280214 | X35: 1402 | Z35: 0 | AA35: 0
A36: =IF(AND(INTRO!$E$37="Non-endemic",INTRO!$E$41="Non-endemic")," ",IF(COUNTRY_INFO!A36=0," ",COUNTRY_INFO!A36)) -> MALAWI | B36: =IF(AND(INTRO!$E$37="Non-endemic",INTRO!$E$41="Non-endemic")," ",IF(COUNTRY_INFO!B36=0," ",COUNTRY_INFO!B36)) -> South | C36: =IF(AND(INTRO!$E$37="Non-endemic",INTRO!$E$41="Non-endemic")," ",IF(COUNTRY_INFO!C36=0," ",COUNTRY_INFO!C36)) -> Neno | D36: =IF(AND(INTRO!$E$37="Non-endemic",INTRO!$E$41="Non-endemic"),0,IF(AND(OR(COUNTRY_INFO!$H36=0,COUNTRY_INFO!$H36=4,COUNTRY_INFO!$H36=99),OR(COUNTRY_INFO!$J36=0,COUNTRY_INFO!$J36=4)),0,COUNTRY_INFO!$E36)) -> 17883 | E36: =IF(AND(INTRO!$E$37="Non-endemic",INTRO!$E$41="Non-endemic"),0,IF(AND(OR(COUNTRY_INFO!$H36=0,COUNTRY_INFO!$H36=4,COUNTRY_INFO!$H36=99),OR(COUNTRY_INFO!$J36=0,COUNTRY_INFO!$J36=4)),0,COUNTRY_INFO!$F36)) -> 45497 | F36: 63380 | G36: =IF(AND(INTRO!$E$37="Non-endemic",INTRO!$E$41="Non-endemic"),0,COUNTRY_INFO!P36) -> 0 | H36: =IF(AND(INTRO!$E$37="Non-endemic",INTRO!$E$41="Non-endemic"),0,COUNTRY_INFO!R36) -> 1 | I36: =IF(INTRO!$E$39="Non-endemic",IF($G36=1,DEC!I36,0),IF($G36=1,IVM!G36,0)) -> 0 | J36: ALB | K36: =IF($J36="ALB", IF(INTRO!$E$39="Non-endemic", IF($H36<>0, IF($I36=0, $D36*$H36, $D36*($H36-$G36)), 0), $D36*$H36), 0) -> 17883 | L36: 45497 | N36: 63380 | O36: =IF($J36="MBD", IF(INTRO!$E$39="Non-endemic", IF($H36<>0, IF($I36=0, $D36*$H36, $D36*($H36-$G36)), 0), $D36*$H36), 0) -> 0 | P36: 0 | R36: 0 | T36: 0 | U36: 0 | W36: 45497 | X36: 228 | Z36: 0 | AA36: 0
A37: =IF(AND(INTRO!$E$37="Non-endemic",INTRO!$E$41="Non-endemic")," ",IF(COUNTRY_INFO!A37=0," ",COUNTRY_INFO!A37)) -> MALAWI | B37: =IF(AND(INTRO!$E$37="Non-endemic",INTRO!$E$41="Non-endemic")," ",IF(COUNTRY_INFO!B37=0," ",COUNTRY_INFO!B37)) -> South | C37: =IF(AND(INTRO!$E$37="Non-endemic",INTRO!$E$41="Non-endemic")," ",IF(COUNTRY_INFO!C37=0," ",COUNTRY_INFO!C37)) -> Mwanza | D37: =IF(AND(INTRO!$E$37="Non-endemic",INTRO!$E$41="Non-endemic"),0,IF(AND(OR(COUNTRY_INFO!$H37=0,COUNTRY_INFO!$H37=4,COUNTRY_INFO!$H37=99),OR(COUNTRY_INFO!$J37=0,COUNTRY_INFO!$J37=4)),0,COUNTRY_INFO!$E37)) -> 16934 | E37: =IF(AND(INTRO!$E$37="Non-endemic",INTRO!$E$41="Non-endemic"),0,IF(AND(OR(COUNTRY_INFO!$H37=0,COUNTRY_INFO!$H37=4,COUNTRY_INFO!$H37=99),OR(COUNTRY_INFO!$J37=0,COUNTRY_INFO!$J37=4)),0,COUNTRY_INFO!$F37)) -> 43081 | F37: 60015 | G37: =IF(AND(INTRO!$E$37="Non-endemic",INTRO!$E$41="Non-endemic"),0,COUNTRY_INFO!P37) -> 0 | H37: =IF(AND(INTRO!$E$37="Non-endemic",INTRO!$E$41="Non-endemic"),0,COUNTRY_INFO!R37) -> 1 | I37: =IF(INTRO!$E$39="Non-endemic",IF($G37=1,DEC!I37,0),IF($G37=1,IVM!G37,0)) -> 0 | J37: ALB | K37: =IF($J37="ALB", IF(INTRO!$E$39="Non-endemic", IF($H37<>0, IF($I37=0, $D37*$H37, $D37*($H37-$G37)), 0), $D37*$H37), 0) -> 16934 | L37: 43081 | N37: 60015 | O37: =IF($J37="MBD", IF(INTRO!$E$39="Non-endemic", IF($H37<>0, IF($I37=0, $D37*$H37, $D37*($H37-$G37)), 0), $D37*$H37), 0) -> 0 | P37: 0 | R37: 0 | T37: 0 | U37: 0 | W37: 43081 | X37: 216 | Z37: 0 | AA37: 0

Sheet PZQ
A1: Praziquantel (PZQ)
A2: Administrative structure, eligible population by age group, treatment plan and information about tablets
A4: TOTAL | D4: =SUM(D$9:D$1000) -> 4719256 | E4: =SUM(E$9:E$1000) -> 1473910 | F4: =SUM(F$9:F$1000) -> 6193166 | I4: =SUM(I$9:I$1000) -> 4678393 | J4: 2935818 | K4: 266650 | L4: 3202468 | M4: 7339545 | N4: 799950 | O4: 7339545 | P4: 0 | Q4: 7339545 | R4: 7353
A6: Country administrative structure | D6: Population requiring treatment with PZQ | G6: Treatment plan | I6: Target population | M6: Praziquantel (PZQ)
A7: Country | B7: Province/State | C7: District | D7: SAC | E7: Adults | F7: Total | G7: SCH | H7: All SAC targeted? | I7: SAC | J7: SAC at lower level | K7: Adults | L7: Total | M7: SAC | N7: Adults | O7: Total required for SAC | P7: Remaining in stock | Q7: Tablets to be procured | R7: Bottle (600 mg) 1000 tablets
A9: =IF(INTRO!$E$43="Non-endemic"," ", IF(COUNTRY_INFO!A9=0," ",COUNTRY_INFO!A9)) -> MALAWI | B9: =IF(INTRO!$E$43="Non-endemic"," ", IF(COUNTRY_INFO!B9=0," ",COUNTRY_INFO!B9)) -> North | C9: =IF(INTRO!$E$43="Non-endemic"," ", IF(COUNTRY_INFO!C9=0," ",COUNTRY_INFO!C9)) -> Chitipa | D9: 72887 | E9: 17740 | F9: =SUM(D9:E9) -> 90627 | G9: =IF(INTRO!$E$43="Non-endemic", "Not required", COUNTRY_INFO!S9) -> 1 | I9: =IF($D9=0,0,IF(AND($G9>0,$H9<>"Yes"),D9,IF(AND($G9>0,$H9="Yes"),COUNTRY_INFO!$F9,0))) -> 72887 | J9: 26311 | K9: 0 | L9: =IF($J9=0,SUM(I9,K9),SUM(J9,K9)) -> 26311 | M9: =IF($J9=0,$I9*2.5,$J9*2.5) -> 65777.5 | N9: =$K9*3 -> 0 | O9: =M9 -> 65777.5 | Q9: =IF($O9>$P9,O9-P9,0) -> 65777.5 | R9: =ROUNDUP($O9/1000,0) -> 66
A10: =IF(INTRO!$E$43="Non-endemic"," ", IF(COUNTRY_INFO!A10=0," ",COUNTRY_INFO!A10)) -> MALAWI | B10: =IF(INTRO!$E$43="Non-endemic"," ", IF(COUNTRY_INFO!B10=0," ",COUNTRY_INFO!B10)) -> North | C10: =IF(INTRO!$E$43="Non-endemic"," ", IF(COUNTRY_INFO!C10=0," ",COUNTRY_INFO!C10)) -> Karonga | D10: 94503 | E10: 21251 | F10: =SUM(D10:E10) -> 115754 | G10: =IF(INTRO!$E$43="Non-endemic", "Not required", COUNTRY_INFO!S10) -> 1 | I10: =IF($D10=0,0,IF(AND($G10>0,$H10<>"Yes"),D10,IF(AND($G10>0,$H10="Yes"),COUNTRY_INFO!$F10,0))) -> 94503 | J10: 38364 | K10: 0 | L10: =IF($J10=0,SUM(I10,K10),SUM(J10,K10)) -> 38364 | M10: 95910 | N10: 0 | O10: =M10 -> 95910 | Q10: =IF($O10>$P10,O10-P10,0) -> 95910 | R10: 96
A11: =IF(INTRO!$E$43="Non-endemic"," ", IF(COUNTRY_INFO!A11=0," ",COUNTRY_INFO!A11)) -> MALAWI | B11: =IF(INTRO!$E$43="Non-endemic"," ", IF(COUNTRY_INFO!B11=0," ",COUNTRY_INFO!B11)) -> North | C11: =IF(INTRO!$E$43="Non-endemic"," ", IF(COUNTRY_INFO!C11=0," ",COUNTRY_INFO!C11)) -> Rumphi | D11: 53481 | E11: 4498 | F11: 57979 | G11: =IF(INTRO!$E$43="Non-endemic", "Not required", COUNTRY_INFO!S11) -> 1 | I11: =IF($D11=0,0,IF(AND($G11>0,$H11<>"Yes"),D11,IF(AND($G11>0,$H11="Yes"),COUNTRY_INFO!$F11,0))) -> 53481 | J11: 40605 | K11: 0 | L11: 40605 | M11: 101512.5 | N11: 0 | O11: 101512.5 | Q11: 101512.5 | R11: 102
A12: =IF(INTRO!$E$43="Non-endemic"," ", IF(COUNTRY_INFO!A12=0," ",COUNTRY_INFO!A12)) -> MALAWI | B12: =IF(INTRO!$E$43="Non-endemic"," ", IF(COUNTRY_INFO!B12=0," ",COUNTRY_INFO!B12)) -> North | C12: =IF(INTRO!$E$43="Non-endemic"," ", IF(COUNTRY_INFO!C12=0," ",COUNTRY_INFO!C12)) -> Mzimba North | D12: 224981 | E12: 57820 | F12: 282801 | G12: =IF(INTRO!$E$43="Non-endemic", "Not required", COUNTRY_INFO!S12) -> 1 | I12: =IF($D12=0,0,IF(AND($G12>0,$H12<>"Yes"),D12,IF(AND($G12>0,$H12="Yes"),COUNTRY_INFO!$F12,0))) -> 224981 | J12: 71704 | K12: 0 | L12: 71704 | M12: 179260 | N12: 0 | O12: 179260 | Q12: 179260 | R12: 180
A13: =IF(INTRO!$E$43="Non-endemic"," ", IF(COUNTRY_INFO!A13=0," ",COUNTRY_INFO!A13)) -> MALAWI | B13: =IF(INTRO!$E$43="Non-endemic"," ", IF(COUNTRY_INFO!B13=0," ",COUNTRY_INFO!B13)) -> North | C13: =IF(INTRO!$E$43="Non-endemic"," ", IF(COUNTRY_INFO!C13=0," ",COUNTRY_INFO!C13)) -> Mzimba South | D13: 60772 | E13: 13604 | F13: 74376 | G13: =IF(INTRO!$E$43="Non-endemic", "Not required", COUNTRY_INFO!S13) -> 1 | I13: =IF($D13=0,0,IF(AND($G13>0,$H13<>"Yes"),D13,IF(AND($G13>0,$H13="Yes"),COUNTRY_INFO!$F13,0))) -> 60772 | J13: 24305 | K13: 0 | L13: 24305 | M13: 60762.5 | N13: 0 | O13: 60762.5 | Q13: 60762.5 | R13: 61
A14: =IF(INTRO!$E$43="Non-endemic"," ", IF(COUNTRY_INFO!A14=0," ",COUNTRY_INFO!A14)) -> MALAWI | B14: =IF(INTRO!$E$43="Non-endemic"," ", IF(COUNTRY_INFO!B14=0," ",COUNTRY_INFO!B14)) -> North | C14: =IF(INTRO!$E$43="Non-endemic"," ", IF(COUNTRY_INFO!C14=0," ",COUNTRY_INFO!C14)) -> Nkhatabay | D14: 81932 | E14: 21020 | F14: 102952 | G14: =IF(INTRO!$E$43="Non-endemic", "Not required", COUNTRY_INFO!S14) -> 1 | I14: =IF($D14=0,0,IF(AND($G14>0,$H14<>"Yes"),D14,IF(AND($G14>0,$H14="Yes"),COUNTRY_INFO!$F14,0))) -> 81932 | J14: 26864 | K14: 0 | L14: 26864 | M14: 67160 | N14: 0 | O14: 67160 | Q14: 67160 | R14: 68
A15: =IF(INTRO!$E$43="Non-endemic"," ", IF(COUNTRY_INFO!A15=0," ",COUNTRY_INFO!A15)) -> MALAWI | B15: =IF(INTRO!$E$43="Non-endemic"," ", IF(COUNTRY_INFO!B15=0," ",COUNTRY_INFO!B15)) -> North | C15: =IF(INTRO!$E$43="Non-endemic"," ", IF(COUNTRY_INFO!C15=0," ",COUNTRY_INFO!C15)) -> Likoma | D15: 4516 | E15: 1588 | F15: 6104 | G15: =IF(INTRO!$E$43="Non-endemic", "Not required", COUNTRY_INFO!S15) -> 1 | I15: =IF($D15=0,0,IF(AND($G15>0,$H15<>"Yes"),D15,IF(AND($G15>0,$H15="Yes"),COUNTRY_INFO!$F15,0))) -> 4516 | J15: 399 | K15: 0 | L15: 399 | M15: 997.5 | N15: 0 | O15: 997.5 | Q15: 997.5 | R15: 1
A16: =IF(INTRO!$E$43="Non-endemic"," ", IF(COUNTRY_INFO!A16=0," ",COUNTRY_INFO!A16)) -> MALAWI | B16: =IF(INTRO!$E$43="Non-endemic"," ", IF(COUNTRY_INFO!B16=0," ",COUNTRY_INFO!B16)) -> Central | C16: =IF(INTRO!$E$43="Non-endemic"," ", IF(COUNTRY_INFO!C16=0," ",COUNTRY_INFO!C16)) -> Kasungu | D16: 261783 | E16: 66486 | F16: 328269 | G16: =IF(INTRO!$E$43="Non-endemic", "Not required", COUNTRY_INFO!S16) -> 1 | I16: =IF($D16=0,0,IF(AND($G16>0,$H16<>"Yes"),D16,IF(AND($G16>0,$H16="Yes"),COUNTRY_INFO!$F16,0))) -> 261783 | J16: 87450 | K16: 0 | L16: 87450 | M16: 218625 | N16: 0 | O16: 218625 | Q16: 218625 | R16: 219
A17: =IF(INTRO!$E$43="Non-endemic"," ", IF(COUNTRY_INFO!A17=0," ",COUNTRY_INFO!A17)) -> MALAWI | B17: =IF(INTRO!$E$43="Non-endemic"," ", IF(COUNTRY_INFO!B17=0," ",COUNTRY_INFO!B17)) -> Central | C17: =IF(INTRO!$E$43="Non-endemic"," ", IF(COUNTRY_INFO!C17=0," ",COUNTRY_INFO!C17)) -> Dedza | D17: 257670 | E17: 61882 | F17: 319552 | G17: =IF(INTRO!$E$43="Non-endemic", "Not required", COUNTRY_INFO!S17) -> 1 | I17: =IF($D17=0,0,IF(AND($G17>0,$H17<>"Yes"),D17,IF(AND($G17>0,$H17="Yes"),COUNTRY_INFO!$F17,0))) -> 257670 | J17: 155545 | K17: 0 | L17: 155545 | M17: 388862.5 | N17: 0 | O17: 388862.5 | Q17: 388862.5 | R17: 389
A18: =IF(INTRO!$E$43="Non-endemic"," ", IF(COUNTRY_INFO!A18=0," ",COUNTRY_INFO!A18)) -> MALAWI | B18: =IF(INTRO!$E$43="Non-endemic"," ", IF(COUNTRY_INFO!B18=0," ",COUNTRY_INFO!B18)) -> Central | C18: =IF(INTRO!$E$43="Non-endemic"," ", IF(COUNTRY_INFO!C18=0," ",COUNTRY_INFO!C18)) -> Dowa | D18: 105589 | E18: 12730 | F18: 118319 | G18: =IF(INTRO!$E$43="Non-endemic", "Not required", COUNTRY_INFO!S18) -> 1 | I18: =IF($D18=0,0,IF(AND($G18>0,$H18<>"Yes"),D18,IF(AND($G18>0,$H18="Yes"),COUNTRY_INFO!$F18,0))) -> 105589 | J18: 70511 | K18: 0 | L18: 70511 | M18: 176277.5 | N18: 0 | O18: 176277.5 | Q18: 176277.5 | R18: 177
A19: =IF(INTRO!$E$43="Non-endemic"," ", IF(COUNTRY_INFO!A19=0," ",COUNTRY_INFO!A19)) -> MALAWI | B19: =IF(INTRO!$E$43="Non-endemic"," ", IF(COUNTRY_INFO!B19=0," ",COUNTRY_INFO!B19)) -> Central | C19: =IF(INTRO!$E$43="Non-endemic"," ", IF(COUNTRY_INFO!C19=0," ",COUNTRY_INFO!C19)) -> Lilongwe | D19: 676882 | E19: 188850 | F19: 865732 | G19: =IF(INTRO!$E$43="Non-endemic", "Not required", COUNTRY_INFO!S19) -> 1 | I19: =IF($D19=0,0,IF(AND($G19>0,$H19<>"Yes"),D19,IF(AND($G19>0,$H19="Yes"),COUNTRY_INFO!$F19,0))) -> 676882 | J19: 255576 | K19: 29068 | L19: 284644 | M19: 638940 | N19: 87204 | O19: 638940 | Q19: 638940 | R19: 639
A20: =IF(INTRO!$E$43="Non-endemic"," ", IF(COUNTRY_INFO!A20=0," ",COUNTRY_INFO!A20)) -> MALAWI | B20: =IF(INTRO!$E$43="Non-endemic"," ", IF(COUNTRY_INFO!B20=0," ",COUNTRY_INFO!B20)) -> Central | C20: =IF(INTRO!$E$43="Non-endemic"," ", IF(COUNTRY_INFO!C20=0," ",COUNTRY_INFO!C20)) -> Mchinji | D20: 141363 | E20: 17781 | F20: 159144 | G20: =IF(INTRO!$E$43="Non-endemic", "Not required", COUNTRY_INFO!S20) -> 1 | I20: =IF($D20=0,0,IF(AND($G20>0,$H20<>"Yes"),D20,IF(AND($G20>0,$H20="Yes"),COUNTRY_INFO!$F20,0))) -> 141363 | J20: 92908 | K20: 0 | L20: 92908 | M20: 232270 | N20: 0 | O20: 232270 | Q20: 232270 | R20: 233
A21: =IF(INTRO!$E$43="Non-endemic"," ", IF(COUNTRY_INFO!A21=0," ",COUNTRY_INFO!A21)) -> MALAWI | B21: =IF(INTRO!$E$43="Non-endemic"," ", IF(COUNTRY_INFO!B21=0," ",COUNTRY_INFO!B21)) -> Central | C21: =IF(INTRO!$E$43="Non-endemic"," ", IF(COUNTRY_INFO!C21=0," ",COUNTRY_INFO!C21)) -> Salima | D21: 141558 | E21: 108444 | F21: 250002 | G21: =IF(INTRO!$E$43="Non-endemic", "Not required", COUNTRY_INFO!S21) -> 1 | I21: =IF($D21=0,0,IF(AND($G21>0,$H21<>"Yes"),D21,IF(AND($G21>0,$H21="Yes"),COUNTRY_INFO!$F21,0))) -> 141558 | J21: 91760 | K21: 89655 | L21: 181415 | M21: 229400 | N21: 268965 | O21: 229400 | Q21: 229400 | R21: 230
A22: =IF(INTRO!$E$43="Non-endemic"," ", IF(COUNTRY_INFO!A22=0," ",COUNTRY_INFO!A22)) -> MALAWI | B22: =IF(INTRO!$E$43="Non-endemic"," ", IF(COUNTRY_INFO!B22=0," ",COUNTRY_INFO!B22)) -> Central | C22: =IF(INTRO!$E$43="Non-endemic"," ", IF(COUNTRY_INFO!C22=0," ",COUNTRY_INFO!C22)) -> Nkhotakota | D22: 121836 | E22: 92474 | F22: 214310 | G22: =IF(INTRO!$E$43="Non-endemic", "Not required", COUNTRY_INFO!S22) -> 1 | I22: =IF($D22=0,0,IF(AND($G22>0,$H22<>"Yes"),D22,IF(AND($G22>0,$H22="Yes"),COUNTRY_INFO!$F22,0))) -> 121836 | J22: 118632 | K22: 56653 | L22: 175285 | M22: 296580 | N22: 169959 | O22: 296580 | Q22: 296580 | R22: 297
A23: =IF(INTRO!$E$43="Non-endemic"," ", IF(COUNTRY_INFO!A23=0," ",COUNTRY_INFO!A23)) -> MALAWI | B23: =IF(INTRO!$E$43="Non-endemic"," ", IF(COUNTRY_INFO!B23=0," ",COUNTRY_INFO!B23)) -> Central | C23: =IF(INTRO!$E$43="Non-endemic"," ", IF(COUNTRY_INFO!C23=0," ",COUNTRY_INFO!C23)) -> Ntchisi | D23: 60616 | E23: 18091 | F23: 78707 | G23: =IF(INTRO!$E$43="Non-endemic", "Not required", COUNTRY_INFO!S23) -> 1 | I23: =IF($D23=0,0,IF(AND($G23>0,$H23<>"Yes"),D23,IF(AND($G23>0,$H23="Yes"),COUNTRY_INFO!$F23,0))) -> 60616 | J23: 13397 | K23: 0 | L23: 13397 | M23: 33492.5 | N23: 0 | O23: 33492.5 | Q23: 33492.5 | R23: 34
A24: =IF(INTRO!$E$43="Non-endemic"," ", IF(COUNTRY_INFO!A24=0," ",COUNTRY_INFO!A24)) -> MALAWI | B24: =IF(INTRO!$E$43="Non-endemic"," ", IF(COUNTRY_INFO!B24=0," ",COUNTRY_INFO!B24)) -> Central | C24: =IF(INTRO!$E$43="Non-endemic"," ", IF(COUNTRY_INFO!C24=0," ",COUNTRY_INFO!C24)) -> Ntcheu | D24: 159498 | E24: 23252 | F24: 182750 | G24: =IF(INTRO!$E$43="Non-endemic", "Not required", COUNTRY_INFO!S24) -> 1 | I24: =IF($D24=0,0,IF(AND($G24>0,$H24<>"Yes"),D24,IF(AND($G24>0,$H24="Yes"),COUNTRY_INFO!$F24,0))) -> 159498 | J24: 96241 | K24: 0 | L24: 96241 | M24: 240602.5 | N24: 0 | O24: 240602.5 | Q24: 240602.5 | R24: 241
A25: =IF(INTRO!$E$43="Non-endemic"," ", IF(COUNTRY_INFO!A25=0," ",COUNTRY_INFO!A25)) -> MALAWI | B25: =IF(INTRO!$E$43="Non-endemic"," ", IF(COUNTRY_INFO!B25=0," ",COUNTRY_INFO!B25)) -> South | C25: =IF(INTRO!$E$43="Non-endemic"," ", IF(COUNTRY_INFO!C25=0," ",COUNTRY_INFO!C25)) -> Balaka | D25: 115170 | E25: 8432 | F25: 123602 | G25: =IF(INTRO!$E$43="Non-endemic", "Not required", COUNTRY_INFO!S25) -> 1 | I25: =IF($D25=0,0,IF(AND($G25>0,$H25<>"Yes"),D25,IF(AND($G25>0,$H25="Yes"),COUNTRY_INFO!$F25,0))) -> 115170 | J25: 90489 | K25: 0 | L25: 90489 | M25: 226222.5 | N25: 0 | O25: 226222.5 | Q25: 226222.5 | R25: 227
A26: =IF(INTRO!$E$43="Non-endemic"," ", IF(COUNTRY_INFO!A26=0," ",COUNTRY_INFO!A26)) -> MALAWI | B26: =IF(INTRO!$E$43="Non-endemic"," ", IF(COUNTRY_INFO!B26=0," ",COUNTRY_INFO!B26)) -> South | C26: =IF(INTRO!$E$43="Non-endemic"," ", IF(COUNTRY_INFO!C26=0," ",COUNTRY_INFO!C26)) -> Chikwawa | D26: 174684 | E26: 67602 | F26: 242286 | G26: =IF(INTRO!$E$43="Non-endemic", "Not required", COUNTRY_INFO!S26) -> 1 | I26: =IF($D26=0,0,IF(AND($G26>0,$H26<>"Yes"),D26,IF(AND($G26>0,$H26="Yes"),COUNTRY_INFO!$F26,0))) -> 174684 | J26: 170425 | K26: 0 | L26: 170425 | M26: 426062.5 | N26: 0 | O26: 426062.5 | Q26: 426062.5 | R26: 427
A27: =IF(INTRO!$E$43="Non-endemic"," ", IF(COUNTRY_INFO!A27=0," ",COUNTRY_INFO!A27)) -> MALAWI | B27: =IF(INTRO!$E$43="Non-endemic"," ", IF(COUNTRY_INFO!B27=0," ",COUNTRY_INFO!B27)) -> South | C27: =IF(INTRO!$E$43="Non-endemic"," ", IF(COUNTRY_INFO!C27=0," ",COUNTRY_INFO!C27)) -> Chiradzulu | D27: 109056 | E27: 24905 | F27: 133961 | G27: =IF(INTRO!$E$43="Non-endemic", "Not required", COUNTRY_INFO!S27) -> 1 | I27: =IF($D27=0,0,IF(AND($G27>0,$H27<>"Yes"),D27,IF(AND($G27>0,$H27="Yes"),COUNTRY_INFO!$F27,0))) -> 109056 | J27: 63028 | K27: 0 | L27: 63028 | M27: 157570 | N27: 0 | O27: 157570 | Q27: 157570 | R27: 158
A28: =IF(INTRO!$E$43="Non-endemic"," ", IF(COUNTRY_INFO!A28=0," ",COUNTRY_INFO!A28)) -> MALAWI | B28: =IF(INTRO!$E$43="Non-endemic"," ", IF(COUNTRY_INFO!B28=0," ",COUNTRY_INFO!B28)) -> South | C28: =IF(INTRO!$E$43="Non-endemic"," ", IF(COUNTRY_INFO!C28=0," ",COUNTRY_INFO!C28)) -> Machinga | D28: 230616 | E28: 89248 | F28: 319864 | G28: =IF(INTRO!$E$43="Non-endemic", "Not required", COUNTRY_INFO!S28) -> 1 | I28: =IF($D28=0,0,IF(AND($G28>0,$H28<>"Yes"),D28,IF(AND($G28>0,$H28="Yes"),COUNTRY_INFO!$F28,0))) -> 230616 | J28: 221956 | K28: 0 | L28: 221956 | M28: 554890 | N28: 0 | O28: 554890 | Q28: 554890 | R28: 555
A29: =IF(INTRO!$E$43="Non-endemic"," ", IF(COUNTRY_INFO!A29=0," ",COUNTRY_INFO!A29)) -> MALAWI | B29: =IF(INTRO!$E$43="Non-endemic"," ", IF(COUNTRY_INFO!B29=0," ",COUNTRY_INFO!B29)) -> South | C29: =IF(INTRO!$E$43="Non-endemic"," ", IF(COUNTRY_INFO!C29=0," ",COUNTRY_INFO!C29)) -> Blantyre | D29: 309102 | E29: 46266 | F29: 355368 | G29: =IF(INTRO!$E$43="Non-endemic", "Not required", COUNTRY_INFO!S29) -> 1 | I29: =IF($D29=0,0,IF(AND($G29>0,$H29<>"Yes"),D29,IF(AND($G29>0,$H29="Yes"),COUNTRY_INFO!$F29,0))) -> 309102 | J29: 185114 | K29: 0 | L29: 185114 | M29: 462785 | N29: 0 | O29: 462785 | Q29: 462785 | R29: 463
A30: =IF(INTRO!$E$43="Non-endemic"," ", IF(COUNTRY_INFO!A30=0," ",COUNTRY_INFO!A30)) -> MALAWI | B30: =IF(INTRO!$E$43="Non-endemic"," ", IF(COUNTRY_INFO!B30=0," ",COUNTRY_INFO!B30)) -> South | C30: =IF(INTRO!$E$43="Non-endemic"," ", IF(COUNTRY_INFO!C30=0," ",COUNTRY_INFO!C30)) -> Mangochi | D30: 326969 | E30: 189528 | F30: 516497 | G30: =IF(INTRO!$E$43="Non-endemic", "Not required", COUNTRY_INFO!S30) -> 1 | I30: =IF($D30=0,0,IF(AND($G30>0,$H30<>"Yes"),D30,IF(AND($G30>0,$H30="Yes"),COUNTRY_INFO!$F30,0))) -> 326969 | J30: 315607 | K30: 78737 | L30: 394344 | M30: 789017.5 | N30: 236211 | O30: 789017.5 | Q30: 789017.5 | R30: 790
A31: =IF(INTRO!$E$43="Non-endemic"," ", IF(COUNTRY_INFO!A31=0," ",COUNTRY_INFO!A31)) -> MALAWI | B31: =IF(INTRO!$E$43="Non-endemic"," ", IF(COUNTRY_INFO!B31=0," ",COUNTRY_INFO!B31)) -> South | C31: =IF(INTRO!$E$43="Non-endemic"," ", IF(COUNTRY_INFO!C31=0," ",COUNTRY_INFO!C31)) -> Mulanje | D31: 211834 | E31: 75857 | F31: 287691 | G31: =IF(INTRO!$E$43="Non-endemic", "Not required", COUNTRY_INFO!S31) -> 1 | I31: =IF($D31=0,0,IF(AND($G31>0,$H31<>"Yes"),D31,IF(AND($G31>0,$H31="Yes"),COUNTRY_INFO!$F31,0))) -> 211834 | J31: 191041 | K31: 0 | L31: 191041 | M31: 477602.5 | N31: 0 | O31: 477602.5 | Q31: 477602.5 | R31: 478
A32: =IF(INTRO!$E$43="Non-endemic"," ", IF(COUNTRY_INFO!A32=0," ",COUNTRY_INFO!A32)) -> MALAWI | B32: =IF(INTRO!$E$43="Non-endemic"," ", IF(COUNTRY_INFO!B32=0," ",COUNTRY_INFO!B32)) -> South | C32: =IF(INTRO!$E$43="Non-endemic"," ", IF(COUNTRY_INFO!C32=0," ",COUNTRY_INFO!C32)) -> Nsanje | D32: 92184 | E32: 44664 | F32: 136848 | G32: =IF(INTRO!$E$43="Non-endemic", "Not required", COUNTRY_INFO!S32) -> 1 | I32: =IF($D32=0,0,IF(AND($G32>0,$H32<>"Yes"),D32,IF(AND($G32>0,$H32="Yes"),COUNTRY_INFO!$F32,0))) -> 92184 | J32: 68474 | K32: 12537 | L32: 81011 | M32: 171185 | N32: 37611 | O32: 171185 | Q32: 171185 | R32: 172
A33: =IF(INTRO!$E$43="Non-endemic"," ", IF(COUNTRY_INFO!A33=0," ",COUNTRY_INFO!A33)) -> MALAWI | B33: =IF(INTRO!$E$43="Non-endemic"," ", IF(COUNTRY_INFO!B33=0," ",COUNTRY_INFO!B33)) -> South | C33: =IF(INTRO!$E$43="Non-endemic"," ", IF(COUNTRY_INFO!C33=0," ",COUNTRY_INFO!C33)) -> Phalombe | D33: 114616 | E33: 39507 | F33: 154123 | G33: =IF(INTRO!$E$43="Non-endemic", "Not required", COUNTRY_INFO!S33) -> 1 | I33: =IF($D33=0,0,IF(AND($G33>0,$H33<>"Yes"),D33,IF(AND($G33>0,$H33="Yes"),COUNTRY_INFO!$F33,0))) -> 114616 | J33: 12167 | K33: 0 | L33: 12167 | M33: 30417.5 | N33: 0 | O33: 30417.5 | Q33: 30417.5 | R33: 31
A34: =IF(INTRO!$E$43="Non-endemic"," ", IF(COUNTRY_INFO!A34=0," ",COUNTRY_INFO!A34)) -> MALAWI | B34: =IF(INTRO!$E$43="Non-endemic"," ", IF(COUNTRY_INFO!B34=0," ",COUNTRY_INFO!B34)) -> South | C34: =IF(INTRO!$E$43="Non-endemic"," ", IF(COUNTRY_INFO!C34=0," ",COUNTRY_INFO!C34)) -> Thyolo | D34: 171869 | E34: 60675 | F34: 232544 | G34: =IF(INTRO!$E$43="Non-endemic", "Not required", COUNTRY_INFO!S34) -> 1 | I34: =IF($D34=0,0,IF(AND($G34>0,$H34<>"Yes"),D34,IF(AND($G34>0,$H34="Yes"),COUNTRY_INFO!$F34,0))) -> 171869 | J34: 153704 | K34: 0 | L34: 153704 | M34: 384260 | N34: 0 | O34: 384260 | Q34: 384260 | R34: 385
A35: =IF(INTRO!$E$43="Non-endemic"," ", IF(COUNTRY_INFO!A35=0," ",COUNTRY_INFO!A35)) -> MALAWI | B35: =IF(INTRO!$E$43="Non-endemic"," ", IF(COUNTRY_INFO!B35=0," ",COUNTRY_INFO!B35)) -> South | C35: =IF(INTRO!$E$43="Non-endemic"," ", IF(COUNTRY_INFO!C35=0," ",COUNTRY_INFO!C35)) -> Zomba | D35: 259687 | E35: 83899 | F35: 343586 | G35: =IF(INTRO!$E$43="Non-endemic", "Not required", COUNTRY_INFO!S35) -> 1 | I35: =IF($D35=0,0,IF(AND($G35>0,$H35<>"Yes"),D35,IF(AND($G35>0,$H35="Yes"),COUNTRY_INFO!$F35,0))) -> 259687 | J35: 211504 | K35: 0 | L35: 211504 | M35: 528760 | N35: 0 | O35: 528760 | Q35: 528760 | R35: 529
A36: =IF(INTRO!$E$43="Non-endemic"," ", IF(COUNTRY_INFO!A36=0," ",COUNTRY_INFO!A36)) -> MALAWI | B36: =IF(INTRO!$E$43="Non-endemic"," ", IF(COUNTRY_INFO!B36=0," ",COUNTRY_INFO!B36)) -> South | C36: =IF(INTRO!$E$43="Non-endemic"," ", IF(COUNTRY_INFO!C36=0," ",COUNTRY_INFO!C36)) -> Neno | D36: 42739 | E36: 0 | F36: 42739 | G36: =IF(INTRO!$E$43="Non-endemic", "Not required", COUNTRY_INFO!S36) -> 1 | I36: =IF($D36=0,0,IF(AND($G36>0,$H36<>"Yes"),D36,IF(AND($G36>0,$H36="Yes"),COUNTRY_INFO!$F36,0))) -> 42739 | J36: 41737 | K36: 0 | L36: 41737 | M36: 104342.5 | N36: 0 | O36: 104342.5 | Q36: 104342.5 | R36: 105
A37: =IF(INTRO!$E$43="Non-endemic"," ", IF(COUNTRY_INFO!A37=0," ",COUNTRY_INFO!A37)) -> MALAWI | B37: =IF(INTRO!$E$43="Non-endemic"," ", IF(COUNTRY_INFO!B37=0," ",COUNTRY_INFO!B37)) -> South | C37: =IF(INTRO!$E$43="Non-endemic"," ", IF(COUNTRY_INFO!C37=0," ",COUNTRY_INFO!C37)) -> Mwanza | D37: 40863 | E37: 15816 | F37: 56679 | G37: =IF(INTRO!$E$43="Non-endemic", "Not required", COUNTRY_INFO!S37) -> 0 | I37: =IF($D37=0,0,IF(AND($G37>0,$H37<>"Yes"),D37,IF(AND($G37>0,$H37="Yes"),COUNTRY_INFO!$F37,0))) -> 0 | J37: 0 | K37: 0 | L37: 0 | M37: 0 | N37: 0 | O37: 0 | Q37: 0 | R37: 0

Sheet DSD
A1: Geography | H1: EPI | I1: Population Requiring PC and Annual Treatment Projections - 2023
A2: SN | B2: Country | C2: ISO3 | D2: Region | E2: District | F2: ESPEN_IU_ID | G2: Ward | H2: Endemicity | I2: SAC Requiring PC | J2: Adult Requiring PC | K2: Total Requiring PC | L2: Planned for Rx | M2: SAC Estimations for Rx | N2: Adult Estimations for Rx | O2: Total Estimations for Rx
A3: 1 | B3: Malawi | C3: MWI | D3: Central | E3: Dedza | F3: 28949 | G3: Dedza Boma | H3: Moderate | I3: 9595 | J3: 3713 | K3: 13308 | L3: 0 | M3: 0 | N3: 0 | O3: 0
A4: 2 | B4: Malawi | C4: MWI | D4: Central | E4: Dedza | F4: 28949 | G4: TA Chauma | H4: Moderate | I4: 7026 | J4: 2719 | K4: 9745 | L4: 0 | M4: 0 | N4: 0 | O4: 0
A5: 3 | B5: Malawi | C5: MWI | D5: Central | E5: Dedza | F5: 28949 | G5: TA Chilikumwendo | H5: Moderate | I5: 24466 | J5: 9469 | K5: 33935 | L5: 0 | M5: 0 | N5: 0 | O5: 0
A6: 4 | B6: Malawi | C6: MWI | D6: Central | E6: Dedza | F6: 28949 | G6: TA Kachere | H6: Moderate | I6: 52015 | J6: 20130 | K6: 72145 | L6: 0 | M6: 0 | N6: 0 | O6: 0
A7: 5 | B7: Malawi | C7: MWI | D7: Central | E7: Dedza | F7: 28949 | G7: TA Kachindamoto | H7: Moderate | I7: 40704 | J7: 15753 | K7: 56457 | L7: 0 | M7: 0 | N7: 0 | O7: 0
A8: 6 | B8: Malawi | C8: MWI | D8: Central | E8: Dedza | F8: 28949 | G8: TA Kamenya Gwaza | H8: Low | I8: 11429 | J8: 0 | K8: 11429 | L8: 0 | M8: 0 | N8: 0 | O8: 0
A9: 7 | B9: Malawi | C9: MWI | D9: Central | E9: Dedza | F9: 28949 | G9: TA Kaphuka | H9: Low | I9: 52131 | J9: 0 | K9: 52131 | L9: 0 | M9: 0 | N9: 0 | O9: 0
A10: 8 | B10: Malawi | C10: MWI | D10: Central | E10: Dedza | F10: 28949 | G10: TA Kasumbu | H10: Low | I10: 34210 | J10: 0 | K10: 34210 | L10: 0 | M10: 0 | N10: 0 | O10: 0
A11: 9 | B11: Malawi | C11: MWI | D11: Central | E11: Dedza | F11: 28949 | G11: TA Tambala | H11: Moderate | I11: 26094 | J11: 10098 | K11: 36192 | L11: 0 | M11: 0 | N11: 0 | O11: 0
A12: 10 | B12: Malawi | C12: MWI | D12: Central | E12: Dowa | F12: 28950 | G12: Dowa Boma | H12: Not endemic | I12: 0 | J12: 0 | K12: 0 | L12: 0 | M12: 0 | N12: 0 | O12: 0
A13: 11 | B13: Malawi | C13: MWI | D13: Central | E13: Dowa | F13: 28950 | G13: Mponela Urban | H13: Low | I13: 7637 | J13: 0 | K13: 7637 | L13: 0 | M13: 0 | N13: 0 | O13: 0
A14: 12 | B14: Malawi | C14: MWI | D14: Central | E14: Dowa | F14: 28950 | G14: TA Chakhaza | H14: Not endemic | I14: 0 | J14: 0 | K14: 0 | L14: 0 | M14: 0 | N14: 0 | O14: 0
A15: 13 | B15: Malawi | C15: MWI | D15: Central | E15: Dowa | F15: 28950 | G15: TA Chiwere | H15: Moderate | I15: 32892 | J15: 12730 | K15: 45622 | L15: 0 | M15: 0 | N15: 0 | O15: 0
A16: 14 | B16: Malawi | C16: MWI | D16: Central | E16: Dowa | F16: 28950 | G16: TA Dzoole | H16: Low | I16: 29273 | J16: 0 | K16: 29273 | L16: 0 | M16: 0 | N16: 0 | O16: 0
A17: 15 | B17: Malawi | C17: MWI | D17: Central | E17: Dowa | F17: 28950 | G17: TA Kayembe | H17: Low | I17: 35787 | J17: 0 | K17: 35787 | L17: 0 | M17: 0 | N17: 0 | O17: 0
A18: 16 | B18: Malawi | C18: MWI | D18: Central | E18: Dowa | F18: 28950 | G18: TA Mkukula | H18: Not endemic | I18: 0 | J18: 0 | K18: 0 | L18: 0 | M18: 0 | N18: 0 | O18: 0
A19: 17 | B19: Malawi | C19: MWI | D19: Central | E19: Dowa | F19: 28950 | G19: TA Mponela | H19: Not endemic | I19: 0 | J19: 0 | K19: 0 | L19: 0 | M19: 0 | N19: 0 | O19: 0
A20: 18 | B20: Malawi | C20: MWI | D20: Central | E20: Dowa | F20: 28950 | G20: TA Msakambewa | H20: Not endemic | I20: 0 | J20: 0 | K20: 0 | L20: 0 | M20: 0 | N20: 0 | O20: 0
A21: 19 | B21: Malawi | C21: MWI | D21: Central | E21: Kasungu | F21: 28952 | G21: Kasungu Boma | H21: Low | I21: 18215 | J21: 0 | K21: 18215 | L21: 0 | M21: 0 | N21: 0 | O21: 0
A22: 20 | B22: Malawi | C22: MWI | D22: Central | E22: Kasungu | F22: 28952 | G22: Kasungu National Park | H22: Moderate | I22: 275 | J22: 106 | K22: 381 | L22: 0 | M22: 0 | N22: 0 | O22: 0
A23: 21 | B23: Malawi | C23: MWI | D23: Central | E23: Kasungu | F23: 28952 | G23: STA Chaima | H23: Moderate | I23: 8025 | J23: 3106 | K23: 11131 | L23: 0 | M23: 0 | N23: 0 | O23: 0
A24: 22 | B24: Malawi | C24: MWI | D24: Central | E24: Kasungu | F24: 28952 | G24: STA Chambwe | H24: Moderate | I24: 4249 | J24: 1644 | K24: 5893 | L24: 0 | M24: 0 | N24: 0 | O24: 0
A25: 23 | B25: Malawi | C25: MWI | D25: Central | E25: Kasungu | F25: 28952 | G25: STA Chisikwa | H25: Low | I25: 2432 | J25: 0 | K25: 2432 | L25: 0 | M25: 0 | N25: 0 | O25: 0
A26: 24 | B26: Malawi | C26: MWI | D26: Central | E26: Kasungu | F26: 28952 | G26: STA Chisinga | H26: Moderate | I26: 7143 | J26: 2765 | K26: 9908 | L26: 0 | M26: 0 | N26: 0 | O26: 0
A27: 25 | B27: Malawi | C27: MWI | D27: Central | E27: Kasungu | F27: 28952 | G27: STA Kapichira | H27: Moderate | I27: 2262 | J27: 876 | K27: 3138 | L27: 0 | M27: 0 | N27: 0 | O27: 0
A28: 26 | B28: Malawi | C28: MWI | D28: Central | E28: Kasungu | F28: 28952 | G28: STA Mangwazu | H28: Low | I28: 1751 | J28: 0 | K28: 1751 | L28: 0 | M28: 0 | N28: 0 | O28: 0
A29: 27 | B29: Malawi | C29: MWI | D29: Central | E29: Kasungu | F29: 28952 | G29: STA Mawawa | H29: Low | I29: 2520 | J29: 0 | K29: 2520 | L29: 0 | M29: 0 | N29: 0 | O29: 0
A30: 28 | B30: Malawi | C30: MWI | D30: Central | E30: Kasungu | F30: 28952 | G30: STA Mdunga | H30: Moderate | I30: 4284 | J30: 1658 | K30: 5942 | L30: 0 | M30: 0 | N30: 0 | O30: 0
A31: 29 | B31: Malawi | C31: MWI | D31: Central | E31: Kasungu | F31: 28952 | G31: STA M'nyanja | H31: Moderate | I31: 12027 | J31: 4654 | K31: 16681 | L31: 0 | M31: 0 | N31: 0 | O31: 0
A32: 30 | B32: Malawi | C32: MWI | D32: Central | E32: Kasungu | F32: 28952 | G32: STA Mphomwa | H32: Moderate | I32: 6945 | J32: 2688 | K32: 9633 | L32: 0 | M32: 0 | N32: 0 | O32: 0
A33: 31 | B33: Malawi | C33: MWI | D33: Central | E33: Kasungu | F33: 28952 | G33: STA Nthunduwala | H33: Moderate | I33: 3500 | J33: 1354 | K33: 4854 | L33: 0 | M33: 0 | N33: 0 | O33: 0
A34: 32 | B34: Malawi | C34: MWI | D34: Central | E34: Kasungu | F34: 28952 | G34: TA Chidzuma | H34: Moderate | I34: 6259 | J34: 2422 | K34: 8681 | L34: 0 | M34: 0 | N34: 0 | O34: 0
A35: 33 | B35: Malawi | C35: MWI | D35: Central | E35: Kasungu | F35: 28952 | G35: TA Chilowamatambe | H35: Low | I35: 11013 | J35: 0 | K35: 11013 | L35: 0 | M35: 0 | N35: 0 | O35: 0
A36: 34 | B36: Malawi | C36: MWI | D36: Central | E36: Kasungu | F36: 28952 | G36: TA Chisemphere | H36: Moderate | I36: 3610 | J36: 1397 | K36: 5007 | L36: 0 | M36: 0 | N36: 0 | O36: 0
A37: 35 | B37: Malawi | C37: MWI | D37: Central | E37: Kasungu | F37: 28952 | G37: TA Chulu | H37: Moderate | I37: 10466 | J37: 4050 | K37: 14516 | L37: 0 | M37: 0 | N37: 0 | O37: 0
A38: 36 | B38: Malawi | C38: MWI | D38: Central | E38: Kasungu | F38: 28952 | G38: TA Kaluluma | H38: Moderate | I38: 11812 | J38: 4572 | K38: 16384 | L38: 0 | M38: 0 | N38: 0 | O38: 0
A39: 37 | B39: Malawi | C39: MWI | D39: Central | E39: Kasungu | F39: 28952 | G39: TA Kaomba | H39: Low | I39: 15930 | J39: 0 | K39: 15930 | L39: 0 | M39: 0 | N39: 0 | O39: 0
A40: 38 | B40: Malawi | C40: MWI | D40: Central | E40: Kasungu | F40: 28952 | G40: TA Kapelula | H40: Moderate | I40: 9815 | J40: 3798 | K40: 13613 | L40: 0 | M40: 0 | N40: 0 | O40: 0
A41: 39 | B41: Malawi | C41: MWI | D41: Central | E41: Kasungu | F41: 28952 | G41: TA Kaphaizi | H41: Low | I41: 699 | J41: 0 | K41: 699 | L41: 0 | M41: 0 | N41: 0 | O41: 0
A42: 40 | B42: Malawi | C42: MWI | D42: Central | E42: Kasungu | F42: 28952 | G42: TA Kawamba | H42: Moderate | I42: 13960 | J42: 5402 | K42: 19362 | L42: 0 | M42: 0 | N42: 0 | O42: 0
A43: 41 | B43: Malawi | C43: MWI | D43: Central | E43: Kasungu | F43: 28952 | G43: TA Lukwa | H43: Low | I43: 9513 | J43: 0 | K43: 9513 | L43: 0 | M43: 0 | N43: 0 | O43: 0
A44: 42 | B44: Malawi | C44: MWI | D44: Central | E44: Kasungu | F44: 28952 | G44: TA Mwase | H44: Low | I44: 9880 | J44: 0 | K44: 9880 | L44: 0 | M44: 0 | N44: 0 | O44: 0
A45: 43 | B45: Malawi | C45: MWI | D45: Central | E45: Kasungu | F45: 28952 | G45: TA Njombwa | H45: Moderate | I45: 15665 | J45: 6063 | K45: 21728 | L45: 0 | M45: 0 | N45: 0 | O45: 0
A46: 44 | B46: Malawi | C46: MWI | D46: Central | E46: Kasungu | F46: 28952 | G46: TA Santhe | H46: Low | I46: 18032 | J46: 0 | K46: 18032 | L46: 0 | M46: 0 | N46: 0 | O46: 0
A47: 45 | B47: Malawi | C47: MWI | D47: Central | E47: Kasungu | F47: 28952 | G47: TA Simlemba | H47: Moderate | I47: 12549 | J47: 4856 | K47: 17405 | L47: 0 | M47: 0 | N47: 0 | O47: 0
A48: 46 | B48: Malawi | C48: MWI | D48: Central | E48: Kasungu | F48: 28952 | G48: TA Wimbe | H48: Moderate | I48: 38952 | J48: 15075 | K48: 54027 | L48: 0 | M48: 0 | N48: 0 | O48: 0
A49: 65 | B49: Malawi | C49: MWI | D49: Central | E49: Lilongwe | F49: 28954 | G49: Area 1 | H49: Low | I49: 2903 | J49: 0 | K49: 2903 | L49: 0 | M49: 0 | N49: 0 | O49: 0
A50: 66 | B50: Malawi | C50: MWI | D50: Central | E50: Lilongwe | F50: 28954 | G50: Area 10 | H50: Not endemic | I50: 0 | J50: 0 | K50: 0 | L50: 0 | M50: 0 | N50: 0 | O50: 0
A51: 67 | B51: Malawi | C51: MWI | D51: Central | E51: Lilongwe | F51: 28954 | G51: Area 11 | H51: Low | I51: 142 | J51: 0 | K51: 142 | L51: 0 | M51: 0 | N51: 0 | O51: 0
A52: 68 | B52: Malawi | C52: MWI | D52: Central | E52: Lilongwe | F52: 28954 | G52: Area 12 | H52: Low | I52: 792 | J52: 0 | K52: 792 | L52: 0 | M52: 0 | N52: 0 | O52: 0
A53: 69 | B53: Malawi | C53: MWI | D53: Central | E53: Lilongwe | F53: 28954 | G53: Area 13 | H53: Low | I53: 1 | J53: 0 | K53: 1 | L53: 0 | M53: 0 | N53: 0 | O53: 0
A54: 70 | B54: Malawi | C54: MWI | D54: Central | E54: Lilongwe | F54: 28954 | G54: Area 14 | H54: Not endemic | I54: 0 | J54: 0 | K54: 0 | L54: 0 | M54: 0 | N54: 0 | O54: 0
A55: 71 | B55: Malawi | C55: MWI | D55: Central | E55: Lilongwe | F55: 28954 | G55: Area 15 | H55: Low | I55: 377 | J55: 0 | K55: 377 | L55: 0 | M55: 0 | N55: 0 | O55: 0
A56: 72 | B56: Malawi | C56: MWI | D56: Central | E56: Lilongwe | F56: 28954 | G56: Area 16 | H56: Low | I56: 0 | J56: 0 | K56: 0 | L56: 0 | M56: 0 | N56: 0 | O56: 0
A57: 73 | B57: Malawi | C57: MWI | D57: Central | E57: Lilongwe | F57: 28954 | G57: Area 17 | H57: Not endemic | I57: 0 | J57: 0 | K57: 0 | L57: 0 | M57: 0 | N57: 0 | O57: 0
A58: 74 | B58: Malawi | C58: MWI | D58: Central | E58: Lilongwe | F58: 28954 | G58: Area 18 | H58: Not endemic | I58: 0 | J58: 0 | K58: 0 | L58: 0 | M58: 0 | N58: 0 | O58: 0
A59: 75 | B59: Malawi | C59: MWI | D59: Central | E59: Lilongwe | F59: 28954 | G59: Area 19 | H59: Low | I59: 0 | J59: 0 | K59: 0 | L59: 0 | M59: 0 | N59: 0 | O59: 0
A60: 76 | B60: Malawi | C60: MWI | D60: Central | E60: Lilongwe | F60: 28954 | G60: Area 2 | H60: Moderate | I60: 791 | J60: 306 | K60: 1097 | L60: 0 | M60: 0 | N60: 0 | O60: 0
A61: 77 | B61: Malawi | C61: MWI | D61: Central | E61: Lilongwe | F61: 28954 | G61: Area 20 | H61: Low | I61: 0 | J61: 0 | K61: 0 | L61: 0 | M61: 0 | N61: 0 | O61: 0
A62: 78 | B62: Malawi | C62: MWI | D62: Central | E62: Lilongwe | F62: 28954 | G62: Area 21 | H62: Not endemic | I62: 0 | J62: 0 | K62: 0 | L62: 0 | M62: 0 | N62: 0 | O62: 0
A63: 79 | B63: Malawi | C63: MWI | D63: Central | E63: Lilongwe | F63: 28954 | G63: Area 22 | H63: Not endemic | I63: 0 | J63: 0 | K63: 0 | L63: 0 | M63: 0 | N63: 0 | O63: 0
A64: 80 | B64: Malawi | C64: MWI | D64: Central | E64: Lilongwe | F64: 28954 | G64: Area 23 | H64: Low | I64: 16116 | J64: 0 | K64: 16116 | L64: 0 | M64: 0 | N64: 0 | O64: 0
A65: 81 | B65: Malawi | C65: MWI | D65: Central | E65: Lilongwe | F65: 28954 | G65: Area 24 | H65: Low | I65: 11545 | J65: 0 | K65: 11545 | L65: 0 | M65: 0 | N65: 0 | O65: 0
A66: 82 | B66: Malawi | C66: MWI | D66: Central | E66: Lilongwe | F66: 28954 | G66: Area 25 | H66: Low | I66: 33458 | J66: 0 | K66: 33458 | L66: 0 | M66: 0 | N66: 0 | O66: 0
A67: 83 | B67: Malawi | C67: MWI | D67: Central | E67: Lilongwe | F67: 28954 | G67: Area 26 | H67: Low | I67: 2127 | J67: 0 | K67: 2127 | L67: 0 | M67: 0 | N67: 0 | O67: 0
A68: 84 | B68: Malawi | C68: MWI | D68: Central | E68: Lilongwe | F68: 28954 | G68: Area 27 | H68: Low | I68: 998 | J68: 0 | K68: 998 | L68: 0 | M68: 0 | N68: 0 | O68: 0
A69: 85 | B69: Malawi | C69: MWI | D69: Central | E69: Lilongwe | F69: 28954 | G69: Area 28 | H69: Not endemic | I69: 0 | J69: 0 | K69: 0 | L69: 0 | M69: 0 | N69: 0 | O69: 0
A70: 86 | B70: Malawi | C70: MWI | D70: Central | E70: Lilongwe | F70: 28954 | G70: Area 29 | H70: Low | I70: 124 | J70: 0 | K70: 124 | L70: 0 | M70: 0 | N70: 0 | O70: 0
A71: 87 | B71: Malawi | C71: MWI | D71: Central | E71: Lilongwe | F71: 28954 | G71: Area 3 | H71: Moderate | I71: 1031 | J71: 399 | K71: 1430 | L71: 0 | M71: 0 | N71: 0 | O71: 0
A72: 88 | B72: Malawi | C72: MWI | D72: Central | E72: Lilongwe | F72: 28954 | G72: Area 30 | H72: Not endemic | I72: 0 | J72: 0 | K72: 0 | L72: 0 | M72: 0 | N72: 0 | O72: 0
A73: 89 | B73: Malawi | C73: MWI | D73: Central | E73: Lilongwe | F73: 28954 | G73: Area 31 | H73: Low | I73: 0 | J73: 0 | K73: 0 | L73: 0 | M73: 0 | N73: 0 | O73: 0
A74: 90 | B74: Malawi | C74: MWI | D74: Central | E74: Lilongwe | F74: 28954 | G74: Area 32 | H74: Not endemic | I74: 0 | J74: 0 | K74: 0 | L74: 0 | M74: 0 | N74: 0 | O74: 0
A75: 91 | B75: Malawi | C75: MWI | D75: Central | E75: Lilongwe | F75: 28954 | G75: Area 33 | H75: Not endemic | I75: 0 | J75: 0 | K75: 0 | L75: 0 | M75: 0 | N75: 0 | O75: 0
A76: 92 | B76: Malawi | C76: MWI | D76: Central | E76: Lilongwe | F76: 28954 | G76: Area 34 | H76: Not endemic | I76: 0 | J76: 0 | K76: 0 | L76: 0 | M76: 0 | N76: 0 | O76: 0
A77: 93 | B77: Malawi | C77: MWI | D77: Central | E77: Lilongwe | F77: 28954 | G77: Area 35 | H77: Low | I77: 3203 | J77: 0 | K77: 3203 | L77: 0 | M77: 0 | N77: 0 | O77: 0
A78: 94 | B78: Malawi | C78: MWI | D78: Central | E78: Lilongwe | F78: 28954 | G78: Area 36 | H78: Not endemic | I78: 0 | J78: 0 | K78: 0 | L78: 0 | M78: 0 | N78: 0 | O78: 0
A79: 95 | B79: Malawi | C79: MWI | D79: Central | E79: Lilongwe | F79: 28954 | G79: Area 37 | H79: Moderate | I79: 181 | J79: 70 | K79: 251 | L79: 0 | M79: 0 | N79: 0 | O79: 0
A80: 96 | B80: Malawi | C80: MWI | D80: Central | E80: Lilongwe | F80: 28954 | G80: Area 38 | H80: Low | I80: 0 | J80: 0 | K80: 0 | L80: 0 | M80: 0 | N80: 0 | O80: 0
A81: 97 | B81: Malawi | C81: MWI | D81: Central | E81: Lilongwe | F81: 28954 | G81: Area 39 | H81: Low | I81: 7031 | J81: 0 | K81: 7031 | L81: 0 | M81: 0 | N81: 0 | O81: 0
A82: 98 | B82: Malawi | C82: MWI | D82: Central | E82: Lilongwe | F82: 28954 | G82: Area 39 | H82: Low | I82: 1933 | J82: 0 | K82: 1933 | L82: 0 | M82: 0 | N82: 0 | O82: 0
A83: 99 | B83: Malawi | C83: MWI | D83: Central | E83: Lilongwe | F83: 28954 | G83: Area 4 | H83: Moderate | I83: 26 | J83: 10 | K83: 36 | L83: 0 | M83: 0 | N83: 0 | O83: 0
A84: 100 | B84: Malawi | C84: MWI | D84: Central | E84: Lilongwe | F84: 28954 | G84: Area 40 | H84: Low | I84: 0 | J84: 0 | K84: 0 | L84: 0 | M84: 0 | N84: 0 | O84: 0
A85: 101 | B85: Malawi | C85: MWI | D85: Central | E85: Lilongwe | F85: 28954 | G85: Area 41 | H85: Low | I85: 73 | J85: 0 | K85: 73 | L85: 0 | M85: 0 | N85: 0 | O85: 0
A86: 102 | B86: Malawi | C86: MWI | D86: Central | E86: Lilongwe | F86: 28954 | G86: Area 42 | H86: Low | I86: 0 | J86: 0 | K86: 0 | L86: 0 | M86: 0 | N86: 0 | O86: 0
A87: 103 | B87: Malawi | C87: MWI | D87: Central | E87: Lilongwe | F87: 28954 | G87: Area 43 | H87: Low | I87: 1936 | J87: 0 | K87: 1936 | L87: 0 | M87: 0 | N87: 0 | O87: 0
A88: 104 | B88: Malawi | C88: MWI | D88: Central | E88: Lilongwe | F88: 28954 | G88: Area 44 | H88: Moderate | I88: 19797 | J88: 7662 | K88: 27459 | L88: 0 | M88: 0 | N88: 0 | O88: 0
A89: 105 | B89: Malawi | C89: MWI | D89: Central | E89: Lilongwe | F89: 28954 | G89: Area 45 | H89: Moderate | I89: 1161 | J89: 449 | K89: 1610 | L89: 0 | M89: 0 | N89: 0 | O89: 0
A90: 106 | B90: Malawi | C90: MWI | D90: Central | E90: Lilongwe | F90: 28954 | G90: Area 46 | H90: Moderate | I90: 2067 | J90: 800 | K90: 2867 | L90: 0 | M90: 0 | N90: 0 | O90: 0
A91: 107 | B91: Malawi | C91: MWI | D91: Central | E91: Lilongwe | F91: 28954 | G91: Area 47 | H91: Low | I91: 3630 | J91: 0 | K91: 3630 | L91: 0 | M91: 0 | N91: 0 | O91: 0
A92: 108 | B92: Malawi | C92: MWI | D92: Central | E92: Lilongwe | F92: 28954 | G92: Area 48 | H92: Not endemic | I92: 0 | J92: 0 | K92: 0 | L92: 0 | M92: 0 | N92: 0 | O92: 0
A93: 109 | B93: Malawi | C93: MWI | D93: Central | E93: Lilongwe | F93: 28954 | G93: Area 49 | H93: Not endemic | I93: 0 | J93: 0 | K93: 0 | L93: 0 | M93: 0 | N93: 0 | O93: 0
A94: 110 | B94: Malawi | C94: MWI | D94: Central | E94: Lilongwe | F94: 28954 | G94: Area 5 | H94: Moderate | I94: 101 | J94: 39 | K94: 140 | L94: 0 | M94: 0 | N94: 0 | O94: 0
A95: 111 | B95: Malawi | C95: MWI | D95: Central | E95: Lilongwe | F95: 28954 | G95: Area 50 | H95: Not endemic | I95: 0 | J95: 0 | K95: 0 | L95: 0 | M95: 0 | N95: 0 | O95: 0
A96: 112 | B96: Malawi | C96: MWI | D96: Central | E96: Lilongwe | F96: 28954 | G96: Area 51 | H96: Low | I96: 5222 | J96: 0 | K96: 5222 | L96: 0 | M96: 0 | N96: 0 | O96: 0
A97: 113 | B97: Malawi | C97: MWI | D97: Central | E97: Lilongwe | F97: 28954 | G97: Area 52 | H97: Not endemic | I97: 0 | J97: 0 | K97: 0 | L97: 0 | M97: 0 | N97: 0 | O97: 0
A98: 114 | B98: Malawi | C98: MWI | D98: Central | E98: Lilongwe | F98: 28954 | G98: Area 53 | H98: Moderate | I98: 6951 | J98: 2690 | K98: 9641 | L98: 0 | M98: 0 | N98: 0 | O98: 0
A99: 115 | B99: Malawi | C99: MWI | D99: Central | E99: Lilongwe | F99: 28954 | G99: Area 54 | H99: Moderate | I99: 1902 | J99: 735 | K99: 2637 | L99: 0 | M99: 0 | N99: 0 | O99: 0
A100: 116 | B100: Malawi | C100: MWI | D100: Central | E100: Lilongwe | F100: 28954 | G100: Area 55 | H100: Low | I100: 6826 | J100: 0 | K100: 6826 | L100: 0 | M100: 0 | N100: 0 | O100: 0
A101: 117 | B101: Malawi | C101: MWI | D101: Central | E101: Lilongwe | F101: 28954 | G101: Area 56 | H101: Low | I101: 20755 | J101: 0 | K101: 20755 | L101: 0 | M101: 0 | N101: 0 | O101: 0
A102: 118 | B102: Malawi | C102: MWI | D102: Central | E102: Lilongwe | F102: 28954 | G102: Area 57 | H102: Moderate | I102: 27738 | J102: 10735 | K102: 38473 | L102: 0 | M102: 0 | N102: 0 | O102: 0
A103: 119 | B103: Malawi | C103: MWI | D103: Central | E103: Lilongwe | F103: 28954 | G103: Area 58 | H103: Not endemic | I103: 0 | J103: 0 | K103: 0 | L103: 0 | M103: 0 | N103: 0 | O103: 0
A104: 120 | B104: Malawi | C104: MWI | D104: Central | E104: Lilongwe | F104: 28954 | G104: Area 6 | H104: Low | I104: 518 | J104: 0 | K104: 518 | L104: 0 | M104: 0 | N104: 0 | O104: 0
A105: 121 | B105: Malawi | C105: MWI | D105: Central | E105: Lilongwe | F105: 28954 | G105: Area 7 | H105: Not endemic | I105: 0 | J105: 0 | K105: 0 | L105: 0 | M105: 0 | N105: 0 | O105: 0
A106: 122 | B106: Malawi | C106: MWI | D106: Central | E106: Lilongwe | F106: 28954 | G106: Area 8 | H106: Low | I106: 5620 | J106: 0 | K106: 5620 | L106: 0 | M106: 0 | N106: 0 | O106: 0
A107: 123 | B107: Malawi | C107: MWI | D107: Central | E107: Lilongwe | F107: 28954 | G107: Area 9 | H107: Moderate | I107: 630 | J107: 244 | K107: 874 | L107: 0 | M107: 0 | N107: 0 | O107: 0
A108: 47 | B108: Malawi | C108: MWI | D108: Central | E108: Lilongwe | F108: 28954 | G108: STA Chitekwele | H108: High | I108: 15022 | J108: 29068 | K108: 44090 | L108: 1 | M108: 15022 | N108: 29068 | O108: 44090
A109: 48 | B109: Malawi | C109: MWI | D109: Central | E109: Lilongwe | F109: 28954 | G109: STA Mbang'ombe | H109: Low | I109: 3763 | J109: 0 | K109: 3763 | L109: 0 | M109: 0 | N109: 0 | O109: 0
A110: 49 | B110: Malawi | C110: MWI | D110: Central | E110: Lilongwe | F110: 28954 | G110: TA Chadza | H110: Moderate | I110: 44649 | J110: 17279 | K110: 61928 | L110: 0 | M110: 0 | N110: 0 | O110: 0
A111: 50 | B111: Malawi | C111: MWI | D111: Central | E111: Lilongwe | F111: 28954 | G111: TA Chimutu | H111: Moderate | I111: 34955 | J111: 13527 | K111: 48482 | L111: 0 | M111: 0 | N111: 0 | O111: 0
A112: 51 | B112: Malawi | C112: MWI | D112: Central | E112: Lilongwe | F112: 28954 | G112: TA Chiseka | H112: Moderate | I112: 46351 | J112: 17938 | K112: 64289 | L112: 0 | M112: 0 | N112: 0 | O112: 0
A113: 52 | B113: Malawi | C113: MWI | D113: Central | E113: Lilongwe | F113: 28954 | G113: TA Chitukula | H113: Low | I113: 7944 | J113: 0 | K113: 7944 | L113: 0 | M113: 0 | N113: 0 | O113: 0
A114: 53 | B114: Malawi | C114: MWI | D114: Central | E114: Lilongwe | F114: 28954 | G114: TA Kabudula | H114: Moderate | I114: 49393 | J114: 19116 | K114: 68509 | L114: 0 | M114: 0 | N114: 0 | O114: 0
A115: 54 | B115: Malawi | C115: MWI | D115: Central | E115: Lilongwe | F115: 28954 | G115: TA Kalolo | H115: Moderate | I115: 55209 | J115: 21367 | K115: 76576 | L115: 0 | M115: 0 | N115: 0 | O115: 0
A116: 55 | B116: Malawi | C116: MWI | D116: Central | E116: Lilongwe | F116: 28954 | G116: TA Kalumba | H116: Moderate | I116: 13233 | J116: 5121 | K116: 18354 | L116: 0 | M116: 0 | N116: 0 | O116: 0
A117: 56 | B117: Malawi | C117: MWI | D117: Central | E117: Lilongwe | F117: 28954 | G117: TA Kalumbu | H117: Not endemic | I117: 0 | J117: 0 | K117: 0 | L117: 0 | M117: 0 | N117: 0 | O117: 0
A118: 57 | B118: Malawi | C118: MWI | D118: Central | E118: Lilongwe | F118: 28954 | G118: TA Khongoni | H118: Low | I118: 43815 | J118: 0 | K118: 43815 | L118: 0 | M118: 0 | N118: 0 | O118: 0
A119: 58 | B119: Malawi | C119: MWI | D119: Central | E119: Lilongwe | F119: 28954 | G119: TA Malili | H119: Moderate | I119: 36143 | J119: 13988 | K119: 50131 | L119: 0 | M119: 0 | N119: 0 | O119: 0
A120: 59 | B120: Malawi | C120: MWI | D120: Central | E120: Lilongwe | F120: 28954 | G120: TA Masula | H120: Moderate | I120: 23902 | J120: 9251 | K120: 33153 | L120: 0 | M120: 0 | N120: 0 | O120: 0
A121: 60 | B121: Malawi | C121: MWI | D121: Central | E121: Lilongwe | F121: 28954 | G121: TA Masumbankhunda | H121: Moderate | I121: 26992 | J121: 10446 | K121: 37438 | L121: 0 | M121: 0 | N121: 0 | O121: 0
A122: 61 | B122: Malawi | C122: MWI | D122: Central | E122: Lilongwe | F122: 28954 | G122: TA Mazengera | H122: Low | I122: 36275 | J122: 0 | K122: 36275 | L122: 0 | M122: 0 | N122: 0 | O122: 0
A123: 62 | B123: Malawi | C123: MWI | D123: Central | E123: Lilongwe | F123: 28954 | G123: TA Mtema | H123: Low | I123: 16349 | J123: 0 | K123: 16349 | L123: 0 | M123: 0 | N123: 0 | O123: 0
A124: 63 | B124: Malawi | C124: MWI | D124: Central | E124: Lilongwe | F124: 28954 | G124: TA Njewa | H124: Low | I124: 15516 | J124: 0 | K124: 15516 | L124: 0 | M124: 0 | N124: 0 | O124: 0
A125: 64 | B125: Malawi | C125: MWI | D125: Central | E125: Lilongwe | F125: 28954 | G125: TA Tsabango | H125: Moderate | I125: 19665 | J125: 7610 | K125: 27275 | L125: 0 | M125: 0 | N125: 0 | O125: 0
A126: 124 | B126: Malawi | C126: MWI | D126: Central | E126: Mchinji | F126: 28957 | G126: Mchinji Boma | H126: Low | I126: 8682 | J126: 0 | K126: 8682 | L126: 0 | M126: 0 | N126: 0 | O126: 0
A127: 125 | B127: Malawi | C127: MWI | D127: Central | E127: Mchinji | F127: 28957 | G127: STA Gumba | H127: Low | I127: 5255 | J127: 0 | K127: 5255 | L127: 0 | M127: 0 | N127: 0 | O127: 0
A128: 126 | B128: Malawi | C128: MWI | D128: Central | E128: Mchinji | F128: 28957 | G128: STA Kapunula | H128: Low | I128: 3014 | J128: 0 | K128: 3014 | L128: 0 | M128: 0 | N128: 0 | O128: 0
A129: 127 | B129: Malawi | C129: MWI | D129: Central | E129: Mchinji | F129: 28957 | G129: STA Nyoka | H129: Low | I129: 12837 | J129: 0 | K129: 12837 | L129: 0 | M129: 0 | N129: 0 | O129: 0
A130: 128 | B130: Malawi | C130: MWI | D130: Central | E130: Mchinji | F130: 28957 | G130: STA Pitala | H130: Moderate | I130: 1468 | J130: 568 | K130: 2036 | L130: 0 | M130: 0 | N130: 0 | O130: 0
A131: 129 | B131: Malawi | C131: MWI | D131: Central | E131: Mchinji | F131: 28957 | G131: TA Dambe | H131: Not endemic | I131: 0 | J131: 0 | K131: 0 | L131: 0 | M131: 0 | N131: 0 | O131: 0
A132: 130 | B132: Malawi | C132: MWI | D132: Central | E132: Mchinji | F132: 28957 | G132: TA Kapondo | H132: Moderate | I132: 3294 | J132: 1275 | K132: 4569 | L132: 0 | M132: 0 | N132: 0 | O132: 0
A133: 131 | B133: Malawi | C133: MWI | D133: Central | E133: Mchinji | F133: 28957 | G133: TA Kazyozyo | H133: Moderate | I133: 2161 | J133: 836 | K133: 2997 | L133: 0 | M133: 0 | N133: 0 | O133: 0
A134: 132 | B134: Malawi | C134: MWI | D134: Central | E134: Mchinji | F134: 28957 | G134: TA Mavwere | H134: Not endemic | I134: 0 | J134: 0 | K134: 0 | L134: 0 | M134: 0 | N134: 0 | O134: 0
A135: 133 | B135: Malawi | C135: MWI | D135: Central | E135: Mchinji | F135: 28957 | G135: TA Mduwa | H135: Low | I135: 20722 | J135: 0 | K135: 20722 | L135: 0 | M135: 0 | N135: 0 | O135: 0
A136: 134 | B136: Malawi | C136: MWI | D136: Central | E136: Mchinji | F136: 28957 | G136: TA Mkanda | H136: Moderate | I136: 23349 | J136: 9036 | K136: 32385 | L136: 0 | M136: 0 | N136: 0 | O136: 0
A137: 135 | B137: Malawi | C137: MWI | D137: Central | E137: Mchinji | F137: 28957 | G137: TA Mlonyeni | H137: Low | I137: 23498 | J137: 0 | K137: 23498 | L137: 0 | M137: 0 | N137: 0 | O137: 0
A138: 136 | B138: Malawi | C138: MWI | D138: Central | E138: Mchinji | F138: 28957 | G138: TA Simphasi | H138: Moderate | I138: 15675 | J138: 6066 | K138: 21741 | L138: 0 | M138: 0 | N138: 0 | O138: 0
A139: 137 | B139: Malawi | C139: MWI | D139: Central | E139: Mchinji | F139: 28957 | G139: TA Zulu | H139: Low | I139: 21408 | J139: 0 | K139: 21408 | L139: 0 | M139: 0 | N139: 0 | O139: 0
A140: 138 | B140: Malawi | C140: MWI | D140: Central | E140: Nkhotakota | F140: 28963 | G140: Nkhotakota Boma | H140: Moderate | I140: 8724 | J140: 3377 | K140: 12101 | L140: 0 | M140: 0 | N140: 0 | O140: 0
A141: 139 | B141: Malawi | C141: MWI | D141: Central | E141: Nkhotakota | F141: 28963 | G141: Nkhotakota Game Reserve | H141: Moderate | I141: 0 | J141: 0 | K141: 0 | L141: 0 | M141: 0 | N141: 0 | O141: 0
A142: 140 | B142: Malawi | C142: MWI | D142: Central | E142: Nkhotakota | F142: 28963 | G142: STA Kalimanjira | H142: High | I142: 6051 | J142: 11709 | K142: 17760 | L142: 1 | M142: 6051 | N142: 11709 | O142: 17760
A143: 141 | B143: Malawi | C143: MWI | D143: Central | E143: Nkhotakota | F143: 28963 | G143: TA Kafuzila | H143: Moderate | I143: 8275 | J143: 3202 | K143: 11477 | L143: 0 | M143: 0 | N143: 0 | O143: 0
A144: 142 | B144: Malawi | C144: MWI | D144: Central | E144: Nkhotakota | F144: 28963 | G144: TA Kanyenda | H144: Moderate | I144: 35867 | J144: 13881 | K144: 49748 | L144: 0 | M144: 0 | N144: 0 | O144: 0
A145: 143 | B145: Malawi | C145: MWI | D145: Central | E145: Nkhotakota | F145: 28963 | G145: TA Malenga Chanzi | H145: High | I145: 13608 | J145: 26332 | K145: 39940 | L145: 1 | M145: 13608 | N145: 26332 | O145: 39940
A146: 144 | B146: Malawi | C146: MWI | D146: Central | E146: Nkhotakota | F146: 28963 | G146: TA Mphonde | H146: High | I146: 9619 | J146: 18612 | K146: 28231 | L146: 1 | M146: 9619 | N146: 18612 | O146: 28231
A147: 145 | B147: Malawi | C147: MWI | D147: Central | E147: Nkhotakota | F147: 28963 | G147: TA Mwadzama | H147: Moderate | I147: 30692 | J147: 11878 | K147: 42570 | L147: 0 | M147: 0 | N147: 0 | O147: 0
A148: 146 | B148: Malawi | C148: MWI | D148: Central | E148: Nkhotakota | F148: 28963 | G148: TA Mwansambo | H148: Moderate | I148: 9000 | J148: 3483 | K148: 12483 | L148: 0 | M148: 0 | N148: 0 | O148: 0
A149: 147 | B149: Malawi | C149: MWI | D149: Central | E149: Ntcheu | F149: 28965 | G149: Ntcheu Boma | H149: Moderate | I149: 6623 | J149: 2563 | K149: 9186 | L149: 0 | M149: 0 | N149: 0 | O149: 0
A150: 148 | B150: Malawi | C150: MWI | D150: Central | E150: Ntcheu | F150: 28965 | G150: STA Mkutumula | H150: Low | I150: 9153 | J150: 0 | K150: 9153 | L150: 0 | M150: 0 | N150: 0 | O150: 0
A151: 149 | B151: Malawi | C151: MWI | D151: Central | E151: Ntcheu | F151: 28965 | G151: STA Tsikulamowa | H151: Moderate | I151: 12355 | J151: 4782 | K151: 17137 | L151: 0 | M151: 0 | N151: 0 | O151: 0
A152: 150 | B152: Malawi | C152: MWI | D152: Central | E152: Ntcheu | F152: 28965 | G152: TA Chakhumbira | H152: Not endemic | I152: 0 | J152: 0 | K152: 0 | L152: 0 | M152: 0 | N152: 0 | O152: 0
A153: 151 | B153: Malawi | C153: MWI | D153: Central | E153: Ntcheu | F153: 28965 | G153: TA Champiti | H153: Low | I153: 6736 | J153: 0 | K153: 6736 | L153: 0 | M153: 0 | N153: 0 | O153: 0
A154: 152 | B154: Malawi | C154: MWI | D154: Central | E154: Ntcheu | F154: 28965 | G154: TA Goodson Ganya | H154: Low | I154: 44750 | J154: 0 | K154: 44750 | L154: 0 | M154: 0 | N154: 0 | O154: 0
A155: 153 | B155: Malawi | C155: MWI | D155: Central | E155: Ntcheu | F155: 28965 | G155: TA Kwataine | H155: Low | I155: 16642 | J155: 0 | K155: 16642 | L155: 0 | M155: 0 | N155: 0 | O155: 0
A156: 154 | B156: Malawi | C156: MWI | D156: Central | E156: Ntcheu | F156: 28965 | G156: TA Makwangwala | H156: Moderate | I156: 27191 | J156: 10523 | K156: 37714 | L156: 0 | M156: 0 | N156: 0 | O156: 0
A157: 155 | B157: Malawi | C157: MWI | D157: Central | E157: Ntcheu | F157: 28965 | G157: TA Masasa | H157: Not endemic | I157: 0 | J157: 0 | K157: 0 | L157: 0 | M157: 0 | N157: 0 | O157: 0
A158: 156 | B158: Malawi | C158: MWI | D158: Central | E158: Ntcheu | F158: 28965 | G158: TA Mpando | H158: Not endemic | I158: 0 | J158: 0 | K158: 0 | L158: 0 | M158: 0 | N158: 0 | O158: 0
A159: 157 | B159: Malawi | C159: MWI | D159: Central | E159: Ntcheu | F159: 28965 | G159: TA Njolomole | H159: Low | I159: 22136 | J159: 0 | K159: 22136 | L159: 0 | M159: 0 | N159: 0 | O159: 0
A160: 158 | B160: Malawi | C160: MWI | D160: Central | E160: Ntcheu | F160: 28965 | G160: TA Phambala | H160: Moderate | I160: 13912 | J160: 5384 | K160: 19296 | L160: 0 | M160: 0 | N160: 0 | O160: 0
A161: 159 | B161: Malawi | C161: MWI | D161: Central | E161: Ntchisi | F161: 28966 | G161: Ntchisi Boma | H161: Moderate | I161: 2923 | J161: 1131 | K161: 4054 | L161: 0 | M161: 0 | N161: 0 | O161: 0
A162: 160 | B162: Malawi | C162: MWI | D162: Central | E162: Ntchisi | F162: 28966 | G162: TA Chikho | H162: Low | I162: 7719 | J162: 0 | K162: 7719 | L162: 0 | M162: 0 | N162: 0 | O162: 0
A163: 161 | B163: Malawi | C163: MWI | D163: Central | E163: Ntchisi | F163: 28966 | G163: TA Chilooko | H163: Moderate | I163: 27994 | J163: 10833 | K163: 38827 | L163: 0 | M163: 0 | N163: 0 | O163: 0
A164: 162 | B164: Malawi | C164: MWI | D164: Central | E164: Ntchisi | F164: 28966 | G164: TA Kalumo | H164: Not endemic | I164: 0 | J164: 0 | K164: 0 | L164: 0 | M164: 0 | N164: 0 | O164: 0
A165: 163 | B165: Malawi | C165: MWI | D165: Central | E165: Ntchisi | F165: 28966 | G165: TA Kasakula | H165: Low | I165: 6147 | J165: 0 | K165: 6147 | L165: 0 | M165: 0 | N165: 0 | O165: 0
A166: 164 | B166: Malawi | C166: MWI | D166: Central | E166: Ntchisi | F166: 28966 | G166: TA Malenga | H166: Moderate | I166: 15833 | J166: 6127 | K166: 21960 | L166: 0 | M166: 0 | N166: 0 | O166: 0
A167: 165 | B167: Malawi | C167: MWI | D167: Central | E167: Ntchisi | F167: 28966 | G167: TA Nthondo | H167: Not endemic | I167: 0 | J167: 0 | K167: 0 | L167: 0 | M167: 0 | N167: 0 | O167: 0
A168: 166 | B168: Malawi | C168: MWI | D168: Central | E168: Ntchisi | F168: 28966 | G168: TA Vuso Jere | H168: Not endemic | I168: 0 | J168: 0 | K168: 0 | L168: 0 | M168: 0 | N168: 0 | O168: 0
A169: 167 | B169: Malawi | C169: MWI | D169: Central | E169: Salima | F169: 28969 | G169: Chipoka Urban | H169: Low | I169: 1996 | J169: 0 | K169: 1996 | L169: 0 | M169: 0 | N169: 0 | O169: 0
A170: 432 | B170: Malawi | C170: MWI | D170: Central | E170: Salima | F170: 28969 | G170: Lake Malawi National Park-Salima | H170: Low | I170: 0 | J170: 0 | K170: 0 | L170: 0 | M170: 0 | N170: 0 | O170: 0
A171: 168 | B171: Malawi | C171: MWI | D171: Central | E171: Salima | F171: 28969 | G171: Salima Town | H171: Moderate | I171: 11481 | J171: 4443 | K171: 15924 | L171: 0 | M171: 0 | N171: 0 | O171: 0
A172: 169 | B172: Malawi | C172: MWI | D172: Central | E172: Salima | F172: 28969 | G172: TA Kambalame | H172: Moderate | I172: 6976 | J172: 2700 | K172: 9676 | L172: 0 | M172: 0 | N172: 0 | O172: 0
A173: 170 | B173: Malawi | C173: MWI | D173: Central | E173: Salima | F173: 28969 | G173: TA Kambwiri | H173: Moderate | I173: 13013 | J173: 5037 | K173: 18050 | L173: 0 | M173: 0 | N173: 0 | O173: 0
A174: 171 | B174: Malawi | C174: MWI | D174: Central | E174: Salima | F174: 28969 | G174: TA Karonga | H174: High | I174: 24434 | J174: 47281 | K174: 71715 | L174: 1 | M174: 24434 | N174: 47281 | O174: 71715
A175: 172 | B175: Malawi | C175: MWI | D175: Central | E175: Salima | F175: 28969 | G175: TA Khombedza | H175: Low | I175: 29768 | J175: 0 | K175: 29768 | L175: 0 | M175: 0 | N175: 0 | O175: 0
A176: 173 | B176: Malawi | C176: MWI | D176: Central | E176: Salima | F176: 28969 | G176: TA Kuluunda | H176: Moderate | I176: 6092 | J176: 2358 | K176: 8450 | L176: 0 | M176: 0 | N176: 0 | O176: 0
A177: 174 | B177: Malawi | C177: MWI | D177: Central | E177: Salima | F177: 28969 | G177: TA Maganga | H177: High | I177: 21899 | J177: 42374 | K177: 64273 | L177: 1 | M177: 21899 | N177: 42374 | O177: 64273
A178: 175 | B178: Malawi | C178: MWI | D178: Central | E178: Salima | F178: 28969 | G178: TA Msosa | H178: Moderate | I178: 2924 | J178: 1131 | K178: 4055 | L178: 0 | M178: 0 | N178: 0 | O178: 0
A179: 176 | B179: Malawi | C179: MWI | D179: Central | E179: Salima | F179: 28969 | G179: TA Mwanza | H179: Moderate | I179: 8060 | J179: 3120 | K179: 11180 | L179: 0 | M179: 0 | N179: 0 | O179: 0
A180: 177 | B180: Malawi | C180: MWI | D180: Central | E180: Salima | F180: 28969 | G180: TA Ndindi | H180: Low | I180: 14915 | J180: 0 | K180: 14915 | L180: 0 | M180: 0 | N180: 0 | O180: 0
A181: 178 | B181: Malawi | C181: MWI | D181: Central | E181: Salima | F181: 28969 | G181: TA Pemba | H181: Not endemic | I181: 0 | J181: 0 | K181: 0 | L181: 0 | M181: 0 | N181: 0 | O181: 0
A182: 179 | B182: Malawi | C182: MWI | D182: Northern | E182: Chitipa | F182: 28948 | G182: Chitipa Boma | H182: Moderate | I182: 5464 | J182: 2115 | K182: 7579 | L182: 0 | M182: 0 | N182: 0 | O182: 0
A183: 180 | B183: Malawi | C183: MWI | D183: Northern | E183: Chitipa | F183: 28948 | G183: Nyika Ntational Park-Chitipa | H183: Low | I183: 547 | J183: 0 | K183: 547 | L183: 0 | M183: 0 | N183: 0 | O183: 0
A184: 181 | B184: Malawi | C184: MWI | D184: Northern | E184: Chitipa | F184: 28948 | G184: STA Bulambya Songwe | H184: Moderate | I184: 10511 | J184: 4068 | K184: 14579 | L184: 0 | M184: 0 | N184: 0 | O184: 0
A185: 182 | B185: Malawi | C185: MWI | D185: Northern | E185: Chitipa | F185: 28948 | G185: STA Lwangwa | H185: Moderate | I185: 1724 | J185: 667 | K185: 2391 | L185: 0 | M185: 0 | N185: 0 | O185: 0
A186: 183 | B186: Malawi | C186: MWI | D186: Northern | E186: Chitipa | F186: 28948 | G186: STA Nthengatenga | H186: Low | I186: 3205 | J186: 0 | K186: 3205 | L186: 0 | M186: 0 | N186: 0 | O186: 0
A187: 184 | B187: Malawi | C187: MWI | D187: Northern | E187: Chitipa | F187: 28948 | G187: STA Wavikaza | H187: Low | I187: 2087 | J187: 0 | K187: 2087 | L187: 0 | M187: 0 | N187: 0 | O187: 0
A188: 185 | B188: Malawi | C188: MWI | D188: Northern | E188: Chitipa | F188: 28948 | G188: TA Kameme | H188: Moderate | I188: 7438 | J188: 2878 | K188: 10316 | L188: 0 | M188: 0 | N188: 0 | O188: 0
A189: 186 | B189: Malawi | C189: MWI | D189: Northern | E189: Chitipa | F189: 28948 | G189: TA Mwabulambya | H189: Moderate | I189: 20702 | J189: 8012 | K189: 28714 | L189: 0 | M189: 0 | N189: 0 | O189: 0
A190: 187 | B190: Malawi | C190: MWI | D190: Northern | E190: Chitipa | F190: 28948 | G190: TA Mwenemisuku | H190: Low | I190: 7950 | J190: 0 | K190: 7950 | L190: 0 | M190: 0 | N190: 0 | O190: 0
A191: 188 | B191: Malawi | C191: MWI | D191: Northern | E191: Chitipa | F191: 28948 | G191: TA Mwenewenya | H191: Low | I191: 7304 | J191: 0 | K191: 7304 | L191: 0 | M191: 0 | N191: 0 | O191: 0
A192: 189 | B192: Malawi | C192: MWI | D192: Northern | E192: Chitipa | F192: 28948 | G192: TA Nthalire | H192: Low | I192: 5955 | J192: 0 | K192: 5955 | L192: 0 | M192: 0 | N192: 0 | O192: 0
A193: 190 | B193: Malawi | C193: MWI | D193: Northern | E193: Karonga | F193: 28951 | G193: Karonga Town | H193: Not endemic | I193: 0 | J193: 0 | K193: 0 | L193: 0 | M193: 0 | N193: 0 | O193: 0
A194: 433 | B194: Malawi | C194: MWI | D194: Northern | E194: Karonga | F194: 28951 | G194: Nyika National Park-Karonga | H194: Moderate | I194: 0 | J194: 0 | K194: 0 | L194: 0 | M194: 0 | N194: 0 | O194: 0
A195: 191 | B195: Malawi | C195: MWI | D195: Northern | E195: Karonga | F195: 28951 | G195: TA Kilupula | H195: Moderate | I195: 24426 | J195: 9453 | K195: 33879 | L195: 0 | M195: 0 | N195: 0 | O195: 0
A196: 192 | B196: Malawi | C196: MWI | D196: Northern | E196: Karonga | F196: 28951 | G196: TA Kyungu | H196: Low | I196: 27929 | J196: 0 | K196: 27929 | L196: 0 | M196: 0 | N196: 0 | O196: 0
A197: 193 | B197: Malawi | C197: MWI | D197: Northern | E197: Karonga | F197: 28951 | G197: TA Mwakaboko | H197: Moderate | I197: 7752 | J197: 3000 | K197: 10752 | L197: 0 | M197: 0 | N197: 0 | O197: 0
A198: 194 | B198: Malawi | C198: MWI | D198: Northern | E198: Karonga | F198: 28951 | G198: TA Mwirang'ombe | H198: Low | I198: 11663 | J198: 0 | K198: 11663 | L198: 0 | M198: 0 | N198: 0 | O198: 0
A199: 195 | B199: Malawi | C199: MWI | D199: Northern | E199: Karonga | F199: 28951 | G199: TA Wasambo | H199: Moderate | I199: 22733 | J199: 8798 | K199: 31531 | L199: 0 | M199: 0 | N199: 0 | O199: 0
A200: 196 | B200: Malawi | C200: MWI | D200: Northern | E200: Likoma | F200: 28953 | G200: Likoma Boma | H200: Low | I200: 411 | J200: 0 | K200: 411 | L200: 0 | M200: 0 | N200: 0 | O200: 0
... 235 more rows

Sheet IVM
A1: Ivermectin (IVM)
A2: Administrative structure, eligible population by age group, treatment plan and information about tablets
A4: TOTAL | D4: =SUM(D$9:D$1000) -> 2679468 | G4: =SUM(G$9:G$1000) -> 0 | H4: 2679468 | I4: 0 | J4: 2679468 | K4: 0 | L4: 7502510.4 | M4: 0 | N4: 7502510.4 | O4: 0 | P4: 7502510.4 | Q4: 15010
A6: Country administrative structure | D6: Population requiring treatment with IVM | E6: Treatment plan | G6: Target population | K6: Ivermectin (IVM)
A7: Country | B7: Province/State | C7: District | E7: LF | F7: Oncho | G7: LF | H7: Oncho | K7: LF only | L7: Oncho only | M7: LF+Oncho | N7: Total required | O7: Remaining in stock | P7: Tablets to be procured | Q7: Bottles (3mg) 500 tablets
H8: in the district | I8: in villages | J8: total
A9: =IF(INTRO!$E$39="Non-endemic"," ",IF(COUNTRY_INFO!A9=0," ",COUNTRY_INFO!A9)) -> MALAWI | B9: =IF(INTRO!$E$39="Non-endemic"," ",IF(COUNTRY_INFO!B9=0," ",COUNTRY_INFO!B9)) -> North | C9: =IF(INTRO!$E$39="Non-endemic"," ",IF(COUNTRY_INFO!C9=0," ",COUNTRY_INFO!C9)) -> Chitipa | D9: =IF(INTRO!$E$39="Non-endemic",0,IF(INTRO!$E$39="Endemic but PC is not required",IF(COUNTRY_INFO!$H9=1,COUNTRY_INFO!F9+COUNTRY_INFO!G9,0),IF(COUNTRY_INFO!$H9=1,COUNTRY_INFO!F9+COUNTRY_INFO!G9,IF(COUNTRY_INFO!$I9=1,IF(COUNTRY_INFO!M9>=(COUNTRY_INFO!F9+COUNTRY_INFO!G9),COUNTRY_INFO!F9+COUNTRY_INFO!G9,COUNTRY_INFO!$M9),0)))) -> 0 | E9: =IF(AND(INTRO!$E$39="Non-endemic",INTRO!$E$37="Non-endemic"),"Not required",IF(INTRO!$E$39="Non-endemic","Treat with DEC",COUNTRY_INFO!P9)) -> 0 | F9: =IF(INTRO!$E$39<>"Non-endemic",COUNTRY_INFO!Q9,"Not required") -> 0 | G9: =IF(COUNTRY_INFO!H9=1, IF($E9=1,$D9, 0),0) -> 0 | H9: =IF(INTRO!$E$39<>"Endemic",0, IF(AND(COUNTRY_INFO!$I9=1,$F9<>0),IF(COUNTRY_INFO!M9>=(COUNTRY_INFO!F9+COUNTRY_INFO!G9),COUNTRY_INFO!F9+COUNTRY_INFO!G9,COUNTRY_INFO!$M9), 0)) -> 0 | J9: =IF(I9=0,H9,IF(I9>H9,H9,I9)) -> 0 | K9: =IF(G9<J9,0,IF($E9=1, (G9-J9)*2.8, 0)) -> 0 | L9: =IF($E9<$F9, J9*(F9-E9)*2.8, 0) -> 0 | M9: =IF(AND($E9=1, $F9<>0), J9*2.8, 0) -> 0 | N9: =SUM(K9:M9) -> 0 | P9: =IF($N9>$O9,$N9-$O9,0) -> 0 | Q9: =ROUNDUP($N9/500,0) -> 0
A10: =IF(INTRO!$E$39="Non-endemic"," ",IF(COUNTRY_INFO!A10=0," ",COUNTRY_INFO!A10)) -> MALAWI | B10: =IF(INTRO!$E$39="Non-endemic"," ",IF(COUNTRY_INFO!B10=0," ",COUNTRY_INFO!B10)) -> North | C10: =IF(INTRO!$E$39="Non-endemic"," ",IF(COUNTRY_INFO!C10=0," ",COUNTRY_INFO!C10)) -> Karonga | D10: =IF(INTRO!$E$39="Non-endemic",0,IF(INTRO!$E$39="Endemic but PC is not required",IF(COUNTRY_INFO!$H10=1,COUNTRY_INFO!F10+COUNTRY_INFO!G10,0),IF(COUNTRY_INFO!$H10=1,COUNTRY_INFO!F10+COUNTRY_INFO!G10,IF(COUNTRY_INFO!$I10=1,IF(COUNTRY_INFO!M10>=(COUNTRY_INFO!F10+COUNTRY_INFO!G10),COUNTRY_INFO!F10+COUNTRY_INFO!G10,COUNTRY_INFO!$M10),0)))) -> 0 | E10: =IF(AND(INTRO!$E$39="Non-endemic",INTRO!$E$37="Non-endemic"),"Not required",IF(INTRO!$E$39="Non-endemic","Treat with DEC",COUNTRY_INFO!P10)) -> 0 | F10: =IF(INTRO!$E$39<>"Non-endemic",COUNTRY_INFO!Q10,"Not required") -> 0 | G10: =IF(COUNTRY_INFO!H10=1, IF($E10=1,$D10, 0),0) -> 0 | H10: =IF(INTRO!$E$39<>"Endemic",0, IF(AND(COUNTRY_INFO!$I10=1,$F10<>0),IF(COUNTRY_INFO!M10>=(COUNTRY_INFO!F10+COUNTRY_INFO!G10),COUNTRY_INFO!F10+COUNTRY_INFO!G10,COUNTRY_INFO!$M10), 0)) -> 0 | J10: =IF(I10=0,H10,IF(I10>H10,H10,I10)) -> 0 | K10: =IF(G10<J10,0,IF($E10=1, (G10-J10)*2.8, 0)) -> 0 | L10: =IF($E10<$F10, J10*(F10-E10)*2.8, 0) -> 0 | M10: =IF(AND($E10=1, $F10<>0), J10*2.8, 0) -> 0 | N10: =SUM(K10:M10) -> 0 | P10: 0 | Q10: 0
A11: =IF(INTRO!$E$39="Non-endemic"," ",IF(COUNTRY_INFO!A11=0," ",COUNTRY_INFO!A11)) -> MALAWI | B11: =IF(INTRO!$E$39="Non-endemic"," ",IF(COUNTRY_INFO!B11=0," ",COUNTRY_INFO!B11)) -> North | C11: =IF(INTRO!$E$39="Non-endemic"," ",IF(COUNTRY_INFO!C11=0," ",COUNTRY_INFO!C11)) -> Rumphi | D11: =IF(INTRO!$E$39="Non-endemic",0,IF(INTRO!$E$39="Endemic but PC is not required",IF(COUNTRY_INFO!$H11=1,COUNTRY_INFO!F11+COUNTRY_INFO!G11,0),IF(COUNTRY_INFO!$H11=1,COUNTRY_INFO!F11+COUNTRY_INFO!G11,IF(COUNTRY_INFO!$I11=1,IF(COUNTRY_INFO!M11>=(COUNTRY_INFO!F11+COUNTRY_INFO!G11),COUNTRY_INFO!F11+COUNTRY_INFO!G11,COUNTRY_INFO!$M11),0)))) -> 0 | E11: =IF(AND(INTRO!$E$39="Non-endemic",INTRO!$E$37="Non-endemic"),"Not required",IF(INTRO!$E$39="Non-endemic","Treat with DEC",COUNTRY_INFO!P11)) -> 0 | F11: =IF(INTRO!$E$39<>"Non-endemic",COUNTRY_INFO!Q11,"Not required") -> 0 | G11: =IF(COUNTRY_INFO!H11=1, IF($E11=1,$D11, 0),0) -> 0 | H11: =IF(INTRO!$E$39<>"Endemic",0, IF(AND(COUNTRY_INFO!$I11=1,$F11<>0),IF(COUNTRY_INFO!M11>=(COUNTRY_INFO!F11+COUNTRY_INFO!G11),COUNTRY_INFO!F11+COUNTRY_INFO!G11,COUNTRY_INFO!$M11), 0)) -> 0 | J11: 0 | K11: 0 | L11: 0 | M11: 0 | N11: 0 | P11: 0 | Q11: 0
A12: =IF(INTRO!$E$39="Non-endemic"," ",IF(COUNTRY_INFO!A12=0," ",COUNTRY_INFO!A12)) -> MALAWI | B12: =IF(INTRO!$E$39="Non-endemic"," ",IF(COUNTRY_INFO!B12=0," ",COUNTRY_INFO!B12)) -> North | C12: =IF(INTRO!$E$39="Non-endemic"," ",IF(COUNTRY_INFO!C12=0," ",COUNTRY_INFO!C12)) -> Mzimba North | D12: =IF(INTRO!$E$39="Non-endemic",0,IF(INTRO!$E$39="Endemic but PC is not required",IF(COUNTRY_INFO!$H12=1,COUNTRY_INFO!F12+COUNTRY_INFO!G12,0),IF(COUNTRY_INFO!$H12=1,COUNTRY_INFO!F12+COUNTRY_INFO!G12,IF(COUNTRY_INFO!$I12=1,IF(COUNTRY_INFO!M12>=(COUNTRY_INFO!F12+COUNTRY_INFO!G12),COUNTRY_INFO!F12+COUNTRY_INFO!G12,COUNTRY_INFO!$M12),0)))) -> 0 | E12: =IF(AND(INTRO!$E$39="Non-endemic",INTRO!$E$37="Non-endemic"),"Not required",IF(INTRO!$E$39="Non-endemic","Treat with DEC",COUNTRY_INFO!P12)) -> 0 | F12: =IF(INTRO!$E$39<>"Non-endemic",COUNTRY_INFO!Q12,"Not required") -> 0 | G12: =IF(COUNTRY_INFO!H12=1, IF($E12=1,$D12, 0),0) -> 0 | H12: =IF(INTRO!$E$39<>"Endemic",0, IF(AND(COUNTRY_INFO!$I12=1,$F12<>0),IF(COUNTRY_INFO!M12>=(COUNTRY_INFO!F12+COUNTRY_INFO!G12),COUNTRY_INFO!F12+COUNTRY_INFO!G12,COUNTRY_INFO!$M12), 0)) -> 0 | J12: 0 | K12: 0 | L12: 0 | M12: 0 | N12: 0 | P12: 0 | Q12: 0
A13: =IF(INTRO!$E$39="Non-endemic"," ",IF(COUNTRY_INFO!A13=0," ",COUNTRY_INFO!A13)) -> MALAWI | B13: =IF(INTRO!$E$39="Non-endemic"," ",IF(COUNTRY_INFO!B13=0," ",COUNTRY_INFO!B13)) -> North | C13: =IF(INTRO!$E$39="Non-endemic"," ",IF(COUNTRY_INFO!C13=0," ",COUNTRY_INFO!C13)) -> Mzimba South | D13: =IF(INTRO!$E$39="Non-endemic",0,IF(INTRO!$E$39="Endemic but PC is not required",IF(COUNTRY_INFO!$H13=1,COUNTRY_INFO!F13+COUNTRY_INFO!G13,0),IF(COUNTRY_INFO!$H13=1,COUNTRY_INFO!F13+COUNTRY_INFO!G13,IF(COUNTRY_INFO!$I13=1,IF(COUNTRY_INFO!M13>=(COUNTRY_INFO!F13+COUNTRY_INFO!G13),COUNTRY_INFO!F13+COUNTRY_INFO!G13,COUNTRY_INFO!$M13),0)))) -> 0 | E13: =IF(AND(INTRO!$E$39="Non-endemic",INTRO!$E$37="Non-endemic"),"Not required",IF(INTRO!$E$39="Non-endemic","Treat with DEC",COUNTRY_INFO!P13)) -> 0 | F13: =IF(INTRO!$E$39<>"Non-endemic",COUNTRY_INFO!Q13,"Not required") -> 0 | G13: =IF(COUNTRY_INFO!H13=1, IF($E13=1,$D13, 0),0) -> 0 | H13: =IF(INTRO!$E$39<>"Endemic",0, IF(AND(COUNTRY_INFO!$I13=1,$F13<>0),IF(COUNTRY_INFO!M13>=(COUNTRY_INFO!F13+COUNTRY_INFO!G13),COUNTRY_INFO!F13+COUNTRY_INFO!G13,COUNTRY_INFO!$M13), 0)) -> 0 | J13: 0 | K13: 0 | L13: 0 | M13: 0 | N13: 0 | P13: 0 | Q13: 0
A14: =IF(INTRO!$E$39="Non-endemic"," ",IF(COUNTRY_INFO!A14=0," ",COUNTRY_INFO!A14)) -> MALAWI | B14: =IF(INTRO!$E$39="Non-endemic"," ",IF(COUNTRY_INFO!B14=0," ",COUNTRY_INFO!B14)) -> North | C14: =IF(INTRO!$E$39="Non-endemic"," ",IF(COUNTRY_INFO!C14=0," ",COUNTRY_INFO!C14)) -> Nkhatabay | D14: =IF(INTRO!$E$39="Non-endemic",0,IF(INTRO!$E$39="Endemic but PC is not required",IF(COUNTRY_INFO!$H14=1,COUNTRY_INFO!F14+COUNTRY_INFO!G14,0),IF(COUNTRY_INFO!$H14=1,COUNTRY_INFO!F14+COUNTRY_INFO!G14,IF(COUNTRY_INFO!$I14=1,IF(COUNTRY_INFO!M14>=(COUNTRY_INFO!F14+COUNTRY_INFO!G14),COUNTRY_INFO!F14+COUNTRY_INFO!G14,COUNTRY_INFO!$M14),0)))) -> 0 | E14: =IF(AND(INTRO!$E$39="Non-endemic",INTRO!$E$37="Non-endemic"),"Not required",IF(INTRO!$E$39="Non-endemic","Treat with DEC",COUNTRY_INFO!P14)) -> 0 | F14: =IF(INTRO!$E$39<>"Non-endemic",COUNTRY_INFO!Q14,"Not required") -> 0 | G14: =IF(COUNTRY_INFO!H14=1, IF($E14=1,$D14, 0),0) -> 0 | H14: =IF(INTRO!$E$39<>"Endemic",0, IF(AND(COUNTRY_INFO!$I14=1,$F14<>0),IF(COUNTRY_INFO!M14>=(COUNTRY_INFO!F14+COUNTRY_INFO!G14),COUNTRY_INFO!F14+COUNTRY_INFO!G14,COUNTRY_INFO!$M14), 0)) -> 0 | J14: 0 | K14: 0 | L14: 0 | M14: 0 | N14: 0 | P14: 0 | Q14: 0
A15: =IF(INTRO!$E$39="Non-endemic"," ",IF(COUNTRY_INFO!A15=0," ",COUNTRY_INFO!A15)) -> MALAWI | B15: =IF(INTRO!$E$39="Non-endemic"," ",IF(COUNTRY_INFO!B15=0," ",COUNTRY_INFO!B15)) -> North | C15: =IF(INTRO!$E$39="Non-endemic"," ",IF(COUNTRY_INFO!C15=0," ",COUNTRY_INFO!C15)) -> Likoma | D15: =IF(INTRO!$E$39="Non-endemic",0,IF(INTRO!$E$39="Endemic but PC is not required",IF(COUNTRY_INFO!$H15=1,COUNTRY_INFO!F15+COUNTRY_INFO!G15,0),IF(COUNTRY_INFO!$H15=1,COUNTRY_INFO!F15+COUNTRY_INFO!G15,IF(COUNTRY_INFO!$I15=1,IF(COUNTRY_INFO!M15>=(COUNTRY_INFO!F15+COUNTRY_INFO!G15),COUNTRY_INFO!F15+COUNTRY_INFO!G15,COUNTRY_INFO!$M15),0)))) -> 0 | E15: =IF(AND(INTRO!$E$39="Non-endemic",INTRO!$E$37="Non-endemic"),"Not required",IF(INTRO!$E$39="Non-endemic","Treat with DEC",COUNTRY_INFO!P15)) -> 0 | F15: =IF(INTRO!$E$39<>"Non-endemic",COUNTRY_INFO!Q15,"Not required") -> 0 | G15: =IF(COUNTRY_INFO!H15=1, IF($E15=1,$D15, 0),0) -> 0 | H15: =IF(INTRO!$E$39<>"Endemic",0, IF(AND(COUNTRY_INFO!$I15=1,$F15<>0),IF(COUNTRY_INFO!M15>=(COUNTRY_INFO!F15+COUNTRY_INFO!G15),COUNTRY_INFO!F15+COUNTRY_INFO!G15,COUNTRY_INFO!$M15), 0)) -> 0 | J15: 0 | K15: 0 | L15: 0 | M15: 0 | N15: 0 | P15: 0 | Q15: 0
A16: =IF(INTRO!$E$39="Non-endemic"," ",IF(COUNTRY_INFO!A16=0," ",COUNTRY_INFO!A16)) -> MALAWI | B16: =IF(INTRO!$E$39="Non-endemic"," ",IF(COUNTRY_INFO!B16=0," ",COUNTRY_INFO!B16)) -> Central | C16: =IF(INTRO!$E$39="Non-endemic"," ",IF(COUNTRY_INFO!C16=0," ",COUNTRY_INFO!C16)) -> Kasungu | D16: =IF(INTRO!$E$39="Non-endemic",0,IF(INTRO!$E$39="Endemic but PC is not required",IF(COUNTRY_INFO!$H16=1,COUNTRY_INFO!F16+COUNTRY_INFO!G16,0),IF(COUNTRY_INFO!$H16=1,COUNTRY_INFO!F16+COUNTRY_INFO!G16,IF(COUNTRY_INFO!$I16=1,IF(COUNTRY_INFO!M16>=(COUNTRY_INFO!F16+COUNTRY_INFO!G16),COUNTRY_INFO!F16+COUNTRY_INFO!G16,COUNTRY_INFO!$M16),0)))) -> 0 | E16: =IF(AND(INTRO!$E$39="Non-endemic",INTRO!$E$37="Non-endemic"),"Not required",IF(INTRO!$E$39="Non-endemic","Treat with DEC",COUNTRY_INFO!P16)) -> 0 | F16: =IF(INTRO!$E$39<>"Non-endemic",COUNTRY_INFO!Q16,"Not required") -> 0 | G16: =IF(COUNTRY_INFO!H16=1, IF($E16=1,$D16, 0),0) -> 0 | H16: =IF(INTRO!$E$39<>"Endemic",0, IF(AND(COUNTRY_INFO!$I16=1,$F16<>0),IF(COUNTRY_INFO!M16>=(COUNTRY_INFO!F16+COUNTRY_INFO!G16),COUNTRY_INFO!F16+COUNTRY_INFO!G16,COUNTRY_INFO!$M16), 0)) -> 0 | J16: 0 | K16: 0 | L16: 0 | M16: 0 | N16: 0 | P16: 0 | Q16: 0
A17: =IF(INTRO!$E$39="Non-endemic"," ",IF(COUNTRY_INFO!A17=0," ",COUNTRY_INFO!A17)) -> MALAWI | B17: =IF(INTRO!$E$39="Non-endemic"," ",IF(COUNTRY_INFO!B17=0," ",COUNTRY_INFO!B17)) -> Central | C17: =IF(INTRO!$E$39="Non-endemic"," ",IF(COUNTRY_INFO!C17=0," ",COUNTRY_INFO!C17)) -> Dedza | D17: =IF(INTRO!$E$39="Non-endemic",0,IF(INTRO!$E$39="Endemic but PC is not required",IF(COUNTRY_INFO!$H17=1,COUNTRY_INFO!F17+COUNTRY_INFO!G17,0),IF(COUNTRY_INFO!$H17=1,COUNTRY_INFO!F17+COUNTRY_INFO!G17,IF(COUNTRY_INFO!$I17=1,IF(COUNTRY_INFO!M17>=(COUNTRY_INFO!F17+COUNTRY_INFO!G17),COUNTRY_INFO!F17+COUNTRY_INFO!G17,COUNTRY_INFO!$M17),0)))) -> 0 | E17: =IF(AND(INTRO!$E$39="Non-endemic",INTRO!$E$37="Non-endemic"),"Not required",IF(INTRO!$E$39="Non-endemic","Treat with DEC",COUNTRY_INFO!P17)) -> 0 | F17: =IF(INTRO!$E$39<>"Non-endemic",COUNTRY_INFO!Q17,"Not required") -> 0 | G17: =IF(COUNTRY_INFO!H17=1, IF($E17=1,$D17, 0),0) -> 0 | H17: =IF(INTRO!$E$39<>"Endemic",0, IF(AND(COUNTRY_INFO!$I17=1,$F17<>0),IF(COUNTRY_INFO!M17>=(COUNTRY_INFO!F17+COUNTRY_INFO!G17),COUNTRY_INFO!F17+COUNTRY_INFO!G17,COUNTRY_INFO!$M17), 0)) -> 0 | J17: 0 | K17: 0 | L17: 0 | M17: 0 | N17: 0 | P17: 0 | Q17: 0
A18: =IF(INTRO!$E$39="Non-endemic"," ",IF(COUNTRY_INFO!A18=0," ",COUNTRY_INFO!A18)) -> MALAWI | B18: =IF(INTRO!$E$39="Non-endemic"," ",IF(COUNTRY_INFO!B18=0," ",COUNTRY_INFO!B18)) -> Central | C18: =IF(INTRO!$E$39="Non-endemic"," ",IF(COUNTRY_INFO!C18=0," ",COUNTRY_INFO!C18)) -> Dowa | D18: =IF(INTRO!$E$39="Non-endemic",0,IF(INTRO!$E$39="Endemic but PC is not required",IF(COUNTRY_INFO!$H18=1,COUNTRY_INFO!F18+COUNTRY_INFO!G18,0),IF(COUNTRY_INFO!$H18=1,COUNTRY_INFO!F18+COUNTRY_INFO!G18,IF(COUNTRY_INFO!$I18=1,IF(COUNTRY_INFO!M18>=(COUNTRY_INFO!F18+COUNTRY_INFO!G18),COUNTRY_INFO!F18+COUNTRY_INFO!G18,COUNTRY_INFO!$M18),0)))) -> 0 | E18: =IF(AND(INTRO!$E$39="Non-endemic",INTRO!$E$37="Non-endemic"),"Not required",IF(INTRO!$E$39="Non-endemic","Treat with DEC",COUNTRY_INFO!P18)) -> 0 | F18: =IF(INTRO!$E$39<>"Non-endemic",COUNTRY_INFO!Q18,"Not required") -> 0 | G18: =IF(COUNTRY_INFO!H18=1, IF($E18=1,$D18, 0),0) -> 0 | H18: =IF(INTRO!$E$39<>"Endemic",0, IF(AND(COUNTRY_INFO!$I18=1,$F18<>0),IF(COUNTRY_INFO!M18>=(COUNTRY_INFO!F18+COUNTRY_INFO!G18),COUNTRY_INFO!F18+COUNTRY_INFO!G18,COUNTRY_INFO!$M18), 0)) -> 0 | J18: 0 | K18: 0 | L18: 0 | M18: 0 | N18: 0 | P18: 0 | Q18: 0
A19: =IF(INTRO!$E$39="Non-endemic"," ",IF(COUNTRY_INFO!A19=0," ",COUNTRY_INFO!A19)) -> MALAWI | B19: =IF(INTRO!$E$39="Non-endemic"," ",IF(COUNTRY_INFO!B19=0," ",COUNTRY_INFO!B19)) -> Central | C19: =IF(INTRO!$E$39="Non-endemic"," ",IF(COUNTRY_INFO!C19=0," ",COUNTRY_INFO!C19)) -> Lilongwe | D19: =IF(INTRO!$E$39="Non-endemic",0,IF(INTRO!$E$39="Endemic but PC is not required",IF(COUNTRY_INFO!$H19=1,COUNTRY_INFO!F19+COUNTRY_INFO!G19,0),IF(COUNTRY_INFO!$H19=1,COUNTRY_INFO!F19+COUNTRY_INFO!G19,IF(COUNTRY_INFO!$I19=1,IF(COUNTRY_INFO!M19>=(COUNTRY_INFO!F19+COUNTRY_INFO!G19),COUNTRY_INFO!F19+COUNTRY_INFO!G19,COUNTRY_INFO!$M19),0)))) -> 0 | E19: =IF(AND(INTRO!$E$39="Non-endemic",INTRO!$E$37="Non-endemic"),"Not required",IF(INTRO!$E$39="Non-endemic","Treat with DEC",COUNTRY_INFO!P19)) -> 0 | F19: =IF(INTRO!$E$39<>"Non-endemic",COUNTRY_INFO!Q19,"Not required") -> 0 | G19: =IF(COUNTRY_INFO!H19=1, IF($E19=1,$D19, 0),0) -> 0 | H19: =IF(INTRO!$E$39<>"Endemic",0, IF(AND(COUNTRY_INFO!$I19=1,$F19<>0),IF(COUNTRY_INFO!M19>=(COUNTRY_INFO!F19+COUNTRY_INFO!G19),COUNTRY_INFO!F19+COUNTRY_INFO!G19,COUNTRY_INFO!$M19), 0)) -> 0 | J19: 0 | K19: 0 | L19: 0 | M19: 0 | N19: 0 | P19: 0 | Q19: 0
A20: =IF(INTRO!$E$39="Non-endemic"," ",IF(COUNTRY_INFO!A20=0," ",COUNTRY_INFO!A20)) -> MALAWI | B20: =IF(INTRO!$E$39="Non-endemic"," ",IF(COUNTRY_INFO!B20=0," ",COUNTRY_INFO!B20)) -> Central | C20: =IF(INTRO!$E$39="Non-endemic"," ",IF(COUNTRY_INFO!C20=0," ",COUNTRY_INFO!C20)) -> Mchinji | D20: =IF(INTRO!$E$39="Non-endemic",0,IF(INTRO!$E$39="Endemic but PC is not required",IF(COUNTRY_INFO!$H20=1,COUNTRY_INFO!F20+COUNTRY_INFO!G20,0),IF(COUNTRY_INFO!$H20=1,COUNTRY_INFO!F20+COUNTRY_INFO!G20,IF(COUNTRY_INFO!$I20=1,IF(COUNTRY_INFO!M20>=(COUNTRY_INFO!F20+COUNTRY_INFO!G20),COUNTRY_INFO!F20+COUNTRY_INFO!G20,COUNTRY_INFO!$M20),0)))) -> 0 | E20: =IF(AND(INTRO!$E$39="Non-endemic",INTRO!$E$37="Non-endemic"),"Not required",IF(INTRO!$E$39="Non-endemic","Treat with DEC",COUNTRY_INFO!P20)) -> 0 | F20: =IF(INTRO!$E$39<>"Non-endemic",COUNTRY_INFO!Q20,"Not required") -> 0 | G20: =IF(COUNTRY_INFO!H20=1, IF($E20=1,$D20, 0),0) -> 0 | H20: =IF(INTRO!$E$39<>"Endemic",0, IF(AND(COUNTRY_INFO!$I20=1,$F20<>0),IF(COUNTRY_INFO!M20>=(COUNTRY_INFO!F20+COUNTRY_INFO!G20),COUNTRY_INFO!F20+COUNTRY_INFO!G20,COUNTRY_INFO!$M20), 0)) -> 0 | J20: 0 | K20: 0 | L20: 0 | M20: 0 | N20: 0 | P20: 0 | Q20: 0
A21: =IF(INTRO!$E$39="Non-endemic"," ",IF(COUNTRY_INFO!A21=0," ",COUNTRY_INFO!A21)) -> MALAWI | B21: =IF(INTRO!$E$39="Non-endemic"," ",IF(COUNTRY_INFO!B21=0," ",COUNTRY_INFO!B21)) -> Central | C21: =IF(INTRO!$E$39="Non-endemic"," ",IF(COUNTRY_INFO!C21=0," ",COUNTRY_INFO!C21)) -> Salima | D21: =IF(INTRO!$E$39="Non-endemic",0,IF(INTRO!$E$39="Endemic but PC is not required",IF(COUNTRY_INFO!$H21=1,COUNTRY_INFO!F21+COUNTRY_INFO!G21,0),IF(COUNTRY_INFO!$H21=1,COUNTRY_INFO!F21+COUNTRY_INFO!G21,IF(COUNTRY_INFO!$I21=1,IF(COUNTRY_INFO!M21>=(COUNTRY_INFO!F21+COUNTRY_INFO!G21),COUNTRY_INFO!F21+COUNTRY_INFO!G21,COUNTRY_INFO!$M21),0)))) -> 0 | E21: =IF(AND(INTRO!$E$39="Non-endemic",INTRO!$E$37="Non-endemic"),"Not required",IF(INTRO!$E$39="Non-endemic","Treat with DEC",COUNTRY_INFO!P21)) -> 0 | F21: =IF(INTRO!$E$39<>"Non-endemic",COUNTRY_INFO!Q21,"Not required") -> 0 | G21: =IF(COUNTRY_INFO!H21=1, IF($E21=1,$D21, 0),0) -> 0 | H21: =IF(INTRO!$E$39<>"Endemic",0, IF(AND(COUNTRY_INFO!$I21=1,$F21<>0),IF(COUNTRY_INFO!M21>=(COUNTRY_INFO!F21+COUNTRY_INFO!G21),COUNTRY_INFO!F21+COUNTRY_INFO!G21,COUNTRY_INFO!$M21), 0)) -> 0 | J21: 0 | K21: 0 | L21: 0 | M21: 0 | N21: 0 | P21: 0 | Q21: 0
A22: =IF(INTRO!$E$39="Non-endemic"," ",IF(COUNTRY_INFO!A22=0," ",COUNTRY_INFO!A22)) -> MALAWI | B22: =IF(INTRO!$E$39="Non-endemic"," ",IF(COUNTRY_INFO!B22=0," ",COUNTRY_INFO!B22)) -> Central | C22: =IF(INTRO!$E$39="Non-endemic"," ",IF(COUNTRY_INFO!C22=0," ",COUNTRY_INFO!C22)) -> Nkhotakota | D22: =IF(INTRO!$E$39="Non-endemic",0,IF(INTRO!$E$39="Endemic but PC is not required",IF(COUNTRY_INFO!$H22=1,COUNTRY_INFO!F22+COUNTRY_INFO!G22,0),IF(COUNTRY_INFO!$H22=1,COUNTRY_INFO!F22+COUNTRY_INFO!G22,IF(COUNTRY_INFO!$I22=1,IF(COUNTRY_INFO!M22>=(COUNTRY_INFO!F22+COUNTRY_INFO!G22),COUNTRY_INFO!F22+COUNTRY_INFO!G22,COUNTRY_INFO!$M22),0)))) -> 0 | E22: =IF(AND(INTRO!$E$39="Non-endemic",INTRO!$E$37="Non-endemic"),"Not required",IF(INTRO!$E$39="Non-endemic","Treat with DEC",COUNTRY_INFO!P22)) -> 0 | F22: =IF(INTRO!$E$39<>"Non-endemic",COUNTRY_INFO!Q22,"Not required") -> 0 | G22: =IF(COUNTRY_INFO!H22=1, IF($E22=1,$D22, 0),0) -> 0 | H22: =IF(INTRO!$E$39<>"Endemic",0, IF(AND(COUNTRY_INFO!$I22=1,$F22<>0),IF(COUNTRY_INFO!M22>=(COUNTRY_INFO!F22+COUNTRY_INFO!G22),COUNTRY_INFO!F22+COUNTRY_INFO!G22,COUNTRY_INFO!$M22), 0)) -> 0 | J22: 0 | K22: 0 | L22: 0 | M22: 0 | N22: 0 | P22: 0 | Q22: 0
A23: =IF(INTRO!$E$39="Non-endemic"," ",IF(COUNTRY_INFO!A23=0," ",COUNTRY_INFO!A23)) -> MALAWI | B23: =IF(INTRO!$E$39="Non-endemic"," ",IF(COUNTRY_INFO!B23=0," ",COUNTRY_INFO!B23)) -> Central | C23: =IF(INTRO!$E$39="Non-endemic"," ",IF(COUNTRY_INFO!C23=0," ",COUNTRY_INFO!C23)) -> Ntchisi | D23: =IF(INTRO!$E$39="Non-endemic",0,IF(INTRO!$E$39="Endemic but PC is not required",IF(COUNTRY_INFO!$H23=1,COUNTRY_INFO!F23+COUNTRY_INFO!G23,0),IF(COUNTRY_INFO!$H23=1,COUNTRY_INFO!F23+COUNTRY_INFO!G23,IF(COUNTRY_INFO!$I23=1,IF(COUNTRY_INFO!M23>=(COUNTRY_INFO!F23+COUNTRY_INFO!G23),COUNTRY_INFO!F23+COUNTRY_INFO!G23,COUNTRY_INFO!$M23),0)))) -> 0 | E23: =IF(AND(INTRO!$E$39="Non-endemic",INTRO!$E$37="Non-endemic"),"Not required",IF(INTRO!$E$39="Non-endemic","Treat with DEC",COUNTRY_INFO!P23)) -> 0 | F23: =IF(INTRO!$E$39<>"Non-endemic",COUNTRY_INFO!Q23,"Not required") -> 0 | G23: =IF(COUNTRY_INFO!H23=1, IF($E23=1,$D23, 0),0) -> 0 | H23: =IF(INTRO!$E$39<>"Endemic",0, IF(AND(COUNTRY_INFO!$I23=1,$F23<>0),IF(COUNTRY_INFO!M23>=(COUNTRY_INFO!F23+COUNTRY_INFO!G23),COUNTRY_INFO!F23+COUNTRY_INFO!G23,COUNTRY_INFO!$M23), 0)) -> 0 | J23: 0 | K23: 0 | L23: 0 | M23: 0 | N23: 0 | P23: 0 | Q23: 0
A24: =IF(INTRO!$E$39="Non-endemic"," ",IF(COUNTRY_INFO!A24=0," ",COUNTRY_INFO!A24)) -> MALAWI | B24: =IF(INTRO!$E$39="Non-endemic"," ",IF(COUNTRY_INFO!B24=0," ",COUNTRY_INFO!B24)) -> Central | C24: =IF(INTRO!$E$39="Non-endemic"," ",IF(COUNTRY_INFO!C24=0," ",COUNTRY_INFO!C24)) -> Ntcheu | D24: =IF(INTRO!$E$39="Non-endemic",0,IF(INTRO!$E$39="Endemic but PC is not required",IF(COUNTRY_INFO!$H24=1,COUNTRY_INFO!F24+COUNTRY_INFO!G24,0),IF(COUNTRY_INFO!$H24=1,COUNTRY_INFO!F24+COUNTRY_INFO!G24,IF(COUNTRY_INFO!$I24=1,IF(COUNTRY_INFO!M24>=(COUNTRY_INFO!F24+COUNTRY_INFO!G24),COUNTRY_INFO!F24+COUNTRY_INFO!G24,COUNTRY_INFO!$M24),0)))) -> 100237 | E24: =IF(AND(INTRO!$E$39="Non-endemic",INTRO!$E$37="Non-endemic"),"Not required",IF(INTRO!$E$39="Non-endemic","Treat with DEC",COUNTRY_INFO!P24)) -> 0 | F24: =IF(INTRO!$E$39<>"Non-endemic",COUNTRY_INFO!Q24,"Not required") -> 1 | G24: =IF(COUNTRY_INFO!H24=1, IF($E24=1,$D24, 0),0) -> 0 | H24: =IF(INTRO!$E$39<>"Endemic",0, IF(AND(COUNTRY_INFO!$I24=1,$F24<>0),IF(COUNTRY_INFO!M24>=(COUNTRY_INFO!F24+COUNTRY_INFO!G24),COUNTRY_INFO!F24+COUNTRY_INFO!G24,COUNTRY_INFO!$M24), 0)) -> 100237 | J24: 100237 | K24: 0 | L24: 280663.6 | M24: 0 | N24: 280663.6 | O24: 0 | P24: 280663.6 | Q24: 562
A25: =IF(INTRO!$E$39="Non-endemic"," ",IF(COUNTRY_INFO!A25=0," ",COUNTRY_INFO!A25)) -> MALAWI | B25: =IF(INTRO!$E$39="Non-endemic"," ",IF(COUNTRY_INFO!B25=0," ",COUNTRY_INFO!B25)) -> South | C25: =IF(INTRO!$E$39="Non-endemic"," ",IF(COUNTRY_INFO!C25=0," ",COUNTRY_INFO!C25)) -> Balaka | D25: =IF(INTRO!$E$39="Non-endemic",0,IF(INTRO!$E$39="Endemic but PC is not required",IF(COUNTRY_INFO!$H25=1,COUNTRY_INFO!F25+COUNTRY_INFO!G25,0),IF(COUNTRY_INFO!$H25=1,COUNTRY_INFO!F25+COUNTRY_INFO!G25,IF(COUNTRY_INFO!$I25=1,IF(COUNTRY_INFO!M25>=(COUNTRY_INFO!F25+COUNTRY_INFO!G25),COUNTRY_INFO!F25+COUNTRY_INFO!G25,COUNTRY_INFO!$M25),0)))) -> 0 | E25: =IF(AND(INTRO!$E$39="Non-endemic",INTRO!$E$37="Non-endemic"),"Not required",IF(INTRO!$E$39="Non-endemic","Treat with DEC",COUNTRY_INFO!P25)) -> 0 | F25: =IF(INTRO!$E$39<>"Non-endemic",COUNTRY_INFO!Q25,"Not required") -> 0 | G25: =IF(COUNTRY_INFO!H25=1, IF($E25=1,$D25, 0),0) -> 0 | H25: =IF(INTRO!$E$39<>"Endemic",0, IF(AND(COUNTRY_INFO!$I25=1,$F25<>0),IF(COUNTRY_INFO!M25>=(COUNTRY_INFO!F25+COUNTRY_INFO!G25),COUNTRY_INFO!F25+COUNTRY_INFO!G25,COUNTRY_INFO!$M25), 0)) -> 0 | J25: 0 | K25: 0 | L25: 0 | M25: 0 | N25: 0 | P25: 0 | Q25: 0
A26: =IF(INTRO!$E$39="Non-endemic"," ",IF(COUNTRY_INFO!A26=0," ",COUNTRY_INFO!A26)) -> MALAWI | B26: =IF(INTRO!$E$39="Non-endemic"," ",IF(COUNTRY_INFO!B26=0," ",COUNTRY_INFO!B26)) -> South | C26: =IF(INTRO!$E$39="Non-endemic"," ",IF(COUNTRY_INFO!C26=0," ",COUNTRY_INFO!C26)) -> Chikwawa | D26: =IF(INTRO!$E$39="Non-endemic",0,IF(INTRO!$E$39="Endemic but PC is not required",IF(COUNTRY_INFO!$H26=1,COUNTRY_INFO!F26+COUNTRY_INFO!G26,0),IF(COUNTRY_INFO!$H26=1,COUNTRY_INFO!F26+COUNTRY_INFO!G26,IF(COUNTRY_INFO!$I26=1,IF(COUNTRY_INFO!M26>=(COUNTRY_INFO!F26+COUNTRY_INFO!G26),COUNTRY_INFO!F26+COUNTRY_INFO!G26,COUNTRY_INFO!$M26),0)))) -> 143176 | E26: =IF(AND(INTRO!$E$39="Non-endemic",INTRO!$E$37="Non-endemic"),"Not required",IF(INTRO!$E$39="Non-endemic","Treat with DEC",COUNTRY_INFO!P26)) -> 0 | F26: =IF(INTRO!$E$39<>"Non-endemic",COUNTRY_INFO!Q26,"Not required") -> 1 | G26: =IF(COUNTRY_INFO!H26=1, IF($E26=1,$D26, 0),0) -> 0 | H26: =IF(INTRO!$E$39<>"Endemic",0, IF(AND(COUNTRY_INFO!$I26=1,$F26<>0),IF(COUNTRY_INFO!M26>=(COUNTRY_INFO!F26+COUNTRY_INFO!G26),COUNTRY_INFO!F26+COUNTRY_INFO!G26,COUNTRY_INFO!$M26), 0)) -> 143176 | J26: 143176 | K26: 0 | L26: 400892.8 | M26: 0 | N26: 400892.8 | O26: 0 | P26: 400892.8 | Q26: 802
A27: =IF(INTRO!$E$39="Non-endemic"," ",IF(COUNTRY_INFO!A27=0," ",COUNTRY_INFO!A27)) -> MALAWI | B27: =IF(INTRO!$E$39="Non-endemic"," ",IF(COUNTRY_INFO!B27=0," ",COUNTRY_INFO!B27)) -> South | C27: =IF(INTRO!$E$39="Non-endemic"," ",IF(COUNTRY_INFO!C27=0," ",COUNTRY_INFO!C27)) -> Chiradzulu | D27: =IF(INTRO!$E$39="Non-endemic",0,IF(INTRO!$E$39="Endemic but PC is not required",IF(COUNTRY_INFO!$H27=1,COUNTRY_INFO!F27+COUNTRY_INFO!G27,0),IF(COUNTRY_INFO!$H27=1,COUNTRY_INFO!F27+COUNTRY_INFO!G27,IF(COUNTRY_INFO!$I27=1,IF(COUNTRY_INFO!M27>=(COUNTRY_INFO!F27+COUNTRY_INFO!G27),COUNTRY_INFO!F27+COUNTRY_INFO!G27,COUNTRY_INFO!$M27),0)))) -> 230305 | E27: =IF(AND(INTRO!$E$39="Non-endemic",INTRO!$E$37="Non-endemic"),"Not required",IF(INTRO!$E$39="Non-endemic","Treat with DEC",COUNTRY_INFO!P27)) -> 0 | F27: =IF(INTRO!$E$39<>"Non-endemic",COUNTRY_INFO!Q27,"Not required") -> 1 | G27: =IF(COUNTRY_INFO!H27=1, IF($E27=1,$D27, 0),0) -> 0 | H27: =IF(INTRO!$E$39<>"Endemic",0, IF(AND(COUNTRY_INFO!$I27=1,$F27<>0),IF(COUNTRY_INFO!M27>=(COUNTRY_INFO!F27+COUNTRY_INFO!G27),COUNTRY_INFO!F27+COUNTRY_INFO!G27,COUNTRY_INFO!$M27), 0)) -> 230305 | J27: 230305 | K27: 0 | L27: 644854 | M27: 0 | N27: 644854 | O27: 0 | P27: 644854 | Q27: 1290
A28: =IF(INTRO!$E$39="Non-endemic"," ",IF(COUNTRY_INFO!A28=0," ",COUNTRY_INFO!A28)) -> MALAWI | B28: =IF(INTRO!$E$39="Non-endemic"," ",IF(COUNTRY_INFO!B28=0," ",COUNTRY_INFO!B28)) -> South | C28: =IF(INTRO!$E$39="Non-endemic"," ",IF(COUNTRY_INFO!C28=0," ",COUNTRY_INFO!C28)) -> Machinga | D28: =IF(INTRO!$E$39="Non-endemic",0,IF(INTRO!$E$39="Endemic but PC is not required",IF(COUNTRY_INFO!$H28=1,COUNTRY_INFO!F28+COUNTRY_INFO!G28,0),IF(COUNTRY_INFO!$H28=1,COUNTRY_INFO!F28+COUNTRY_INFO!G28,IF(COUNTRY_INFO!$I28=1,IF(COUNTRY_INFO!M28>=(COUNTRY_INFO!F28+COUNTRY_INFO!G28),COUNTRY_INFO!F28+COUNTRY_INFO!G28,COUNTRY_INFO!$M28),0)))) -> 0 | E28: =IF(AND(INTRO!$E$39="Non-endemic",INTRO!$E$37="Non-endemic"),"Not required",IF(INTRO!$E$39="Non-endemic","Treat with DEC",COUNTRY_INFO!P28)) -> 0 | F28: =IF(INTRO!$E$39<>"Non-endemic",COUNTRY_INFO!Q28,"Not required") -> 0 | G28: =IF(COUNTRY_INFO!H28=1, IF($E28=1,$D28, 0),0) -> 0 | H28: =IF(INTRO!$E$39<>"Endemic",0, IF(AND(COUNTRY_INFO!$I28=1,$F28<>0),IF(COUNTRY_INFO!M28>=(COUNTRY_INFO!F28+COUNTRY_INFO!G28),COUNTRY_INFO!F28+COUNTRY_INFO!G28,COUNTRY_INFO!$M28), 0)) -> 0 | J28: 0 | K28: 0 | L28: 0 | M28: 0 | N28: 0 | P28: 0 | Q28: 0
A29: =IF(INTRO!$E$39="Non-endemic"," ",IF(COUNTRY_INFO!A29=0," ",COUNTRY_INFO!A29)) -> MALAWI | B29: =IF(INTRO!$E$39="Non-endemic"," ",IF(COUNTRY_INFO!B29=0," ",COUNTRY_INFO!B29)) -> South | C29: =IF(INTRO!$E$39="Non-endemic"," ",IF(COUNTRY_INFO!C29=0," ",COUNTRY_INFO!C29)) -> Blantyre | D29: =IF(INTRO!$E$39="Non-endemic",0,IF(INTRO!$E$39="Endemic but PC is not required",IF(COUNTRY_INFO!$H29=1,COUNTRY_INFO!F29+COUNTRY_INFO!G29,0),IF(COUNTRY_INFO!$H29=1,COUNTRY_INFO!F29+COUNTRY_INFO!G29,IF(COUNTRY_INFO!$I29=1,IF(COUNTRY_INFO!M29>=(COUNTRY_INFO!F29+COUNTRY_INFO!G29),COUNTRY_INFO!F29+COUNTRY_INFO!G29,COUNTRY_INFO!$M29),0)))) -> 552317 | E29: =IF(AND(INTRO!$E$39="Non-endemic",INTRO!$E$37="Non-endemic"),"Not required",IF(INTRO!$E$39="Non-endemic","Treat with DEC",COUNTRY_INFO!P29)) -> 0 | F29: =IF(INTRO!$E$39<>"Non-endemic",COUNTRY_INFO!Q29,"Not required") -> 1 | G29: =IF(COUNTRY_INFO!H29=1, IF($E29=1,$D29, 0),0) -> 0 | H29: =IF(INTRO!$E$39<>"Endemic",0, IF(AND(COUNTRY_INFO!$I29=1,$F29<>0),IF(COUNTRY_INFO!M29>=(COUNTRY_INFO!F29+COUNTRY_INFO!G29),COUNTRY_INFO!F29+COUNTRY_INFO!G29,COUNTRY_INFO!$M29), 0)) -> 552317 | J29: 552317 | K29: 0 | L29: 1546487.6 | M29: 0 | N29: 1546487.6 | O29: 0 | P29: 1546487.6 | Q29: 3093
A30: =IF(INTRO!$E$39="Non-endemic"," ",IF(COUNTRY_INFO!A30=0," ",COUNTRY_INFO!A30)) -> MALAWI | B30: =IF(INTRO!$E$39="Non-endemic"," ",IF(COUNTRY_INFO!B30=0," ",COUNTRY_INFO!B30)) -> South | C30: =IF(INTRO!$E$39="Non-endemic"," ",IF(COUNTRY_INFO!C30=0," ",COUNTRY_INFO!C30)) -> Mangochi | D30: =IF(INTRO!$E$39="Non-endemic",0,IF(INTRO!$E$39="Endemic but PC is not required",IF(COUNTRY_INFO!$H30=1,COUNTRY_INFO!F30+COUNTRY_INFO!G30,0),IF(COUNTRY_INFO!$H30=1,COUNTRY_INFO!F30+COUNTRY_INFO!G30,IF(COUNTRY_INFO!$I30=1,IF(COUNTRY_INFO!M30>=(COUNTRY_INFO!F30+COUNTRY_INFO!G30),COUNTRY_INFO!F30+COUNTRY_INFO!G30,COUNTRY_INFO!$M30),0)))) -> 0 | E30: =IF(AND(INTRO!$E$39="Non-endemic",INTRO!$E$37="Non-endemic"),"Not required",IF(INTRO!$E$39="Non-endemic","Treat with DEC",COUNTRY_INFO!P30)) -> 0 | F30: =IF(INTRO!$E$39<>"Non-endemic",COUNTRY_INFO!Q30,"Not required") -> 0 | G30: =IF(COUNTRY_INFO!H30=1, IF($E30=1,$D30, 0),0) -> 0 | H30: =IF(INTRO!$E$39<>"Endemic",0, IF(AND(COUNTRY_INFO!$I30=1,$F30<>0),IF(COUNTRY_INFO!M30>=(COUNTRY_INFO!F30+COUNTRY_INFO!G30),COUNTRY_INFO!F30+COUNTRY_INFO!G30,COUNTRY_INFO!$M30), 0)) -> 0 | J30: 0 | K30: 0 | L30: 0 | M30: 0 | N30: 0 | P30: 0 | Q30: 0
A31: =IF(INTRO!$E$39="Non-endemic"," ",IF(COUNTRY_INFO!A31=0," ",COUNTRY_INFO!A31)) -> MALAWI | B31: =IF(INTRO!$E$39="Non-endemic"," ",IF(COUNTRY_INFO!B31=0," ",COUNTRY_INFO!B31)) -> South | C31: =IF(INTRO!$E$39="Non-endemic"," ",IF(COUNTRY_INFO!C31=0," ",COUNTRY_INFO!C31)) -> Mulanje | D31: =IF(INTRO!$E$39="Non-endemic",0,IF(INTRO!$E$39="Endemic but PC is not required",IF(COUNTRY_INFO!$H31=1,COUNTRY_INFO!F31+COUNTRY_INFO!G31,0),IF(COUNTRY_INFO!$H31=1,COUNTRY_INFO!F31+COUNTRY_INFO!G31,IF(COUNTRY_INFO!$I31=1,IF(COUNTRY_INFO!M31>=(COUNTRY_INFO!F31+COUNTRY_INFO!G31),COUNTRY_INFO!F31+COUNTRY_INFO!G31,COUNTRY_INFO!$M31),0)))) -> 589167 | E31: =IF(AND(INTRO!$E$39="Non-endemic",INTRO!$E$37="Non-endemic"),"Not required",IF(INTRO!$E$39="Non-endemic","Treat with DEC",COUNTRY_INFO!P31)) -> 0 | F31: =IF(INTRO!$E$39<>"Non-endemic",COUNTRY_INFO!Q31,"Not required") -> 1 | G31: =IF(COUNTRY_INFO!H31=1, IF($E31=1,$D31, 0),0) -> 0 | H31: =IF(INTRO!$E$39<>"Endemic",0, IF(AND(COUNTRY_INFO!$I31=1,$F31<>0),IF(COUNTRY_INFO!M31>=(COUNTRY_INFO!F31+COUNTRY_INFO!G31),COUNTRY_INFO!F31+COUNTRY_INFO!G31,COUNTRY_INFO!$M31), 0)) -> 589167 | J31: 589167 | K31: 0 | L31: 1649667.6 | M31: 0 | N31: 1649667.6 | O31: 0 | P31: 1649667.6 | Q31: 3300
A32: =IF(INTRO!$E$39="Non-endemic"," ",IF(COUNTRY_INFO!A32=0," ",COUNTRY_INFO!A32)) -> MALAWI | B32: =IF(INTRO!$E$39="Non-endemic"," ",IF(COUNTRY_INFO!B32=0," ",COUNTRY_INFO!B32)) -> South | C32: =IF(INTRO!$E$39="Non-endemic"," ",IF(COUNTRY_INFO!C32=0," ",COUNTRY_INFO!C32)) -> Nsanje | D32: =IF(INTRO!$E$39="Non-endemic",0,IF(INTRO!$E$39="Endemic but PC is not required",IF(COUNTRY_INFO!$H32=1,COUNTRY_INFO!F32+COUNTRY_INFO!G32,0),IF(COUNTRY_INFO!$H32=1,COUNTRY_INFO!F32+COUNTRY_INFO!G32,IF(COUNTRY_INFO!$I32=1,IF(COUNTRY_INFO!M32>=(COUNTRY_INFO!F32+COUNTRY_INFO!G32),COUNTRY_INFO!F32+COUNTRY_INFO!G32,COUNTRY_INFO!$M32),0)))) -> 0 | E32: =IF(AND(INTRO!$E$39="Non-endemic",INTRO!$E$37="Non-endemic"),"Not required",IF(INTRO!$E$39="Non-endemic","Treat with DEC",COUNTRY_INFO!P32)) -> 0 | F32: =IF(INTRO!$E$39<>"Non-endemic",COUNTRY_INFO!Q32,"Not required") -> 0 | G32: =IF(COUNTRY_INFO!H32=1, IF($E32=1,$D32, 0),0) -> 0 | H32: =IF(INTRO!$E$39<>"Endemic",0, IF(AND(COUNTRY_INFO!$I32=1,$F32<>0),IF(COUNTRY_INFO!M32>=(COUNTRY_INFO!F32+COUNTRY_INFO!G32),COUNTRY_INFO!F32+COUNTRY_INFO!G32,COUNTRY_INFO!$M32), 0)) -> 0 | J32: 0 | K32: 0 | L32: 0 | M32: 0 | N32: 0 | P32: 0 | Q32: 0
A33: =IF(INTRO!$E$39="Non-endemic"," ",IF(COUNTRY_INFO!A33=0," ",COUNTRY_INFO!A33)) -> MALAWI | B33: =IF(INTRO!$E$39="Non-endemic"," ",IF(COUNTRY_INFO!B33=0," ",COUNTRY_INFO!B33)) -> South | C33: =IF(INTRO!$E$39="Non-endemic"," ",IF(COUNTRY_INFO!C33=0," ",COUNTRY_INFO!C33)) -> Phalombe | D33: =IF(INTRO!$E$39="Non-endemic",0,IF(INTRO!$E$39="Endemic but PC is not required",IF(COUNTRY_INFO!$H33=1,COUNTRY_INFO!F33+COUNTRY_INFO!G33,0),IF(COUNTRY_INFO!$H33=1,COUNTRY_INFO!F33+COUNTRY_INFO!G33,IF(COUNTRY_INFO!$I33=1,IF(COUNTRY_INFO!M33>=(COUNTRY_INFO!F33+COUNTRY_INFO!G33),COUNTRY_INFO!F33+COUNTRY_INFO!G33,COUNTRY_INFO!$M33),0)))) -> 53781 | E33: =IF(AND(INTRO!$E$39="Non-endemic",INTRO!$E$37="Non-endemic"),"Not required",IF(INTRO!$E$39="Non-endemic","Treat with DEC",COUNTRY_INFO!P33)) -> 0 | F33: =IF(INTRO!$E$39<>"Non-endemic",COUNTRY_INFO!Q33,"Not required") -> 1 | G33: =IF(COUNTRY_INFO!H33=1, IF($E33=1,$D33, 0),0) -> 0 | H33: =IF(INTRO!$E$39<>"Endemic",0, IF(AND(COUNTRY_INFO!$I33=1,$F33<>0),IF(COUNTRY_INFO!M33>=(COUNTRY_INFO!F33+COUNTRY_INFO!G33),COUNTRY_INFO!F33+COUNTRY_INFO!G33,COUNTRY_INFO!$M33), 0)) -> 53781 | J33: 53781 | K33: 0 | L33: 150586.8 | M33: 0 | N33: 150586.8 | O33: 0 | P33: 150586.8 | Q33: 302
A34: =IF(INTRO!$E$39="Non-endemic"," ",IF(COUNTRY_INFO!A34=0," ",COUNTRY_INFO!A34)) -> MALAWI | B34: =IF(INTRO!$E$39="Non-endemic"," ",IF(COUNTRY_INFO!B34=0," ",COUNTRY_INFO!B34)) -> South | C34: =IF(INTRO!$E$39="Non-endemic"," ",IF(COUNTRY_INFO!C34=0," ",COUNTRY_INFO!C34)) -> Thyolo | D34: =IF(INTRO!$E$39="Non-endemic",0,IF(INTRO!$E$39="Endemic but PC is not required",IF(COUNTRY_INFO!$H34=1,COUNTRY_INFO!F34+COUNTRY_INFO!G34,0),IF(COUNTRY_INFO!$H34=1,COUNTRY_INFO!F34+COUNTRY_INFO!G34,IF(COUNTRY_INFO!$I34=1,IF(COUNTRY_INFO!M34>=(COUNTRY_INFO!F34+COUNTRY_INFO!G34),COUNTRY_INFO!F34+COUNTRY_INFO!G34,COUNTRY_INFO!$M34),0)))) -> 689704 | E34: =IF(AND(INTRO!$E$39="Non-endemic",INTRO!$E$37="Non-endemic"),"Not required",IF(INTRO!$E$39="Non-endemic","Treat with DEC",COUNTRY_INFO!P34)) -> 0 | F34: =IF(INTRO!$E$39<>"Non-endemic",COUNTRY_INFO!Q34,"Not required") -> 1 | G34: =IF(COUNTRY_INFO!H34=1, IF($E34=1,$D34, 0),0) -> 0 | H34: =IF(INTRO!$E$39<>"Endemic",0, IF(AND(COUNTRY_INFO!$I34=1,$F34<>0),IF(COUNTRY_INFO!M34>=(COUNTRY_INFO!F34+COUNTRY_INFO!G34),COUNTRY_INFO!F34+COUNTRY_INFO!G34,COUNTRY_INFO!$M34), 0)) -> 689704 | J34: 689704 | K34: 0 | L34: 1931171.2 | M34: 0 | N34: 1931171.2 | O34: 0 | P34: 1931171.2 | Q34: 3863
A35: =IF(INTRO!$E$39="Non-endemic"," ",IF(COUNTRY_INFO!A35=0," ",COUNTRY_INFO!A35)) -> MALAWI | B35: =IF(INTRO!$E$39="Non-endemic"," ",IF(COUNTRY_INFO!B35=0," ",COUNTRY_INFO!B35)) -> South | C35: =IF(INTRO!$E$39="Non-endemic"," ",IF(COUNTRY_INFO!C35=0," ",COUNTRY_INFO!C35)) -> Zomba | D35: =IF(INTRO!$E$39="Non-endemic",0,IF(INTRO!$E$39="Endemic but PC is not required",IF(COUNTRY_INFO!$H35=1,COUNTRY_INFO!F35+COUNTRY_INFO!G35,0),IF(COUNTRY_INFO!$H35=1,COUNTRY_INFO!F35+COUNTRY_INFO!G35,IF(COUNTRY_INFO!$I35=1,IF(COUNTRY_INFO!M35>=(COUNTRY_INFO!F35+COUNTRY_INFO!G35),COUNTRY_INFO!F35+COUNTRY_INFO!G35,COUNTRY_INFO!$M35),0)))) -> 63391 | E35: =IF(AND(INTRO!$E$39="Non-endemic",INTRO!$E$37="Non-endemic"),"Not required",IF(INTRO!$E$39="Non-endemic","Treat with DEC",COUNTRY_INFO!P35)) -> 0 | F35: =IF(INTRO!$E$39<>"Non-endemic",COUNTRY_INFO!Q35,"Not required") -> 1 | G35: =IF(COUNTRY_INFO!H35=1, IF($E35=1,$D35, 0),0) -> 0 | H35: =IF(INTRO!$E$39<>"Endemic",0, IF(AND(COUNTRY_INFO!$I35=1,$F35<>0),IF(COUNTRY_INFO!M35>=(COUNTRY_INFO!F35+COUNTRY_INFO!G35),COUNTRY_INFO!F35+COUNTRY_INFO!G35,COUNTRY_INFO!$M35), 0)) -> 63391 | J35: 63391 | K35: 0 | L35: 177494.8 | M35: 0 | N35: 177494.8 | O35: 0 | P35: 177494.8 | Q35: 355
A36: =IF(INTRO!$E$39="Non-endemic"," ",IF(COUNTRY_INFO!A36=0," ",COUNTRY_INFO!A36)) -> MALAWI | B36: =IF(INTRO!$E$39="Non-endemic"," ",IF(COUNTRY_INFO!B36=0," ",COUNTRY_INFO!B36)) -> South | C36: =IF(INTRO!$E$39="Non-endemic"," ",IF(COUNTRY_INFO!C36=0," ",COUNTRY_INFO!C36)) -> Neno | D36: =IF(INTRO!$E$39="Non-endemic",0,IF(INTRO!$E$39="Endemic but PC is not required",IF(COUNTRY_INFO!$H36=1,COUNTRY_INFO!F36+COUNTRY_INFO!G36,0),IF(COUNTRY_INFO!$H36=1,COUNTRY_INFO!F36+COUNTRY_INFO!G36,IF(COUNTRY_INFO!$I36=1,IF(COUNTRY_INFO!M36>=(COUNTRY_INFO!F36+COUNTRY_INFO!G36),COUNTRY_INFO!F36+COUNTRY_INFO!G36,COUNTRY_INFO!$M36),0)))) -> 132205 | E36: =IF(AND(INTRO!$E$39="Non-endemic",INTRO!$E$37="Non-endemic"),"Not required",IF(INTRO!$E$39="Non-endemic","Treat with DEC",COUNTRY_INFO!P36)) -> 0 | F36: =IF(INTRO!$E$39<>"Non-endemic",COUNTRY_INFO!Q36,"Not required") -> 1 | G36: =IF(COUNTRY_INFO!H36=1, IF($E36=1,$D36, 0),0) -> 0 | H36: =IF(INTRO!$E$39<>"Endemic",0, IF(AND(COUNTRY_INFO!$I36=1,$F36<>0),IF(COUNTRY_INFO!M36>=(COUNTRY_INFO!F36+COUNTRY_INFO!G36),COUNTRY_INFO!F36+COUNTRY_INFO!G36,COUNTRY_INFO!$M36), 0)) -> 132205 | J36: 132205 | K36: 0 | L36: 370174 | M36: 0 | N36: 370174 | O36: 0 | P36: 370174 | Q36: 741
A37: =IF(INTRO!$E$39="Non-endemic"," ",IF(COUNTRY_INFO!A37=0," ",COUNTRY_INFO!A37)) -> MALAWI | B37: =IF(INTRO!$E$39="Non-endemic"," ",IF(COUNTRY_INFO!B37=0," ",COUNTRY_INFO!B37)) -> South | C37: =IF(INTRO!$E$39="Non-endemic"," ",IF(COUNTRY_INFO!C37=0," ",COUNTRY_INFO!C37)) -> Mwanza | D37: =IF(INTRO!$E$39="Non-endemic",0,IF(INTRO!$E$39="Endemic but PC is not required",IF(COUNTRY_INFO!$H37=1,COUNTRY_INFO!F37+COUNTRY_INFO!G37,0),IF(COUNTRY_INFO!$H37=1,COUNTRY_INFO!F37+COUNTRY_INFO!G37,IF(COUNTRY_INFO!$I37=1,IF(COUNTRY_INFO!M37>=(COUNTRY_INFO!F37+COUNTRY_INFO!G37),COUNTRY_INFO!F37+COUNTRY_INFO!G37,COUNTRY_INFO!$M37),0)))) -> 125185 | E37: =IF(AND(INTRO!$E$39="Non-endemic",INTRO!$E$37="Non-endemic"),"Not required",IF(INTRO!$E$39="Non-endemic","Treat with DEC",COUNTRY_INFO!P37)) -> 0 | F37: =IF(INTRO!$E$39<>"Non-endemic",COUNTRY_INFO!Q37,"Not required") -> 1 | G37: =IF(COUNTRY_INFO!H37=1, IF($E37=1,$D37, 0),0) -> 0 | H37: =IF(INTRO!$E$39<>"Endemic",0, IF(AND(COUNTRY_INFO!$I37=1,$F37<>0),IF(COUNTRY_INFO!M37>=(COUNTRY_INFO!F37+COUNTRY_INFO!G37),COUNTRY_INFO!F37+COUNTRY_INFO!G37,COUNTRY_INFO!$M37), 0)) -> 125185 | J37: 125185 | K37: 0 | L37: 350518 | M37: 0 | N37: 350518 | O37: 0 | P37: 350518 | Q37: 702

Sheet IVM+ (hidden)
A1: Ivermectin (IVM) for IDA therapy
A2: Administrative structure, eligible population by age group, treatment plan and information about tablets
A4: TOTAL | E4: =SUM(E$9:E$1000) -> 0 | F4: =SUM(F$9:F$1000) -> 0 | G4: =SUM(G$9:G$1000) -> 0 | H4: =SUM(H$9:H$1000) -> 0 | I4: =SUM(I$9:I$1000) -> 0
A6: Country administrative structure | D6: Treatment plan | E6: Population targeted for treatment with IVM (IDA therapy) | F6: Ivermectin (IVM)
A7: Country | B7: Province/State | C7: District | D7: LF | F7: Total required | G7: Remaining in stock | H7: Tablets to be procured | I7: Bottles (3mg) 500 tablets
A9: =IF(AND(INTRO!$E$37="Endemic",INTRO!$E$39="Non-endemic"),IF(COUNTRY_INFO!A9=0," ",COUNTRY_INFO!A9)," ") ->  | B9: =IF(AND(INTRO!$E$37="Endemic",INTRO!$E$39="Non-endemic"),IF(COUNTRY_INFO!B9=0," ",COUNTRY_INFO!B9)," ") ->  | C9: =IF(AND(INTRO!$E$37="Endemic",INTRO!$E$39="Non-endemic"),IF(COUNTRY_INFO!C9=0," ",COUNTRY_INFO!C9)," ") ->  | D9: =IF(COUNTRY_INFO!T9<>"",COUNTRY_INFO!P9,0) -> 0 | E9: =IF(AND(COUNTRY_INFO!T9<>"",COUNTRY_INFO!$H9=1),COUNTRY_INFO!F9+COUNTRY_INFO!G9,0) -> 0 | F9: =E9*2.8 -> 0 | H9: =IF($F9>$G9,$F9-$G9,0) -> 0 | I9: =ROUNDUP($F9/500,0) -> 0
A10: =IF(AND(INTRO!$E$37="Endemic",INTRO!$E$39="Non-endemic"),IF(COUNTRY_INFO!A10=0," ",COUNTRY_INFO!A10)," ") ->  | B10: =IF(AND(INTRO!$E$37="Endemic",INTRO!$E$39="Non-endemic"),IF(COUNTRY_INFO!B10=0," ",COUNTRY_INFO!B10)," ") ->  | C10: =IF(AND(INTRO!$E$37="Endemic",INTRO!$E$39="Non-endemic"),IF(COUNTRY_INFO!C10=0," ",COUNTRY_INFO!C10)," ") ->  | D10: =IF(COUNTRY_INFO!T10<>"",COUNTRY_INFO!P10,0) -> 0 | E10: =IF(AND(COUNTRY_INFO!T10<>"",COUNTRY_INFO!$H10=1),COUNTRY_INFO!F10+COUNTRY_INFO!G10,0) -> 0 | F10: =E10*2.8 -> 0 | H10: 0 | I10: 0
A11: =IF(AND(INTRO!$E$37="Endemic",INTRO!$E$39="Non-endemic"),IF(COUNTRY_INFO!A11=0," ",COUNTRY_INFO!A11)," ") ->  | B11: =IF(AND(INTRO!$E$37="Endemic",INTRO!$E$39="Non-endemic"),IF(COUNTRY_INFO!B11=0," ",COUNTRY_INFO!B11)," ") ->  | C11: =IF(AND(INTRO!$E$37="Endemic",INTRO!$E$39="Non-endemic"),IF(COUNTRY_INFO!C11=0," ",COUNTRY_INFO!C11)," ") ->  | D11: =IF(COUNTRY_INFO!T11<>"",COUNTRY_INFO!P11,0) -> 0 | E11: =IF(AND(COUNTRY_INFO!T11<>"",COUNTRY_INFO!$H11=1),COUNTRY_INFO!F11+COUNTRY_INFO!G11,0) -> 0 | F11: 0 | H11: 0 | I11: 0
A12: =IF(AND(INTRO!$E$37="Endemic",INTRO!$E$39="Non-endemic"),IF(COUNTRY_INFO!A12=0," ",COUNTRY_INFO!A12)," ") ->  | B12: =IF(AND(INTRO!$E$37="Endemic",INTRO!$E$39="Non-endemic"),IF(COUNTRY_INFO!B12=0," ",COUNTRY_INFO!B12)," ") ->  | C12: =IF(AND(INTRO!$E$37="Endemic",INTRO!$E$39="Non-endemic"),IF(COUNTRY_INFO!C12=0," ",COUNTRY_INFO!C12)," ") ->  | D12: =IF(COUNTRY_INFO!T12<>"",COUNTRY_INFO!P12,0) -> 0 | E12: =IF(AND(COUNTRY_INFO!T12<>"",COUNTRY_INFO!$H12=1),COUNTRY_INFO!F12+COUNTRY_INFO!G12,0) -> 0 | F12: 0 | H12: 0 | I12: 0
A13: =IF(AND(INTRO!$E$37="Endemic",INTRO!$E$39="Non-endemic"),IF(COUNTRY_INFO!A13=0," ",COUNTRY_INFO!A13)," ") ->  | B13: =IF(AND(INTRO!$E$37="Endemic",INTRO!$E$39="Non-endemic"),IF(COUNTRY_INFO!B13=0," ",COUNTRY_INFO!B13)," ") ->  | C13: =IF(AND(INTRO!$E$37="Endemic",INTRO!$E$39="Non-endemic"),IF(COUNTRY_INFO!C13=0," ",COUNTRY_INFO!C13)," ") ->  | D13: =IF(COUNTRY_INFO!T13<>"",COUNTRY_INFO!P13,0) -> 0 | E13: =IF(AND(COUNTRY_INFO!T13<>"",COUNTRY_INFO!$H13=1),COUNTRY_INFO!F13+COUNTRY_INFO!G13,0) -> 0 | F13: 0 | H13: 0 | I13: 0
A14: =IF(AND(INTRO!$E$37="Endemic",INTRO!$E$39="Non-endemic"),IF(COUNTRY_INFO!A14=0," ",COUNTRY_INFO!A14)," ") ->  | B14: =IF(AND(INTRO!$E$37="Endemic",INTRO!$E$39="Non-endemic"),IF(COUNTRY_INFO!B14=0," ",COUNTRY_INFO!B14)," ") ->  | C14: =IF(AND(INTRO!$E$37="Endemic",INTRO!$E$39="Non-endemic"),IF(COUNTRY_INFO!C14=0," ",COUNTRY_INFO!C14)," ") ->  | D14: =IF(COUNTRY_INFO!T14<>"",COUNTRY_INFO!P14,0) -> 0 | E14: =IF(AND(COUNTRY_INFO!T14<>"",COUNTRY_INFO!$H14=1),COUNTRY_INFO!F14+COUNTRY_INFO!G14,0) -> 0 | F14: 0 | H14: 0 | I14: 0
A15: =IF(AND(INTRO!$E$37="Endemic",INTRO!$E$39="Non-endemic"),IF(COUNTRY_INFO!A15=0," ",COUNTRY_INFO!A15)," ") ->  | B15: =IF(AND(INTRO!$E$37="Endemic",INTRO!$E$39="Non-endemic"),IF(COUNTRY_INFO!B15=0," ",COUNTRY_INFO!B15)," ") ->  | C15: =IF(AND(INTRO!$E$37="Endemic",INTRO!$E$39="Non-endemic"),IF(COUNTRY_INFO!C15=0," ",COUNTRY_INFO!C15)," ") ->  | D15: =IF(COUNTRY_INFO!T15<>"",COUNTRY_INFO!P15,0) -> 0 | E15: =IF(AND(COUNTRY_INFO!T15<>"",COUNTRY_INFO!$H15=1),COUNTRY_INFO!F15+COUNTRY_INFO!G15,0) -> 0 | F15: 0 | H15: 0 | I15: 0
A16: =IF(AND(INTRO!$E$37="Endemic",INTRO!$E$39="Non-endemic"),IF(COUNTRY_INFO!A16=0," ",COUNTRY_INFO!A16)," ") ->  | B16: =IF(AND(INTRO!$E$37="Endemic",INTRO!$E$39="Non-endemic"),IF(COUNTRY_INFO!B16=0," ",COUNTRY_INFO!B16)," ") ->  | C16: =IF(AND(INTRO!$E$37="Endemic",INTRO!$E$39="Non-endemic"),IF(COUNTRY_INFO!C16=0," ",COUNTRY_INFO!C16)," ") ->  | D16: =IF(COUNTRY_INFO!T16<>"",COUNTRY_INFO!P16,0) -> 0 | E16: =IF(AND(COUNTRY_INFO!T16<>"",COUNTRY_INFO!$H16=1),COUNTRY_INFO!F16+COUNTRY_INFO!G16,0) -> 0 | F16: 0 | H16: 0 | I16: 0
A17: =IF(AND(INTRO!$E$37="Endemic",INTRO!$E$39="Non-endemic"),IF(COUNTRY_INFO!A17=0," ",COUNTRY_INFO!A17)," ") ->  | B17: =IF(AND(INTRO!$E$37="Endemic",INTRO!$E$39="Non-endemic"),IF(COUNTRY_INFO!B17=0," ",COUNTRY_INFO!B17)," ") ->  | C17: =IF(AND(INTRO!$E$37="Endemic",INTRO!$E$39="Non-endemic"),IF(COUNTRY_INFO!C17=0," ",COUNTRY_INFO!C17)," ") ->  | D17: =IF(COUNTRY_INFO!T17<>"",COUNTRY_INFO!P17,0) -> 0 | E17: =IF(AND(COUNTRY_INFO!T17<>"",COUNTRY_INFO!$H17=1),COUNTRY_INFO!F17+COUNTRY_INFO!G17,0) -> 0 | F17: 0 | H17: 0 | I17: 0
A18: =IF(AND(INTRO!$E$37="Endemic",INTRO!$E$39="Non-endemic"),IF(COUNTRY_INFO!A18=0," ",COUNTRY_INFO!A18)," ") ->  | B18: =IF(AND(INTRO!$E$37="Endemic",INTRO!$E$39="Non-endemic"),IF(COUNTRY_INFO!B18=0," ",COUNTRY_INFO!B18)," ") ->  | C18: =IF(AND(INTRO!$E$37="Endemic",INTRO!$E$39="Non-endemic"),IF(COUNTRY_INFO!C18=0," ",COUNTRY_INFO!C18)," ") ->  | D18: =IF(COUNTRY_INFO!T18<>"",COUNTRY_INFO!P18,0) -> 0 | E18: =IF(AND(COUNTRY_INFO!T18<>"",COUNTRY_INFO!$H18=1),COUNTRY_INFO!F18+COUNTRY_INFO!G18,0) -> 0 | F18: 0 | H18: 0 | I18: 0
A19: =IF(AND(INTRO!$E$37="Endemic",INTRO!$E$39="Non-endemic"),IF(COUNTRY_INFO!A19=0," ",COUNTRY_INFO!A19)," ") ->  | B19: =IF(AND(INTRO!$E$37="Endemic",INTRO!$E$39="Non-endemic"),IF(COUNTRY_INFO!B19=0," ",COUNTRY_INFO!B19)," ") ->  | C19: =IF(AND(INTRO!$E$37="Endemic",INTRO!$E$39="Non-endemic"),IF(COUNTRY_INFO!C19=0," ",COUNTRY_INFO!C19)," ") ->  | D19: =IF(COUNTRY_INFO!T19<>"",COUNTRY_INFO!P19,0) -> 0 | E19: =IF(AND(COUNTRY_INFO!T19<>"",COUNTRY_INFO!$H19=1),COUNTRY_INFO!F19+COUNTRY_INFO!G19,0) -> 0 | F19: 0 | H19: 0 | I19: 0
A20: =IF(AND(INTRO!$E$37="Endemic",INTRO!$E$39="Non-endemic"),IF(COUNTRY_INFO!A20=0," ",COUNTRY_INFO!A20)," ") ->  | B20: =IF(AND(INTRO!$E$37="Endemic",INTRO!$E$39="Non-endemic"),IF(COUNTRY_INFO!B20=0," ",COUNTRY_INFO!B20)," ") ->  | C20: =IF(AND(INTRO!$E$37="Endemic",INTRO!$E$39="Non-endemic"),IF(COUNTRY_INFO!C20=0," ",COUNTRY_INFO!C20)," ") ->  | D20: =IF(COUNTRY_INFO!T20<>"",COUNTRY_INFO!P20,0) -> 0 | E20: =IF(AND(COUNTRY_INFO!T20<>"",COUNTRY_INFO!$H20=1),COUNTRY_INFO!F20+COUNTRY_INFO!G20,0) -> 0 | F20: 0 | H20: 0 | I20: 0
A21: =IF(AND(INTRO!$E$37="Endemic",INTRO!$E$39="Non-endemic"),IF(COUNTRY_INFO!A21=0," ",COUNTRY_INFO!A21)," ") ->  | B21: =IF(AND(INTRO!$E$37="Endemic",INTRO!$E$39="Non-endemic"),IF(COUNTRY_INFO!B21=0," ",COUNTRY_INFO!B21)," ") ->  | C21: =IF(AND(INTRO!$E$37="Endemic",INTRO!$E$39="Non-endemic"),IF(COUNTRY_INFO!C21=0," ",COUNTRY_INFO!C21)," ") ->  | D21: =IF(COUNTRY_INFO!T21<>"",COUNTRY_INFO!P21,0) -> 0 | E21: =IF(AND(COUNTRY_INFO!T21<>"",COUNTRY_INFO!$H21=1),COUNTRY_INFO!F21+COUNTRY_INFO!G21,0) -> 0 | F21: 0 | H21: 0 | I21: 0
A22: =IF(AND(INTRO!$E$37="Endemic",INTRO!$E$39="Non-endemic"),IF(COUNTRY_INFO!A22=0," ",COUNTRY_INFO!A22)," ") ->  | B22: =IF(AND(INTRO!$E$37="Endemic",INTRO!$E$39="Non-endemic"),IF(COUNTRY_INFO!B22=0," ",COUNTRY_INFO!B22)," ") ->  | C22: =IF(AND(INTRO!$E$37="Endemic",INTRO!$E$39="Non-endemic"),IF(COUNTRY_INFO!C22=0," ",COUNTRY_INFO!C22)," ") ->  | D22: =IF(COUNTRY_INFO!T22<>"",COUNTRY_INFO!P22,0) -> 0 | E22: =IF(AND(COUNTRY_INFO!T22<>"",COUNTRY_INFO!$H22=1),COUNTRY_INFO!F22+COUNTRY_INFO!G22,0) -> 0 | F22: 0 | H22: 0 | I22: 0
A23: =IF(AND(INTRO!$E$37="Endemic",INTRO!$E$39="Non-endemic"),IF(COUNTRY_INFO!A23=0," ",COUNTRY_INFO!A23)," ") ->  | B23: =IF(AND(INTRO!$E$37="Endemic",INTRO!$E$39="Non-endemic"),IF(COUNTRY_INFO!B23=0," ",COUNTRY_INFO!B23)," ") ->  | C23: =IF(AND(INTRO!$E$37="Endemic",INTRO!$E$39="Non-endemic"),IF(COUNTRY_INFO!C23=0," ",COUNTRY_INFO!C23)," ") ->  | D23: =IF(COUNTRY_INFO!T23<>"",COUNTRY_INFO!P23,0) -> 0 | E23: =IF(AND(COUNTRY_INFO!T23<>"",COUNTRY_INFO!$H23=1),COUNTRY_INFO!F23+COUNTRY_INFO!G23,0) -> 0 | F23: 0 | H23: 0 | I23: 0
A24: =IF(AND(INTRO!$E$37="Endemic",INTRO!$E$39="Non-endemic"),IF(COUNTRY_INFO!A24=0," ",COUNTRY_INFO!A24)," ") ->  | B24: =IF(AND(INTRO!$E$37="Endemic",INTRO!$E$39="Non-endemic"),IF(COUNTRY_INFO!B24=0," ",COUNTRY_INFO!B24)," ") ->  | C24: =IF(AND(INTRO!$E$37="Endemic",INTRO!$E$39="Non-endemic"),IF(COUNTRY_INFO!C24=0," ",COUNTRY_INFO!C24)," ") ->  | D24: =IF(COUNTRY_INFO!T24<>"",COUNTRY_INFO!P24,0) -> 0 | E24: =IF(AND(COUNTRY_INFO!T24<>"",COUNTRY_INFO!$H24=1),COUNTRY_INFO!F24+COUNTRY_INFO!G24,0) -> 0 | F24: 0 | H24: 0 | I24: 0
A25: =IF(AND(INTRO!$E$37="Endemic",INTRO!$E$39="Non-endemic"),IF(COUNTRY_INFO!A25=0," ",COUNTRY_INFO!A25)," ") ->  | B25: =IF(AND(INTRO!$E$37="Endemic",INTRO!$E$39="Non-endemic"),IF(COUNTRY_INFO!B25=0," ",COUNTRY_INFO!B25)," ") ->  | C25: =IF(AND(INTRO!$E$37="Endemic",INTRO!$E$39="Non-endemic"),IF(COUNTRY_INFO!C25=0," ",COUNTRY_INFO!C25)," ") ->  | D25: =IF(COUNTRY_INFO!T25<>"",COUNTRY_INFO!P25,0) -> 0 | E25: =IF(AND(COUNTRY_INFO!T25<>"",COUNTRY_INFO!$H25=1),COUNTRY_INFO!F25+COUNTRY_INFO!G25,0) -> 0 | F25: 0 | H25: 0 | I25: 0
A26: =IF(AND(INTRO!$E$37="Endemic",INTRO!$E$39="Non-endemic"),IF(COUNTRY_INFO!A26=0," ",COUNTRY_INFO!A26)," ") ->  | B26: =IF(AND(INTRO!$E$37="Endemic",INTRO!$E$39="Non-endemic"),IF(COUNTRY_INFO!B26=0," ",COUNTRY_INFO!B26)," ") ->  | C26: =IF(AND(INTRO!$E$37="Endemic",INTRO!$E$39="Non-endemic"),IF(COUNTRY_INFO!C26=0," ",COUNTRY_INFO!C26)," ") ->  | D26: =IF(COUNTRY_INFO!T26<>"",COUNTRY_INFO!P26,0) -> 0 | E26: =IF(AND(COUNTRY_INFO!T26<>"",COUNTRY_INFO!$H26=1),COUNTRY_INFO!F26+COUNTRY_INFO!G26,0) -> 0 | F26: 0 | H26: 0 | I26: 0
A27: =IF(AND(INTRO!$E$37="Endemic",INTRO!$E$39="Non-endemic"),IF(COUNTRY_INFO!A27=0," ",COUNTRY_INFO!A27)," ") ->  | B27: =IF(AND(INTRO!$E$37="Endemic",INTRO!$E$39="Non-endemic"),IF(COUNTRY_INFO!B27=0," ",COUNTRY_INFO!B27)," ") ->  | C27: =IF(AND(INTRO!$E$37="Endemic",INTRO!$E$39="Non-endemic"),IF(COUNTRY_INFO!C27=0," ",COUNTRY_INFO!C27)," ") ->  | D27: =IF(COUNTRY_INFO!T27<>"",COUNTRY_INFO!P27,0) -> 0 | E27: =IF(AND(COUNTRY_INFO!T27<>"",COUNTRY_INFO!$H27=1),COUNTRY_INFO!F27+COUNTRY_INFO!G27,0) -> 0 | F27: 0 | H27: 0 | I27: 0
A28: =IF(AND(INTRO!$E$37="Endemic",INTRO!$E$39="Non-endemic"),IF(COUNTRY_INFO!A28=0," ",COUNTRY_INFO!A28)," ") ->  | B28: =IF(AND(INTRO!$E$37="Endemic",INTRO!$E$39="Non-endemic"),IF(COUNTRY_INFO!B28=0," ",COUNTRY_INFO!B28)," ") ->  | C28: =IF(AND(INTRO!$E$37="Endemic",INTRO!$E$39="Non-endemic"),IF(COUNTRY_INFO!C28=0," ",COUNTRY_INFO!C28)," ") ->  | D28: =IF(COUNTRY_INFO!T28<>"",COUNTRY_INFO!P28,0) -> 0 | E28: =IF(AND(COUNTRY_INFO!T28<>"",COUNTRY_INFO!$H28=1),COUNTRY_INFO!F28+COUNTRY_INFO!G28,0) -> 0 | F28: 0 | H28: 0 | I28: 0
A29: =IF(AND(INTRO!$E$37="Endemic",INTRO!$E$39="Non-endemic"),IF(COUNTRY_INFO!A29=0," ",COUNTRY_INFO!A29)," ") ->  | B29: =IF(AND(INTRO!$E$37="Endemic",INTRO!$E$39="Non-endemic"),IF(COUNTRY_INFO!B29=0," ",COUNTRY_INFO!B29)," ") ->  | C29: =IF(AND(INTRO!$E$37="Endemic",INTRO!$E$39="Non-endemic"),IF(COUNTRY_INFO!C29=0," ",COUNTRY_INFO!C29)," ") ->  | D29: =IF(COUNTRY_INFO!T29<>"",COUNTRY_INFO!P29,0) -> 0 | E29: =IF(AND(COUNTRY_INFO!T29<>"",COUNTRY_INFO!$H29=1),COUNTRY_INFO!F29+COUNTRY_INFO!G29,0) -> 0 | F29: 0 | H29: 0 | I29: 0
A30: =IF(AND(INTRO!$E$37="Endemic",INTRO!$E$39="Non-endemic"),IF(COUNTRY_INFO!A30=0," ",COUNTRY_INFO!A30)," ") ->  | B30: =IF(AND(INTRO!$E$37="Endemic",INTRO!$E$39="Non-endemic"),IF(COUNTRY_INFO!B30=0," ",COUNTRY_INFO!B30)," ") ->  | C30: =IF(AND(INTRO!$E$37="Endemic",INTRO!$E$39="Non-endemic"),IF(COUNTRY_INFO!C30=0," ",COUNTRY_INFO!C30)," ") ->  | D30: =IF(COUNTRY_INFO!T30<>"",COUNTRY_INFO!P30,0) -> 0 | E30: =IF(AND(COUNTRY_INFO!T30<>"",COUNTRY_INFO!$H30=1),COUNTRY_INFO!F30+COUNTRY_INFO!G30,0) -> 0 | F30: 0 | H30: 0 | I30: 0
A31: =IF(AND(INTRO!$E$37="Endemic",INTRO!$E$39="Non-endemic"),IF(COUNTRY_INFO!A31=0," ",COUNTRY_INFO!A31)," ") ->  | B31: =IF(AND(INTRO!$E$37="Endemic",INTRO!$E$39="Non-endemic"),IF(COUNTRY_INFO!B31=0," ",COUNTRY_INFO!B31)," ") ->  | C31: =IF(AND(INTRO!$E$37="Endemic",INTRO!$E$39="Non-endemic"),IF(COUNTRY_INFO!C31=0," ",COUNTRY_INFO!C31)," ") ->  | D31: =IF(COUNTRY_INFO!T31<>"",COUNTRY_INFO!P31,0) -> 0 | E31: =IF(AND(COUNTRY_INFO!T31<>"",COUNTRY_INFO!$H31=1),COUNTRY_INFO!F31+COUNTRY_INFO!G31,0) -> 0 | F31: 0 | H31: 0 | I31: 0
A32: =IF(AND(INTRO!$E$37="Endemic",INTRO!$E$39="Non-endemic"),IF(COUNTRY_INFO!A32=0," ",COUNTRY_INFO!A32)," ") ->  | B32: =IF(AND(INTRO!$E$37="Endemic",INTRO!$E$39="Non-endemic"),IF(COUNTRY_INFO!B32=0," ",COUNTRY_INFO!B32)," ") ->  | C32: =IF(AND(INTRO!$E$37="Endemic",INTRO!$E$39="Non-endemic"),IF(COUNTRY_INFO!C32=0," ",COUNTRY_INFO!C32)," ") ->  | D32: =IF(COUNTRY_INFO!T32<>"",COUNTRY_INFO!P32,0) -> 0 | E32: =IF(AND(COUNTRY_INFO!T32<>"",COUNTRY_INFO!$H32=1),COUNTRY_INFO!F32+COUNTRY_INFO!G32,0) -> 0 | F32: 0 | H32: 0 | I32: 0
A33: =IF(AND(INTRO!$E$37="Endemic",INTRO!$E$39="Non-endemic"),IF(COUNTRY_INFO!A33=0," ",COUNTRY_INFO!A33)," ") ->  | B33: =IF(AND(INTRO!$E$37="Endemic",INTRO!$E$39="Non-endemic"),IF(COUNTRY_INFO!B33=0," ",COUNTRY_INFO!B33)," ") ->  | C33: =IF(AND(INTRO!$E$37="Endemic",INTRO!$E$39="Non-endemic"),IF(COUNTRY_INFO!C33=0," ",COUNTRY_INFO!C33)," ") ->  | D33: =IF(COUNTRY_INFO!T33<>"",COUNTRY_INFO!P33,0) -> 0 | E33: =IF(AND(COUNTRY_INFO!T33<>"",COUNTRY_INFO!$H33=1),COUNTRY_INFO!F33+COUNTRY_INFO!G33,0) -> 0 | F33: 0 | H33: 0 | I33: 0
A34: =IF(AND(INTRO!$E$37="Endemic",INTRO!$E$39="Non-endemic"),IF(COUNTRY_INFO!A34=0," ",COUNTRY_INFO!A34)," ") ->  | B34: =IF(AND(INTRO!$E$37="Endemic",INTRO!$E$39="Non-endemic"),IF(COUNTRY_INFO!B34=0," ",COUNTRY_INFO!B34)," ") ->  | C34: =IF(AND(INTRO!$E$37="Endemic",INTRO!$E$39="Non-endemic"),IF(COUNTRY_INFO!C34=0," ",COUNTRY_INFO!C34)," ") ->  | D34: =IF(COUNTRY_INFO!T34<>"",COUNTRY_INFO!P34,0) -> 0 | E34: =IF(AND(COUNTRY_INFO!T34<>"",COUNTRY_INFO!$H34=1),COUNTRY_INFO!F34+COUNTRY_INFO!G34,0) -> 0 | F34: 0 | H34: 0 | I34: 0
A35: =IF(AND(INTRO!$E$37="Endemic",INTRO!$E$39="Non-endemic"),IF(COUNTRY_INFO!A35=0," ",COUNTRY_INFO!A35)," ") ->  | B35: =IF(AND(INTRO!$E$37="Endemic",INTRO!$E$39="Non-endemic"),IF(COUNTRY_INFO!B35=0," ",COUNTRY_INFO!B35)," ") ->  | C35: =IF(AND(INTRO!$E$37="Endemic",INTRO!$E$39="Non-endemic"),IF(COUNTRY_INFO!C35=0," ",COUNTRY_INFO!C35)," ") ->  | D35: =IF(COUNTRY_INFO!T35<>"",COUNTRY_INFO!P35,0) -> 0 | E35: =IF(AND(COUNTRY_INFO!T35<>"",COUNTRY_INFO!$H35=1),COUNTRY_INFO!F35+COUNTRY_INFO!G35,0) -> 0 | F35: 0 | H35: 0 | I35: 0
A36: =IF(AND(INTRO!$E$37="Endemic",INTRO!$E$39="Non-endemic"),IF(COUNTRY_INFO!A36=0," ",COUNTRY_INFO!A36)," ") ->  | B36: =IF(AND(INTRO!$E$37="Endemic",INTRO!$E$39="Non-endemic"),IF(COUNTRY_INFO!B36=0," ",COUNTRY_INFO!B36)," ") ->  | C36: =IF(AND(INTRO!$E$37="Endemic",INTRO!$E$39="Non-endemic"),IF(COUNTRY_INFO!C36=0," ",COUNTRY_INFO!C36)," ") ->  | D36: =IF(COUNTRY_INFO!T36<>"",COUNTRY_INFO!P36,0) -> 0 | E36: =IF(AND(COUNTRY_INFO!T36<>"",COUNTRY_INFO!$H36=1),COUNTRY_INFO!F36+COUNTRY_INFO!G36,0) -> 0 | F36: 0 | H36: 0 | I36: 0
A37: =IF(AND(INTRO!$E$37="Endemic",INTRO!$E$39="Non-endemic"),IF(COUNTRY_INFO!A37=0," ",COUNTRY_INFO!A37)," ") ->  | B37: =IF(AND(INTRO!$E$37="Endemic",INTRO!$E$39="Non-endemic"),IF(COUNTRY_INFO!B37=0," ",COUNTRY_INFO!B37)," ") ->  | C37: =IF(AND(INTRO!$E$37="Endemic",INTRO!$E$39="Non-endemic"),IF(COUNTRY_INFO!C37=0," ",COUNTRY_INFO!C37)," ") ->  | D37: =IF(COUNTRY_INFO!T37<>"",COUNTRY_INFO!P37,0) -> 0 | E37: =IF(AND(COUNTRY_INFO!T37<>"",COUNTRY_INFO!$H37=1),COUNTRY_INFO!F37+COUNTRY_INFO!G37,0) -> 0 | F37: 0 | H37: 0 | I37: 0

Sheet SUMMARY
B2: Joint request for selected PC medicines v.3.1
B4: This form constitutes an official government request to WHO for the supply of the PC medicines. It can be submitted any time before 15 August of the current year for distribution of medicines during the following year, but at least 6-8 months before the planned PC intervention(s) to allow time for reviewing and approval of the request, placing order, manufacturing PC medicines and shipment to the country.
B6: Country | C6: =IF(INTRO!$E$33<>0,INTRO!$E$33," ") -> MALAWI | G6: Year | H6: =IF(INTRO!$E$35<>0,INTRO!$E$35," ") -> 2023
B8: Information on PC medicines requested to WHO
B10: PC medicine | C10: Number of tablets | G10: Total number of bottles
C11: Required | D11: In stock | E11: In pipeline | F11: Requested | G11: Required | H11: Requested
B12: Albendazole for STH (SAC) | C12: 5778325 | D12: 0 | F12: =IF(C12>(D12+E12),C12-D12-E12, 0) -> 5778325 | G12: =IF($C12=0,0, IF($B12="Albendazole for LF", IF($C12=ALB_MBD!$I$4,ALB_MBD!$U$4,ROUNDUP($C12/200,0)), IF($B12="Albendazole for STH (SAC)", IF($C12=ALB_MBD!$L$4,ALB_MBD!$X$4,ROUNDUP($C12/200,0)), IF($B12="Mebendazole (SAC)", IF($C12=ALB_MBD!$P$4,ALB_MBD!$AA$4,ROUNDUP($C12/150,0)), IF($B12="Diethylcarbamazine citrate", IF($C12=DEC!$J$4,DEC!$M$4,ROUNDUP($C12/1000,0)), IF($B12="Praziquantel (SAC)", IF($C12=PZQ!$O$4,PZQ!$R$4,ROUNDUP($C12/1000,0)), IF($B12="Ivermectin", IF($C12=IVM!$N$4,IVM!$Q$4,$C12/500+0.49),0))))))) -> 28906 | H12: =IF($F12=0,0,IF(OR($B12="Albendazole for LF",$B12="Albendazole for STH (SAC)"),$G12-ROUNDUP(($E12+$D12)/200,0),IF($B12="Ivermectin",$G12-ROUNDUP(($E12+$D12)/500,0),IF($B12="Mebendazole (SAC)",$G12-ROUNDUP(($E12+$D12)/150,0),$G12-ROUNDUP(($E12+$D12)/1000,0))))) -> 28906
B13: Praziquantel (SAC) | C13: 7339545 | D13: 0 | F13: 7339545 | G13: =IF($C13=0,0, IF($B13="Albendazole for LF", IF($C13=ALB_MBD!$I$4,ALB_MBD!$U$4,ROUNDUP($C13/200,0)), IF($B13="Albendazole for STH (SAC)", IF($C13=ALB_MBD!$L$4,ALB_MBD!$X$4,ROUNDUP($C13/200,0)), IF($B13="Mebendazole (SAC)", IF($C13=ALB_MBD!$P$4,ALB_MBD!$AA$4,ROUNDUP($C13/150,0)), IF($B13="Diethylcarbamazine citrate", IF($C13=DEC!$J$4,DEC!$M$4,ROUNDUP($C13/1000,0)), IF($B13="Praziquantel (SAC)", IF($C13=PZQ!$O$4,PZQ!$R$4,ROUNDUP($C13/1000,0)), IF($B13="Ivermectin", IF($C13=IVM!$N$4,IVM!$Q$4,$C13/500+0.49),0))))))) -> 7353 | H13: 7353
B14: Ivermectin | C14: 7502510.4 | D14: 0 | E14: 0 | F14: 7502510.4 | G14: =IF($C14=0,0, IF($B14="Albendazole for LF", IF($C14=ALB_MBD!$I$4,ALB_MBD!$U$4,ROUNDUP($C14/200,0)), IF($B14="Albendazole for STH (SAC)", IF($C14=ALB_MBD!$L$4,ALB_MBD!$X$4,ROUNDUP($C14/200,0)), IF($B14="Mebendazole (SAC)", IF($C14=ALB_MBD!$P$4,ALB_MBD!$AA$4,ROUNDUP($C14/150,0)), IF($B14="Diethylcarbamazine citrate", IF($C14=DEC!$J$4,DEC!$M$4,ROUNDUP($C14/1000,0)), IF($B14="Praziquantel (SAC)", IF($C14=PZQ!$O$4,PZQ!$R$4,ROUNDUP($C14/1000,0)), IF($B14="Ivermectin", IF($C14=IVM!$N$4,IVM!$Q$4,$C14/500+0.49),0))))))) -> 15010 | H14: 15010
C15: 0 | D15: 0 | F15: 0 | G15: =IF($C15=0,0, IF($B15="Albendazole for LF", IF($C15=ALB_MBD!$I$4,ALB_MBD!$U$4,ROUNDUP($C15/200,0)), IF($B15="Albendazole for STH (SAC)", IF($C15=ALB_MBD!$L$4,ALB_MBD!$X$4,ROUNDUP($C15/200,0)), IF($B15="Mebendazole (SAC)", IF($C15=ALB_MBD!$P$4,ALB_MBD!$AA$4,ROUNDUP($C15/150,0)), IF($B15="Diethylcarbamazine citrate", IF($C15=DEC!$J$4,DEC!$M$4,ROUNDUP($C15/1000,0)), IF($B15="Praziquantel (SAC)", IF($C15=PZQ!$O$4,PZQ!$R$4,ROUNDUP($C15/1000,0)), IF($B15="Ivermectin", IF($C15=IVM!$N$4,IVM!$Q$4,$C15/500+0.49),0))))))) -> 0 | H15: 0
C16: 0 | D16: 0 | F16: 0 | G16: =IF($C16=0,0, IF($B16="Albendazole for LF", IF($C16=ALB_MBD!$I$4,ALB_MBD!$U$4,ROUNDUP($C16/200,0)), IF($B16="Albendazole for STH (SAC)", IF($C16=ALB_MBD!$L$4,ALB_MBD!$X$4,ROUNDUP($C16/200,0)), IF($B16="Mebendazole (SAC)", IF($C16=ALB_MBD!$P$4,ALB_MBD!$AA$4,ROUNDUP($C16/150,0)), IF($B16="Diethylcarbamazine citrate", IF($C16=DEC!$J$4,DEC!$M$4,ROUNDUP($C16/1000,0)), IF($B16="Praziquantel (SAC)", IF($C16=PZQ!$O$4,PZQ!$R$4,ROUNDUP($C16/1000,0)), IF($B16="Ivermectin", IF($C16=IVM!$N$4,IVM!$Q$4,$C16/500+0.49),0))))))) -> 0 | H16: 0
C17: 0 | D17: 0 | F17: 0 | G17: =IF($C17=0,0, IF($B17="Albendazole for LF", IF($C17=ALB_MBD!$I$4,ALB_MBD!$U$4,ROUNDUP($C17/200,0)), IF($B17="Albendazole for STH (SAC)", IF($C17=ALB_MBD!$L$4,ALB_MBD!$X$4,ROUNDUP($C17/200,0)), IF($B17="Mebendazole (SAC)", IF($C17=ALB_MBD!$P$4,ALB_MBD!$AA$4,ROUNDUP($C17/150,0)), IF($B17="Diethylcarbamazine citrate", IF($C17=DEC!$J$4,DEC!$M$4,ROUNDUP($C17/1000,0)), IF($B17="Praziquantel (SAC)", IF($C17=PZQ!$O$4,PZQ!$R$4,ROUNDUP($C17/1000,0)), IF($B17="Ivermectin", IF($C17=IVM!$N$4,IVM!$Q$4,$C17/500+0.49),0))))))) -> 0 | H17: 0
B19: Number of people to be treated with donated medicine ( see User Guide for details )
B21: Disease | G21: Round 1 | H21: Round 2
B22: Onchocerciasis | C22: These figures are estimated only for targeted age groups to be treated with donated medicines in areas where treatment for specific disease is required | G22: 2679468 | H22: 0
B23: Soil-transmitted helminthiases | G23: 5778325 | H23: 0
B24: Schistosomiasis | G24: 2935818
B29: Information on planned PC interventions
B31: PC medicine | C31: Planned date of the 1st round of PC | E31: Planned date of the 2nd round of PC | G31: Date by which the medicine should arrive to the national warehouse
B32: Albendazole for STH | C32: September | D32: 2023 | G32: May | H32: 2023
B33: Praziquantel | C33: September | D33: 2023 | G33: May | H33: 2023
B34: Ivermectin | C34: July | D34: 2023 | G34: May | H34: 2023
B39: Information on PC medicines for treatment of population not targeted with current donation through WHO
B41: PC medicine | C41: Age group | D41: # of people | E41: # of tablets | F41: Specify source | H41: Status
B42: Praziquantel | C42: Adults | D42: 266650 | E42: 799950 | F42: Request through donation program | H42: Required
B53: Checklist
B54: Submission
B55: What should be submitted?
B56: The supply of the requested medicines should be based on up-to-date epidemiological data, specific usage plans, and capacity for implementation. The following checklist ensures that all necessary forms and information are provided to WHO (in electronic format).
B57: Joint request for selected PC medicines
B58: Joint reporting form
B59: PC epidemiological data reporting form
B61: Availability of funding for implementation in the year for which the medicines are requested
B63: Diseases targeted for implementation | C63: Total treatments | D63: Funding secured for | E63: Source | H63: Amount
B64: =B22 -> Onchocerciasis | C64: =SUM(G22:H22) -> 2679468
B65: =B23 -> Soil-transmitted helminthiases | C65: =SUM(G23:H23) -> 5778325
B66: =B24 -> Schistosomiasis | C66: =SUM(G24:H24) -> 2935818
B67: =B25 -> 0 | C67: =SUM(G25:H25) -> 0
B69: Who should fill in the form?
B70: National NTD coordinator should compile all required information needed to complete the request form. In the absence of such a coordinator, specific programme managers should coordinate their respective part. The final single request must be approved by the Ministry of Health.
B72: Information on person(s) who has filled in the form
B74: Title | C74: Name | E74: Phone | G74: Email | H74: Date
B75: Data Manager | C75: Andrew Nguluwe | E75: 265999757991 | G75: andynguluwe@gmail.com | H75: 2022-08-04
B80: The WHO recommends that all serious adverse events suspected to be associated with use of PC medicines should be reported in accordance with national Pharmacovigilance guidelines. In the absence of a national Pharmacovigilance system, contact the WHO Neglected Tropical Disease department for guidance.
B81: The WHO is committed to facilitate PC medicines donation with a free-of-charge supply of a) albendazole, mebendazole and praziquantel to the MoH’s national warehouse; and b) diethylcarbamazine citrate to the entry port/airport of recipient countries.
B82: The institution submitting the present request is responsible for a) arranging the offloading of the medicines from the truck and storing it in the national warehouse and subsequent shipment to the final distribution centres; b) for registering the donated medicine, if required, by the relevant national regulatory authorities; and c) for informing about any changes of their PC campaigns (e.g. postpone of the planned MDA date, replacement of NTD coordinator, etc.).
C83: I have read and accept WHO Data Sharing Policy
B84: Name and signature of NTD coordinator or Ministry of Health representative
B85: Date:
B87: Please complete information on shipment and consignee in the worksheet SHIPMENT. Any additional details related to this Request should be provided in the "Additional information" box in the worksheet SHIPMENT.
B88: Please send the national request (signed and in electronic format) to the concerned WR with copy to:
B89: WHO headquarters | C89: PC_JointForms@who.int
B90: WHO Regional Office | C90: Regional Advisor for NTD
B91: Mectizan donation program | C91: Dr Yao Sodahlon, email: ysodahlon@taskforce.org
B93: Please note that your request will be reviewed by an independent panel before approval. The information in this form, joint reporting form and PC epidemiological data reporting form are essential for WHO to ensure efficient usage of medicines. As part of its ongoing monitoring and evaluation activities, and to meet its contractual obligations to donors and other partners, WHO and its appointed agents reserve the right to periodically inspect stocks of the medicines at country level.

Sheet SHIPMENT
B2: Joint request for selected PC medicines v.3.1
B4: Country | C4: =IF(INTRO!$E$33<>0,INTRO!$E$33," ") -> MALAWI | G4: Year | H4: =IF(INTRO!$E$35<>0,INTRO!$E$35," ") -> 2023
B6: Information on shipment and consignee
B8: Ivermectin | C8: Consignee | F8: Delivery point / Final recipient if different from the consignee
B9: Name | C9: Dlamini, Dr Nonhlanhla | F9: Mr Laston Sitima
B10: Department/Unit | C10: The WHO Representative | F10: Preventive Health Services
B11: Organization | F11: Ministry of Health
B12: Phone | C12: +265 1 772450 | F12: 265 888 303 446
B13: Fax | C13: +265 1 772350 | F13: NA
B14: E-mail | C14: afwcomw@who.int | F14: lastonsitima64@gmail.com
B15: Mailing address | F15: P.O. Box 30377, Lilongwe3, MALAWI
B17: Albendazole for LF | C17: Consignee | F17: Delivery point / Final recipient if different from the consignee
B18: Name | C18: Dlamini, Dr Nonhlanhla | F18: Mr Laston Sitima
B19: Department/Unit | C19: The WHO Representative | F19: Preventive Health Services
B20: Organization | F20: Ministry of Health
B21: Phone | C21: +265 1 772450 | F21: 265 888 303 446
B22: Fax | C22: +265 1 772350 | F22: NA
B23: E-mail | C23: afwcomw@who.int | F23: lastonsitima64@gmail.com
B24: Mailing address | F24: P.O. Box 30377, Lilongwe3, MALAWI
C26: Consignee | F26: Delivery point / Final recipient if different from the consignee
B27: Name
B28: Department/Unit
B29: Organization
B30: Phone
B31: Fax
B32: E-mail
B33: Mailing address
B36: Information on import requirements
B38: Is the Import Permit required? | H38: Yes
B39: How long does it take to obtain the Import Permit? | H39: Weeks
B40: Do you require any documents to be submitted together with the Import Permit application? | H40: Yes
B41: If YES, please specify here
B42: Does the consignee have to get customs clearance before the shipment can proceed? | H42: Yes
B43: Is there any additional information may be helpful in ensuring timely clearance and delivery of medicines to your country? | H43: Yes
B44: drug shippment documents
B46: Additional information

Sheet DATA_POLICY (hidden)
B2: Joint request for selected PC medicines v.3.1
B4: Country | D4: =IF(INTRO!$E$33<>0,INTRO!$E$33," ") -> MALAWI | G4: Year | H4: =IF(INTRO!$E$35<>0,INTRO!$E$35," ") -> 2023
B7: WHO Data Sharing Policy statement
B9: Data are the basis for all sound public health actions and the benefits of data sharing are widely recognized, including scientific and public health benefits. Whenever possible, WHO wishes to promote the sharing of health data, including but not restricted to surveillance and epidemiological data.
B14: ="In this connection, and without prejudice to information sharing and publication pursuant to legally binding instruments, by providing data to WHO, the Ministry of Health of " & D4 & ":" -> In this connection, and without prejudice to information sharing and publication pursuant to legally binding instruments, by providing data to WHO, the Ministry of Health of MALAWI:
B18: Confirms that all data to be supplied to WHO hereunder have been collected in accordance with applicable national laws, including data protection laws aimed at protecting the confidentiality of identifiable persons;
B23: ="Agrees that WHO shall be entitled, subject always to measures to ensure the ethical and secure use of the data, and subject always to an appropriate acknowledgement of "&D4&":" -> Agrees that WHO shall be entitled, subject always to measures to ensure the ethical and secure use of the data, and subject always to an appropriate acknowledgement of MALAWI:
C27: to publish the data, stripped of any personal identifiers and make the Data available to any interested party on request (to the extent they have not, or not yet, been published by WHO) on terms that allow non-commercial, not-for-profit use of the Data for public health purposes (provided always that publication of the Data shall remain under the control of WHO); to use, compile, aggregate, evaluate and analyse the Data and publish and disseminate the results thereof in conjunction with WHO’s work and in accordance with the Organization’s policies and practices.
B39: =CONCATENATE("Except where data sharing and publication is required under legally binding instruments (IHR, WHO Nomenclature Regulations 1967, etc.), the Ministry of Health of ", D4," may in respect of certain data opt out of (any part of) the above," & " by notifying WHO thereof in writing at the following address, provided that any such notification shall clearly identify the data in question and clearly indicate the scope of the opt-out (in reference to the above), " & "and provided that specific reasons shall be given for the opt out.") -> Except where data sharing and publication is required under legally binding instruments (IHR, WHO Nomenclature Regulations 1967, etc.), the Ministry of Health of MALAWI may in respect of certain data opt out of (any part of) the above, by notifying WHO thereof in writing at the following address, provided that any such notification shall clearly identify the data in question and clearly indicate the scope of the opt-out (in reference to the above), and provided that specific reasons shall be given for the opt out.
